Workbook

Sheet Tableau de bord
D2: Résultats | E2: peRf | F2: Cpassimal | G2: douzer | H2: Budo | I2: mikeu | J2: waz | K2: ventur | L2: Nico | M2: doyl
B3: Groupe A | D3: TSM | E3: TSM | F3: NiP | G3: TSM | H3: TSM | I3: TSM | J3: NiP | K3: NiP | L3: TSM | M3: TSM
B4: Groupe B | D4: nV | E4: nV | F4: nV | G4: nV | H4: Kinguin | I4: nV | J4: nV | K4: nV | L4: nV | M4: Flipside
B5: Groupe C | D5: fnatic | E5: fnatic | F5: fnatic | G5: fnatic | H5: fnatic | I5: fnatic | J5: fnatic | K5: fnatic | L5: fnatic | M5: fnatic
B6: Groupe D | D6: VP | E6: C9 | F6: VP | G6: VP | H6: C9 | I6: C9 | J6: C9 | K6: VP | L6: VP | M6: C9
B7: Total 1ere phase | E7: =Data!D2+Data!D3+Data!D4+Data!D5 -> 15 | F7: =Data!E2+Data!E3+Data!E4+Data!E5 -> 15 | G7: =Data!F2+Data!F3+Data!F4+Data!F5 -> 20 | H7: =Data!G2+Data!G3+Data!G4+Data!G5 -> 10 | I7: =Data!H2+Data!H3+Data!H4+Data!H5 -> 15 | J7: =Data!I2+Data!I3+Data!I4+Data!I5 -> 10 | K7: =Data!J2+Data!J3+Data!J4+Data!J5 -> 15 | L7: =Data!K2+Data!K3+Data!K4+Data!K5 -> 20 | M7: =Data!L2+Data!L3+Data!L4+Data!L5 -> 10
B9: Qualifiés 2ème phase
B10: Kinguin | E10: NiP | F10: NaVi | G10: NiP | H10: NiP | I10: Renegades | J10: NaVi | K10: TSM | L10: NiP | M10: CLG
B11: NaVi | E11: NaVi | F11: C9 | G11: Kinguin | H11: nV | I11: Kinguin | J11: VP | K11: Kinguin | L11: NaVi | M11: nV
B12: NiP | E12: VP | F12: Titan | G12: Titan | H12: Titan | I12: NaVi | J12: Titan | K12: NaVi | L12: C9 | M12: Titan
B13: Luminosity | E13: Kinguin | F13: TSM | G13: C9 | H13: mouz | I13: mouz | J13: TSM | K13: C9 | L13: mouz | M13: VP
B14: Total 2ème phase | E14: =Data!D6+Data!D7+Data!D8+Data!D9 -> 9 | F14: =Data!E6+Data!E7+Data!E8+Data!E9 -> 3 | G14: =Data!F6+Data!F7+Data!F8+Data!F9 -> 6 | H14: =Data!G6+Data!G7+Data!G8+Data!G9 -> 3 | I14: =Data!H6+Data!H7+Data!H8+Data!H9 -> 6 | J14: =Data!I6+Data!I7+Data!I8+Data!I9 -> 3 | K14: =Data!J6+Data!J7+Data!J8+Data!J9 -> 6 | L14: =Data!K6+Data!K7+Data!K8+Data!K9 -> 6 | M14: =Data!L6+Data!L7+Data!L8+Data!L9 -> 0
B15: Total phases de poules | E15: =E7+E14 -> 24 | F15: =F7+F14 -> 18 | G15: 26 | H15: 13 | I15: 21 | J15: 13 | K15: 21 | L15: 26 | M15: =M7+M14 -> 10
B17: Quarts de finales
B18: nV | C18: NaVi | D18: 2 - 0 | E18: 2 - 1 | F18: 2 - 1 | G18: 2 - 0 | H18: 2 - 1 | I18: 2 - 0 | J18: 1 - 2 | K18: 2 - 0 | L18: 2 - 1 | M18: 2 - 1
B19: TSM | C19: Kinguin | D19: 2 - 0 | E19: 2 - 0 | F19: 2 - 1 | G19: 2 - 1 | H19: 2 - 0 | I19: 2 - 1 | J19: 0 - 2 | K19: 2 - 1 | L19: 2 - 0 | M19: 0 - 2
B20: VP | C20: NiP | D20: 2 - 0 | E20: 1 - 2 | F20: 0 - 2 | G20: 2 - 1 | H20: 1 - 2 | I20: 1 - 2 | J20: 0 - 2 | K20: 1 - 2 | L20: 2 - 1 | M20: 2 - 0 | O20: classement
B21: fnatic | C21: Luminosity | D21: 2 - 0 | E21: 2 - 0 | F21: 2 - 0 | G21: 2 - 0 | H21: 2 - 0 | I21: 2 - 1 | J21: 2 - 0 | K21: 2 - 0 | L21: 2 - 0 | M21: 2 - 0 | O21: 1er | P21: =Data!N2 -> douzer | Q21: =Data!O2 &" pts" -> 52 pts
B22: total 1/4 de finales | E22: =Data!D10+Data!D11+Data!D12+Data!D13 -> 21 | F22: =Data!E10+Data!E11+Data!E12+Data!E13 -> 18 | G22: =Data!F10+Data!F11+Data!F12+Data!F13 -> 26 | H22: =Data!G10+Data!G11+Data!G12+Data!G13 -> 21 | I22: =Data!H10+Data!H11+Data!H12+Data!H13 -> 18 | J22: =Data!I10+Data!I11+Data!I12+Data!I13 -> 8 | K22: =Data!J10+Data!J11+Data!J12+Data!J13 -> 21 | L22: =Data!K10+Data!K11+Data!K12+Data!K13 -> 26 | M22: =Data!L10+Data!L11+Data!L12+Data!L13 -> 21 | O22: =IF(Q22=Q21,"-","2eme") -> - | P22: =Data!N3 -> Nico | Q22: =Data!O3 &" pts" -> 52 pts
B23: total provisoire | E23: =E15+E22 -> 45 | F23: =F15+F22 -> 36 | G23: 52 | H23: 34 | I23: 39 | J23: 21 | K23: 42 | L23: 52 | M23: =M15+M22 -> 31 | O23: =IF(Q23=Q22,"-","3eme") -> 3eme | P23: =Data!N4 -> peRf | Q23: =Data!O4 &" pts" -> 60 pts
O24: =IF(Q24=Q23,"-","4eme") -> 4eme | P24: =Data!N5 -> Cpassimal | Q24: =Data!O5 &" pts" -> 36 pts
B25: demies finales | O25: =IF(Q25=Q24,"-","5eme") -> 5eme | P25: =Data!N6 -> ventur | Q25: =Data!O6 &" pts" -> 42 pts
B26: nV | C26: TSM | E26: 2 - 0 | F26: 0 - 0 | G26: 1 - 2 | H26: 2 - 1 | I26: 1 - 2 | J26: 0 - 0 | K26: 1 - 2 | L26: 0 - 0 | M26: 2 - 1 | O26: =IF(Q26=Q25,"-","6eme") -> 6eme | P26: =Data!N7 -> mikeu | Q26: =Data!O7 &" pts" -> 39 pts
B27: VP | C27: fnatic | E27: 2 - 1 | F27: 0 - 0 | G27: 1 - 2 | H27: 0 - 2 | I27: 0 - 2 | J27: 0 - 0 | K27: 0 - 2 | L27: 0 - 0 | M27: 1 - 2 | O27: =IF(Q27=Q26,"-","7eme") -> 7eme | P27: =Data!N8 -> Budo | Q27: =Data!O8 &" pts" -> 34 pts
B28: total 1/2 finale | E28: =Data!D14+Data!D15 -> 0 | F28: =Data!E14+Data!E15 -> 0 | G28: =Data!F14+Data!F15 -> 0 | H28: =Data!G14+Data!G15 -> 0 | I28: =Data!H14+Data!H15 -> 0 | J28: =Data!I14+Data!I15 -> 0 | K28: =Data!J14+Data!J15 -> 0 | L28: =Data!K14+Data!K15 -> 0 | M28: =Data!L14+Data!L15 -> 0 | O28: =IF(Q28=Q27,"-","8eme") -> 8eme | P28: =Data!N9 -> doyl | Q28: =Data!O9 &" pts" -> 31 pts
B29: total provisoire | E29: =E23+E28 -> 45 | F29: =F23+F28 -> 36 | G29: 52 | H29: 34 | I29: 39 | J29: 21 | K29: 42 | L29: 52 | M29: =M23+M28 -> 31 | O29: =IF(Q29=Q28,"-","9eme") -> 9eme | P29: =Data!N10 -> waz | Q29: =Data!O10 &" pts" -> 21 pts
O30: 10ème | P30: =Data!N11 -> 0 | Q30: =Data!O11 &" pts" -> pts
B31: finale | O31: 11ème | P31: =Data!N12 -> 0 | Q31: =Data!O12 &" pts" -> pts
D32: 0 - 0 | E32: 0 - 0
B33: topfragger | D33: x
B34: total finale | E34: =Data!D16+Data!D17 -> 15 | F34: =Data!E16+Data!E17 -> 0 | G34: =Data!F16+Data!F17 -> 0 | H34: =Data!G16+Data!G17 -> 0 | I34: =Data!H16+Data!H17 -> 0 | J34: =Data!I16+Data!I17 -> 0 | K34: =Data!J16+Data!J17 -> 0 | L34: =Data!K16+Data!K17 -> 0 | M34: =Data!L16+Data!L17 -> 0
B35: total | E35: =E29+E34 -> 60 | F35: =F29+F34 -> 36 | G35: 52 | H35: 34 | I35: 39 | J35: 21 | K35: 42 | L35: 52 | M35: =M29+M34 -> 31

Sheet OMFG Week
C3: gagnes | D3: perdus | E3: coef | F3: ratio | G3: total | H3: Joues
B4: peRf | C4: =K4+K5+K6+K9+K11+L14+K20+K27 -> 411 | D4: =L4+L5+L6+L9+L11+K14+L20+L27 -> 418 | E4: 1.7 | F4: =IFERROR(C4/(C4+D4),"") -> 0.4957780458 | G4: =(C4*3+D4*1)*E4 -> 2806.7 | H4: =C4+D4 -> 829 | J4: perf | K4: 87 | L4: 117 | M4: neo | N4: =K4+L4 -> 204 | P4: classement
B5: neo | C5: =L4+K12+K18+L19+K21+K22+K30 -> 582 | D5: =K4+L12+L18+K19+L21+L22+L30 -> 365 | E5: 1.6 | F5: =IFERROR(C5/(C5+D5),"") -> 0.6145723337 | G5: =(C5*3+D5*1)*E5 -> 3377.6 | H5: =C5+D5 -> 947 | J5: perf | K5: 29 | L5: 48 | M5: douz | N5: =K5+L5 -> 77 | P5: 1er | Q5: =Data!Q2 -> neo | R5: =Data!R2 -> 3377.6
B6: douzer | C6: =L5+L7+L13+K16+L18+K23+K24+K25+L28 -> 315 | D6: =K5+K7+K13+L16+K18+L23+L24+L25+K28 -> 202 | E6: 1.8 | F6: 0.6092843327 | G6: =(C6*3+D6*1)*E6 -> 2064.6 | H6: 517 | J6: perf | K6: 31 | L6: 48 | M6: pat | N6: 79 | P6: =IF(R6=R5,"-","2eme") -> 2eme | Q6: =Data!Q3 -> peRf | R6: =Data!R3 -> 2806.7
B7: pat | C7: =L6+K7+L8 -> 67 | D7: =K6+L7+K8 -> 63 | E7: 1.2 | F7: 0.5153846154 | G7: =(C7*3+D7*1)*E7 -> 316.8 | H7: 130 | J7: pat | K7: 7 | L7: 16 | M7: douz | N7: 23 | P7: =IF(R7=R6,"-","3eme") -> 3eme | Q7: =Data!Q4 -> douzer | R7: =Data!R4 -> 2064.6
B8: ventur | C8: =K8+L9+K10+K19+K28+K29 -> 226 | D8: =L8+K9+L10+L19+L28+L29 -> 166 | E8: 1.5 | F8: 0.5765306122 | G8: 1266 | H8: 392 | J8: ventur | K8: 16 | L8: 12 | M8: pat | N8: 28 | P8: =IF(R8=R7,"-","4eme") -> 4eme | Q8: =Data!Q5 -> kid | R8: =Data!R5 -> 1276.8
B9: kid | C9: =L10+L11+L12+L24+K26 -> 214 | D9: =K10+K11+K12+K24+L26 -> 270 | E9: 1.4 | F9: 0.4421487603 | G9: 1276.8 | H9: 484 | J9: perf | K9: 45 | L9: 80 | M9: ventur | N9: 125 | P9: =IF(R9=R8,"-","5eme") -> 5eme | Q9: =Data!Q6 -> ventur | R9: =Data!R6 -> 1266
B10: epicier | C10: =K13+K14+K15+L22 -> 74 | D10: =L13+L14+L15+K22 -> 182 | E10: 1.3 | F10: 0.2890625 | G10: 525.2 | H10: 256 | J10: ventur | K10: 32 | L10: 16 | M10: kid | N10: 48 | P10: =IF(R10=R9,"-","6eme") -> 6eme | Q10: =Data!Q7 -> cpassimal | R10: =Data!R7 -> 702.9
B11: quentin | C11: =L15+L16+L17 -> 17 | D11: =K15+K16+K17 -> 48 | E11: 1.2 | F11: 0.2615384615 | G11: 118.8 | H11: 65 | J11: perf | K11: 60 | L11: 40 | M11: kid | N11: 100 | P11: =IF(R11=R10,"-","7eme") -> 7eme | Q11: =Data!Q8 -> epicier | R11: =Data!R8 -> 525.2
B12: doyl | C12: =K17+L23+L27+L29+L30 -> 75 | D12: =L17+K23+K27+K29+K30 -> 100 | E12: 1.4 | F12: 0.4285714286 | G12: 455 | H12: 175 | J12: neo | K12: 123 | L12: 94 | M12: kid | N12: 217 | P12: =IF(R12=R11,"-","8eme") -> 8eme | Q12: =Data!Q9 -> doyl | R12: =Data!R9 -> 455
B13: cpassimal | C13: =L20+L21 -> 128 | D13: =K20+K21 -> 255 | E13: 1.1 | F13: 0.3342036554 | G13: 702.9 | H13: 383 | J13: epicier | K13: 16 | L13: 48 | M13: douzer | N13: 64 | P13: =IF(R13=R12,"-","9eme") -> 9eme | Q13: =Data!Q10 -> pat | R13: =Data!R10 -> 316.8
B14: axwell | C14: =L25+L26 -> 8 | D14: =K25+K26 -> 48 | E14: 1.1 | F14: 0.1428571429 | G14: 79.2 | H14: 56 | J14: epicier | K14: 16 | L14: 32 | M14: perf | N14: 48 | P14: =IF(R14=R13,"-","10eme") -> 10eme | Q14: =Data!Q11 -> quentin | R14: =Data!R11 -> 118.8
G15: 0 | H15: 0 | J15: epicier | K15: 16 | L15: 6 | M15: quentin | N15: 22 | P15: =IF(R15=R14,"-","11eme") -> 11eme | Q15: =Data!Q12 -> axwell | R15: =Data!R12 -> 79.2
G16: 0 | H16: 0 | J16: douzer | K16: 16 | L16: 7 | M16: quentin | N16: 23
G17: 0 | H17: 0 | J17: doyl | K17: 16 | L17: 4 | M17: quentin | N17: 20
G18: 0 | H18: 0 | J18: neo | K18: 33 | L18: 47 | M18: douzer | N18: 80
G19: 0 | H19: 0 | J19: ventur | K19: 34 | L19: 53 | M19: neo | N19: 87
G20: 0 | H20: 0 | J20: perf | K20: 111 | L20: 61 | M20: cpassimal | N20: 172
G21: 0 | H21: 0 | J21: neo | K21: 144 | L21: 67 | M21: cpassimal | N21: 211
G22: 0 | H22: 0 | J22: neo | K22: 96 | L22: 26 | M22: epicier | N22: 122
G23: 0 | H23: 0 | J23: douzer | K23: 48 | L23: 29 | M23: doyl | N23: 77
C24: =SUM(C4:C23) -> 2117 | D24: =SUM(D4:D23) -> 2117 | J24: douzer | K24: 48 | L24: 32 | M24: kid | N24: 80
J25: douzer | K25: 16 | L25: 1 | M25: axwell | N25: 17
J26: kid | K26: 32 | L26: 7 | M26: axwell | N26: 39
J27: perf | K27: 16 | L27: 8 | M27: doyl | N27: 24
J28: ventur | K28: 48 | L28: 28 | M28: douzer | N28: 76
J29: ventur | K29: 16 | L29: 12 | M29: doyl | N29: 28
J30: Neo | K30: 16 | L30: 10 | M30: doyl | N30: 26
N31: 0
N32: 0
N33: 0

Sheet Cologne 2016
C2: Poules | F2: DOYL | G2: EPICIER | H2: DARKS | I2: KEVNAY | J2: NICO | K2: BUDO | L2: VENTUR | M2: MIKEU | N2: CPASSIMAL | O2: DOUZER | P2: PERF | V2: classement
B3: Groupe A | C3: Astralis | D3: dignitas | E3: Astralis | F3: ASTRALIS | G3: ASTRALIS | H3: ASTRALIS | I3: ASTRALIS | J3: ASTRALIS | K3: ASTRALIS | L3: ASTRALIS | M3: ASTRALIS | N3: ASTRALIS | O3: ASTRALIS | P3: ASTRALIS | V3: 1er | W3: =Data!T2 -> DOUZER | X3: =Data!U2 &" pts" -> 92 pts
C4: CLG | D4: Gambit | E4: Gambit | F4: GAMBIT | G4: CLG | H4: CLG | I4: CLG | J4: CLG | K4: CLG | L4: CLG | M4: GAMBIT | N4: GAMBIT | O4: GAMBIT | P4: CLG | V4: =IF(X3=X4,"-","2eme") -> 2eme | W4: =Data!T3 -> MIKEU | X4: =Data!U3 &" pts" -> 84 pts
B5: Winners | C5: =IF(ISBLANK(E3),"",E3) -> Astralis | D5: =IF(ISBLANK(E4),"",E4) -> Gambit | E5: Gambit | F5: ASTRALIS | G5: astralis | H5: astralis | I5: astralis | J5: astralis | K5: astralis | L5: astralis | M5: ASTRALIS | N5: astralis | O5: astralis | P5: astralis | V5: =IF(X5=X4,"-","3eme") -> 3eme | W5: =Data!T4 -> KEVNAY | X5: =Data!U4 &" pts" -> 83 pts
B6: Looser | C6: =IF(ISBLANK(E3),"",IF(C3=C5,D3,C3)) -> dignitas | D6: =IF(ISBLANK(E4),"",IF(D4=D5,C4,D4)) -> CLG | E6: dignitas | F6: dignitas | G6: clg | H6: clg | I6: dignitas | J6: clg | K6: dignitas | L6: dignitas | M6: dignitas | N6: clg | O6: dignitas | P6: dignitas | V6: =IF(X6=X5,"-","4eme") -> - | W6: =Data!T5 -> CPASSIMAL | X6: =Data!U5 &" pts" -> 83 pts
B7: Decider | C7: =IF(ISBLANK(E5),"",IF(C5=E5,D5,C5)) -> Astralis | D7: =IF(ISBLANK(E6),"",E6) -> dignitas | E7: 2 - 1 | F7: 2 - 1 | H7: 2 - 1 | I7: 2 - 1 | J7: 2 - 1 | L7: 2 - 0 | M7: 2 - 0 | N7: 2 - 1 | O7: 0 - 2 | P7: 1 - 2 | V7: =IF(X7=X6,"-","5eme") -> 5eme | W7: =Data!T6 -> VENTUR | X7: =Data!U6 &" pts" -> 81 pts
B8: Groupe B | C8: NaVi | D8: F3 | E8: NaVi | F8: NAVI | G8: FLIPSIDE | H8: NAVI | I8: NAVI | J8: NAVI | K8: NAVI | L8: NAVI | M8: NAVI | N8: NAVI | O8: NAVI | P8: NAVI | V8: =IF(X8=X7,"-","6eme") -> 6eme | W8: =Data!T7 -> NICO | X8: =Data!U7 &" pts" -> 69 pts
C9: NiP | D9: OpTic | E9: NiP | F9: NIP | G9: NIP | H9: OPTIC | I9: NIP | J9: NIP | K9: NIP | L9: NIP | M9: NIP | N9: NIP | O9: NIP | P9: NIP | V9: =IF(X9=X8,"-","7eme") -> 7eme | W9: =Data!T8 -> PERF | X9: =Data!U8 &" pts" -> 65 pts
B10: Winners | C10: =IF(ISBLANK(E8),"",E8) -> NaVi | D10: =IF(ISBLANK(E9),"",E9) -> NiP | E10: NaVi | F10: nip | G10: navi | H10: navi | I10: navi | J10: nip | K10: nip | L10: nip | M10: nip | N10: navi | O10: navi | P10: navi | V10: =IF(X10=X9,"-","8eme") -> 8eme | W10: =Data!T9 -> DOYL | X10: =Data!U9 &" pts" -> 58 pts
B11: Looser | C11: flipside | D11: =IF(ISBLANK(E9),"",IF(D9=D10,C9,D9)) -> OpTic | E11: flipside | F11: flipside | G11: flipside | H11: optic | I11: flipside | J11: optic | K11: optic | L11: optic | M11: flipside | N11: flipside | O11: flipside | P11: flipside | V11: =IF(X11=X10,"-","9eme") -> 9eme | W11: =Data!T10 -> DARKS | X11: =Data!U10 &" pts" -> 49 pts
B12: Decider | C12: =IF(ISBLANK(E10),"",IF(C10=E10,D10,C10)) -> NiP | D12: =IF(ISBLANK(E11),"",E11) -> flipside | E12: 1 - 2 | F12: 2 - 0 | H12: 2 - 0 | I12: 2 - 1 | J12: 2 - 0 | L12: 2 - 0 | M12: 2 - 0 | N12: 2 - 0 | O12: 2 - 0 | P12: 2 - 0 | V12: =IF(X12=X11,"-","10eme") -> 10eme | W12: =Data!T11 -> BUDO | X12: =Data!U11 &" pts" -> 38 pts
B13: Groupe C | C13: Liquid | D13: nV | E13: Liquid | F13: LIQUID | G13: NV | H13: NV | I13: LIQUID | J13: NV | K13: LIQUID | L13: LIQUID | M13: LIQUID | N13: LIQUID | O13: NV | P13: LIQUID | V13: =IF(X13=X12,"-","11eme") -> 11eme | W13: =Data!T12 -> EPICIER | X13: =Data!U12 &" pts" -> 18 pts
C14: VP | D14: mouz | E14: VP | F14: VP | G14: MOUZ | H14: VP | I14: MOUZ | J14: MOUZ | K14: MOUZ | L14: MOUZ | M14: VP | N14: VP | O14: VP | P14: MOUZ | V14: =IF(X14=X13,"-","12eme") -> 12eme | W14: =Data!T13 -> 0 | X14: =Data!U13 &" pts" -> pts
B15: Winners | C15: =IF(ISBLANK(E13),"",E13) -> Liquid | D15: =IF(ISBLANK(E14),"",E14) -> VP | E15: VP | F15: vp | G15: liquid | H15: liquid | I15: liquid | J15: vp | K15: liquid | L15: liquid | M15: liquid | N15: liquid | O15: vp | P15: liquid | V15: =IF(X15=X14,"-","13eme") -> - | W15: =Data!T14 -> 0 | X15: =Data!U14 &" pts" -> pts
B16: Looser | C16: =IF(ISBLANK(E13),"",IF(C13=C15,D13,C13)) -> nV | D16: =IF(ISBLANK(E14),"",IF(D14=D15,C14,D14)) -> mouz | E16: mouz | F16: mouz | G16: mouz | H16: mouz | I16: mouz | J16: nv | K16: mouz | L16: mouz | M16: mouz | N16: mouz | O16: mouz | P16: mouz | V16: =IF(X16=X15,"-","14eme") -> - | W16: =Data!T15 -> 0 | X16: =Data!U15 &" pts" -> pts
B17: Decider | C17: =IF(ISBLANK(E15),"",IF(C15=E15,D15,C15)) -> Liquid | D17: =IF(ISBLANK(E16),"",E16) -> mouz | E17: 2 - 0 | F17: 2 - 0 | H17: 2 - 1 | I17: 2 - 1 | J17: 0 - 2 | L17: 2 - 1 | M17: 2 - 1 | N17: 1 - 2 | O17: 2 - 1 | P17: 2 - 1
B18: Groupe D | C18: LG | D18: G2 | E18: LG | F18: G2 | G18: G2 | H18: G2 | I18: LG | J18: LG | K18: LG | L18: LG | M18: G2 | N18: G2 | O18: LG | P18: G2
C19: fnatic | D19: FaZe | E19: FaZe | F19: FNATIC | G19: FNATIC | H19: FAZE | I19: FNATIC | J19: FNATIC | K19: FNATIC | L19: FNATIC | M19: FNATIC | N19: FNATIC | O19: FNATIC | P19: FNATIC
B20: Winners | C20: =IF(ISBLANK(E18),"",E18) -> LG | D20: =IF(ISBLANK(E19),"",E19) -> FaZe | E20: LG | F20: faze | G20: lg | H20: faze | I20: lg | J20: lg | K20: lg | L20: lg | M20: lg | N20: lg | O20: lg | P20: faze
B21: Looser | C21: =IF(ISBLANK(E18),"",IF(C18=C20,D18,C18)) -> G2 | D21: =IF(ISBLANK(E19),"",IF(D19=D20,C19,D19)) -> fnatic | E21: fnatic | F21: fnatic | G21: g2 | H21: fnatic | I21: g2 | J21: fnatic | K21: fnatic | L21: fnatic | M21: fnatic | N21: fnatic | O21: g2 | P21: g2
B22: Decider | C22: =IF(ISBLANK(E20),"",IF(C20=E20,D20,C20)) -> FaZe | D22: =IF(ISBLANK(E21),"",E21) -> fnatic | E22: 0 - 2 | F22: 2 - 1 | H22: 1 - 2 | I22: 0 - 2 | J22: 1 - 2 | L22: 1 - 2 | M22: 2 - 1 | N22: 1 - 2 | O22: 1 - 2 | P22: 2 - 1
B23: PRONO BONUS | C23: 1ER JOUR | D23: COTE CSGL | E23: LIQUID-NV | F23: LIQUID-NV | G23: VP-MOUZ | H23: NIP-OPTIC | I23: LIQUID-NV | J23: LG-G2 | K23: LG-G2 | L23: LIQUID-NV | M23: LIQUID-NV | N23: VP-MOUZ | O23: LG-G2 | P23: FAZE-FNATIC
C24: 2EME JOUR | D24: rape | E24: dignitas-clg | F24: g2-fnatic | G24: nv-mouz | H24: navi-nip | I24: dignitas-clg | J24: astralis-gambit | K24: astralis-gambit | L24: astralis-gambit | M24: astralis-gambit | N24: nv-mouz | O24: nv-mouz | P24: nv-mouz
C25: 3EME JOUR | D25: retard | E25: 5 | F25: 7 | H25: 8 | I25: 19 | J25: 11 | L25: 10 | M25: 11 | N25: 5 | O25: 12 | P25: 11
C26: TOTAL POULES | F26: =Data!D44 -> 46 | G26: =Data!E44 -> 18 | H26: =Data!F44 -> 33 | I26: =Data!G44 -> 45 | J26: =Data!H44 -> 29 | K26: =Data!I44 -> 27 | L26: =Data!J44 -> 40 | M26: =Data!K44 -> 42 | N26: =Data!L44 -> 45 | O26: =Data!M44 -> 43 | P26: =Data!N44 -> 28 | Q26: =Data!O44 -> 0 | R26: =Data!P44 -> 0 | S26: =Data!Q44 -> 0 | T26: =Data!R44 -> 0
C28: Quarts de finales
C29: =IF(Data!A50=TRUE,"",'Cologne 2016'!E5) -> Gambit | D29: fnatic | E29: 0 - 2 | F29: 2 - 0 | H29: 1 - 2 | I29: 0 - 2 | J29: 0 - 2 | L29: 0 - 2 | M29: 1 - 2 | N29: 0 - 2 | O29: 0 - 2 | P29: 0 - 2
C30: =IF(Data!A51=TRUE,"",'Cologne 2016'!E10) -> NaVi | D30: Liquid | E30: 1 - 2 | F30: 1 - 2 | H30: 2 - 1 | I30: 2 - 1 | J30: 2 - 1 | L30: 2 - 1 | M30: 1 - 2 | N30: 2 - 1 | O30: 2 - 0 | P30: 2 - 1
C31: =IF(Data!A52=TRUE,"",'Cologne 2016'!E15) -> VP | D31: Astralis | E31: 2 - 0 | F31: 0 - 2 | H31: 1 - 2 | I31: 2 - 1 | J31: 2 - 1 | L31: 2 - 1 | M31: 1 - 2 | N31: 1 - 2 | O31: 2 - 1 | P31: 2 - 0
C32: =IF(Data!A53=TRUE,"",'Cologne 2016'!E20) -> LG | D32: Flipside | E32: 2 - 0 | F32: 1 - 2 | H32: 2 - 0 | I32: 2 - 0 | J32: 2 - 0 | L32: 2 - 0 | M32: 2 - 0 | N32: 2 - 0 | O32: 2 - 0 | P32: 2 - 0
C33: total 1/4 de finales | F33: =SUM(Data!D45:D48)+SUM(Data!D55:D55) -> 10 | G33: =SUM(Data!E45:E48)+SUM(Data!E55:E55) -> 0 | H33: =SUM(Data!F45:F48)+SUM(Data!F55:F55) -> 10 | I33: =SUM(Data!G45:G48)+SUM(Data!G55:G55) -> 20 | J33: =SUM(Data!H45:H48)+SUM(Data!H55:H55) -> 20 | K33: =SUM(Data!I45:I48)+SUM(Data!I55:I55) -> 0 | L33: =SUM(Data!J45:J48)+SUM(Data!J55:J55) -> 18 | M33: =SUM(Data!K45:K48)+SUM(Data!K55:K55) -> 18 | N33: =SUM(Data!L45:L48)+SUM(Data!L55:L55) -> 14 | O33: =SUM(Data!M45:M48)+SUM(Data!M55:M55) -> 20 | P33: =SUM(Data!N45:N48)+SUM(Data!N55:N55) -> 24 | Q33: =SUM(Data!O45:O48)+SUM(Data!O55:O55) -> 0 | R33: =SUM(Data!P45:P48)+SUM(Data!P55:P55) -> 0 | S33: =SUM(Data!Q45:Q48)+SUM(Data!Q55:Q55) -> 0 | T33: =SUM(Data!R45:R48)+SUM(Data!R55:R55) -> 0
C34: total provisoire | F34: =F26+F33 -> 56 | G34: =G26+G33 -> 18 | H34: 43 | I34: 65 | J34: 49 | K34: 27 | L34: 58 | M34: 60 | N34: 59 | O34: 63 | P34: 52 | Q34: 0 | R34: 0 | S34: 0 | T34: 0
C36: demies finales
C37: VP | D37: LG | E37: 1 - 2 | F37: 2 - 1 | I37: 0 - 2 | J37: 0 - 2 | L37: 0 - 2 | M37: 1 - 2 | N37: 1 - 2 | O37: 1 - 2 | P37: 0 - 2
C38: Liquid | D38: fnatic | E38: 2 - 0 | F38: 0 - 2 | I38: 0 - 2 | J38: 0 - 2 | L38: 1 - 2 | M38: 1 - 2 | N38: 1 - 2 | O38: 0 - 2 | P38: 1 - 2
C39: vp | E39: overpass | F39: cache | H39: mirages | I39: dust2 | J39: overpass | L39: dust2 | M39: dust2 | N39: dust2 | O39: dust2 | P39: dust2
C40: lg | E40: cache | F40: cbble | H40: dust2 | I40: cache | J40: cache | L40: cache | M40: cache | N40: cache | O40: cache | P40: cache
C41: Liquid | E41: overpass | F41: cache | H41: overpass | I41: cache | J41: dust2 | L41: nuke | M41: overpass | N41: overpass | O41: overpass | P41: overpass
C42: fnatic | E42: nuke | F42: dust2 | H42: nuke | I42: nuke | J42: nuke | L42: nuke | M42: nuke | N42: nuke | O42: nuke | P42: nuke
C43: total 1/2 finale | F43: =SUM(Data!D49:D50)+Data!D56 -> 0 | G43: =SUM(Data!E49:E50)+Data!E56 -> 0 | H43: =SUM(Data!F49:F50)+Data!F56 -> 4 | I43: =SUM(Data!G49:G50)+Data!G56 -> 9 | J43: =SUM(Data!H49:H50)+Data!H56 -> 11 | K43: =SUM(Data!I49:I50)+Data!I56 -> 0 | L43: =SUM(Data!J49:J50)+Data!J56 -> 9 | M43: =SUM(Data!K49:K50)+Data!K56 -> 13 | N43: =SUM(Data!L49:L50)+Data!L56 -> 13 | O43: =SUM(Data!M49:M50)+Data!M56 -> 13 | P43: =SUM(Data!N49:N50)+Data!N56 -> 11 | Q43: =SUM(Data!O49:O50)+Data!O56 -> 0 | R43: =SUM(Data!P49:P50)+Data!P56 -> 0 | S43: =SUM(Data!Q49:Q50)+Data!Q56 -> 0 | T43: =SUM(Data!R49:R50)+Data!R56 -> 0
C44: total provisoire | F44: =F34+F43 -> 56 | G44: =G34+G43 -> 18 | H44: 47 | I44: 74 | J44: 60 | K44: 27 | L44: 67 | M44: 73 | N44: 72 | O44: 76 | P44: 63 | Q44: 0 | R44: 0 | S44: 0 | T44: =T34+T43 -> 0
C46: finale
C47: lg | D47: liquid | E47: 2 - 0 | F47: 0 - 2 | H47: 1 - 2 | I47: 2 - 1 | J47: 2 - 1 | K47: 2 - 1 | L47: 2 - 0 | M47: 2 - 1 | N47: 2 - 1 | O47: 2 - 0 | P47: 1 - 2
C48: topfragger | E48: cold | F48: simple | H48: simple | I48: cold | J48: cold | K48: cold | L48: cold | M48: cold | N48: cold | O48: cold | P48: simple
C49: 2 | E49: taco | F49: hiko | H49: fallen | I49: simple | J49: simple | K49: simple | L49: fallen | M49: fallen | N49: fnx | O49: taco | P49: cold
C50: 3 | E50: fallen/fnx | F50: cold | H50: hiko | I50: fer | J50: fer | K50: fallen | L50: jdm | M50: simple | N50: simple | O50: fallen | P50: hiko
C51: bonus top fragger | F51: =F55+F56+F57 -> 2 | G51: =G55+G56+G57 -> 0 | H51: 2 | I51: 3 | J51: 3 | K51: 5 | L51: 5 | M51: 5 | N51: 5 | O51: 7 | P51: 2 | Q51: 0 | R51: 0 | S51: 0 | T51: 0
C52: total finale | F52: =SUM(Data!D51:D52)+F51 -> 2 | G52: =SUM(Data!E51:E52)+G51 -> 0 | H52: =SUM(Data!F51:F52)+H51 -> 2 | I52: =SUM(Data!G51:G52)+I51 -> 9 | J52: =SUM(Data!H51:H52)+J51 -> 9 | K52: =SUM(Data!I51:I52)+K51 -> 11 | L52: =SUM(Data!J51:J52)+L51 -> 14 | M52: =SUM(Data!K51:K52)+M51 -> 11 | N52: =SUM(Data!L51:L52)+N51 -> 11 | O52: =SUM(Data!M51:M52)+O51 -> 16 | P52: =SUM(Data!N51:N52)+P51 -> 2 | Q52: =SUM(Data!O51:O52) -> 0 | R52: =SUM(Data!P51:P52) -> 0 | S52: =SUM(Data!Q51:Q52) -> 0 | T52: =SUM(Data!R51:R52) -> 0
C53: total | F53: =F26+F33+F43+F52 -> 58 | G53: =G26+G33+G43+G52 -> 18 | H53: 49 | I53: 83 | J53: 69 | K53: 38 | L53: 81 | M53: 84 | N53: 83 | O53: 92 | P53: 65 | Q53: 0 | R53: 0 | S53: 0 | T53: 0
F55: =IF('Cologne 2016'!$E$48='Cologne 2016'!F48,3,IF(OR('Cologne 2016'!$E$48='Cologne 2016'!F49,'Cologne 2016'!$E$48='Cologne 2016'!F50),2,0)) -> 2 | G55: =IF('Cologne 2016'!$E$48='Cologne 2016'!G48,3,IF(OR('Cologne 2016'!$E$48='Cologne 2016'!G49,'Cologne 2016'!$E$48='Cologne 2016'!G50),2,0)) -> 0 | H55: =IF('Cologne 2016'!$E$48='Cologne 2016'!H48,3,IF(OR('Cologne 2016'!$E$48='Cologne 2016'!H49,'Cologne 2016'!$E$48='Cologne 2016'!H50),2,0)) -> 0 | I55: =IF('Cologne 2016'!$E$48='Cologne 2016'!I48,3,IF(OR('Cologne 2016'!$E$48='Cologne 2016'!I49,'Cologne 2016'!$E$48='Cologne 2016'!I50),2,0)) -> 3 | J55: =IF('Cologne 2016'!$E$48='Cologne 2016'!J48,3,IF(OR('Cologne 2016'!$E$48='Cologne 2016'!J49,'Cologne 2016'!$E$48='Cologne 2016'!J50),2,0)) -> 3 | K55: =IF('Cologne 2016'!$E$48='Cologne 2016'!K48,3,IF(OR('Cologne 2016'!$E$48='Cologne 2016'!K49,'Cologne 2016'!$E$48='Cologne 2016'!K50),2,0)) -> 3 | L55: =IF('Cologne 2016'!$E$48='Cologne 2016'!L48,3,IF(OR('Cologne 2016'!$E$48='Cologne 2016'!L49,'Cologne 2016'!$E$48='Cologne 2016'!L50),2,0)) -> 3 | M55: =IF('Cologne 2016'!$E$48='Cologne 2016'!M48,3,IF(OR('Cologne 2016'!$E$48='Cologne 2016'!M49,'Cologne 2016'!$E$48='Cologne 2016'!M50),2,0)) -> 3 | N55: =IF('Cologne 2016'!$E$48='Cologne 2016'!N48,3,IF(OR('Cologne 2016'!$E$48='Cologne 2016'!N49,'Cologne 2016'!$E$48='Cologne 2016'!N50),2,0)) -> 3 | O55: =IF('Cologne 2016'!$E$48='Cologne 2016'!O48,3,IF(OR('Cologne 2016'!$E$48='Cologne 2016'!O49,'Cologne 2016'!$E$48='Cologne 2016'!O50),2,0)) -> 3 | P55: =IF('Cologne 2016'!$E$48='Cologne 2016'!P48,3,IF(OR('Cologne 2016'!$E$48='Cologne 2016'!P49,'Cologne 2016'!$E$48='Cologne 2016'!P50),2,0)) -> 2 | Q55: =IF('Cologne 2016'!$E$48='Cologne 2016'!Q48,3,IF(OR('Cologne 2016'!$E$48='Cologne 2016'!Q49,'Cologne 2016'!$E$48='Cologne 2016'!Q50),2,0)) -> 0 | R55: =IF('Cologne 2016'!$E$48='Cologne 2016'!R48,3,IF(OR('Cologne 2016'!$E$48='Cologne 2016'!R49,'Cologne 2016'!$E$48='Cologne 2016'!R50),2,0)) -> 0 | S55: =IF('Cologne 2016'!$E$48='Cologne 2016'!S48,3,IF(OR('Cologne 2016'!$E$48='Cologne 2016'!S49,'Cologne 2016'!$E$48='Cologne 2016'!S50),2,0)) -> 0 | T55: =IF('Cologne 2016'!$E$48='Cologne 2016'!T48,3,IF(OR('Cologne 2016'!$E$48='Cologne 2016'!T49,'Cologne 2016'!$E$48='Cologne 2016'!T50),2,0)) -> 0
F56: =IF(OR('Cologne 2016'!$E$49='Cologne 2016'!F49,'Cologne 2016'!$E$49='Cologne 2016'!F50,'Cologne 2016'!$E$49='Cologne 2016'!F48),2,0) -> 0 | G56: =IF(OR('Cologne 2016'!$E$49='Cologne 2016'!G49,'Cologne 2016'!$E$49='Cologne 2016'!G50,'Cologne 2016'!$E$49='Cologne 2016'!G48),2,0) -> 0 | H56: =IF(OR('Cologne 2016'!$E$49='Cologne 2016'!H49,'Cologne 2016'!$E$49='Cologne 2016'!H50,'Cologne 2016'!$E$49='Cologne 2016'!H48),2,0) -> 0 | I56: =IF(OR('Cologne 2016'!$E$49='Cologne 2016'!I49,'Cologne 2016'!$E$49='Cologne 2016'!I50,'Cologne 2016'!$E$49='Cologne 2016'!I48),2,0) -> 0 | J56: =IF(OR('Cologne 2016'!$E$49='Cologne 2016'!J49,'Cologne 2016'!$E$49='Cologne 2016'!J50,'Cologne 2016'!$E$49='Cologne 2016'!J48),2,0) -> 0 | K56: =IF(OR('Cologne 2016'!$E$49='Cologne 2016'!K49,'Cologne 2016'!$E$49='Cologne 2016'!K50,'Cologne 2016'!$E$49='Cologne 2016'!K48),2,0) -> 0 | L56: =IF(OR('Cologne 2016'!$E$49='Cologne 2016'!L49,'Cologne 2016'!$E$49='Cologne 2016'!L50,'Cologne 2016'!$E$49='Cologne 2016'!L48),2,0) -> 0 | M56: =IF(OR('Cologne 2016'!$E$49='Cologne 2016'!M49,'Cologne 2016'!$E$49='Cologne 2016'!M50,'Cologne 2016'!$E$49='Cologne 2016'!M48),2,0) -> 0 | N56: =IF(OR('Cologne 2016'!$E$49='Cologne 2016'!N49,'Cologne 2016'!$E$49='Cologne 2016'!N50,'Cologne 2016'!$E$49='Cologne 2016'!N48),2,0) -> 0 | O56: =IF(OR('Cologne 2016'!$E$49='Cologne 2016'!O49,'Cologne 2016'!$E$49='Cologne 2016'!O50,'Cologne 2016'!$E$49='Cologne 2016'!O48),2,0) -> 2 | P56: =IF(OR('Cologne 2016'!$E$49='Cologne 2016'!P49,'Cologne 2016'!$E$49='Cologne 2016'!P50,'Cologne 2016'!$E$49='Cologne 2016'!P48),2,0) -> 0 | Q56: =IF(OR('Cologne 2016'!$E$49='Cologne 2016'!Q49,'Cologne 2016'!$E$49='Cologne 2016'!Q50,'Cologne 2016'!$E$49='Cologne 2016'!Q48),2,0) -> 0 | R56: =IF(OR('Cologne 2016'!$E$49='Cologne 2016'!R49,'Cologne 2016'!$E$49='Cologne 2016'!R50,'Cologne 2016'!$E$49='Cologne 2016'!R48),2,0) -> 0 | S56: =IF(OR('Cologne 2016'!$E$49='Cologne 2016'!S49,'Cologne 2016'!$E$49='Cologne 2016'!S50,'Cologne 2016'!$E$49='Cologne 2016'!S48),2,0) -> 0 | T56: =IF(OR('Cologne 2016'!$E$49='Cologne 2016'!T49,'Cologne 2016'!$E$49='Cologne 2016'!T50,'Cologne 2016'!$E$49='Cologne 2016'!T48),2,0) -> 0
F57: =IF(OR('Cologne 2016'!$E$50='Cologne 2016'!F49,'Cologne 2016'!$E$50='Cologne 2016'!F50,'Cologne 2016'!$E$50='Cologne 2016'!F48),2,0) -> 0 | G57: =IF(OR('Cologne 2016'!$E$50='Cologne 2016'!G49,'Cologne 2016'!$E$50='Cologne 2016'!G50,'Cologne 2016'!$E$50='Cologne 2016'!G48),2,0) -> 0 | H57: =IF(OR('Cologne 2016'!$E$50='Cologne 2016'!H49,'Cologne 2016'!$E$50='Cologne 2016'!H50,'Cologne 2016'!$E$50='Cologne 2016'!H48),2,0) -> 0 | I57: =IF(OR('Cologne 2016'!$E$50='Cologne 2016'!I49,'Cologne 2016'!$E$50='Cologne 2016'!I50,'Cologne 2016'!$E$50='Cologne 2016'!I48),2,0) -> 0 | J57: =IF(OR('Cologne 2016'!$E$50='Cologne 2016'!J49,'Cologne 2016'!$E$50='Cologne 2016'!J50,'Cologne 2016'!$E$50='Cologne 2016'!J48),2,0) -> 0 | K57: =IF(OR('Cologne 2016'!$E$50='Cologne 2016'!K49,'Cologne 2016'!$E$50='Cologne 2016'!K50,'Cologne 2016'!$E$50='Cologne 2016'!K48),2,0) -> 0 | L57: =IF(OR('Cologne 2016'!$E$50='Cologne 2016'!L49,'Cologne 2016'!$E$50='Cologne 2016'!L50,'Cologne 2016'!$E$50='Cologne 2016'!L48),2,0) -> 0 | M57: =IF(OR('Cologne 2016'!$E$50='Cologne 2016'!M49,'Cologne 2016'!$E$50='Cologne 2016'!M50,'Cologne 2016'!$E$50='Cologne 2016'!M48),2,0) -> 0 | N57: =IF(OR('Cologne 2016'!$E$50='Cologne 2016'!N49,'Cologne 2016'!$E$50='Cologne 2016'!N50,'Cologne 2016'!$E$50='Cologne 2016'!N48),2,0) -> 0 | O57: =IF(OR('Cologne 2016'!$E$50='Cologne 2016'!O49,'Cologne 2016'!$E$50='Cologne 2016'!O50,'Cologne 2016'!$E$50='Cologne 2016'!O48),2,0) -> 0 | P57: =IF(OR('Cologne 2016'!$E$50='Cologne 2016'!P49,'Cologne 2016'!$E$50='Cologne 2016'!P50,'Cologne 2016'!$E$50='Cologne 2016'!P48),2,0) -> 0 | Q57: =IF(OR('Cologne 2016'!$E$50='Cologne 2016'!Q49,'Cologne 2016'!$E$50='Cologne 2016'!Q50,'Cologne 2016'!$E$50='Cologne 2016'!Q48),2,0) -> 0 | R57: =IF(OR('Cologne 2016'!$E$50='Cologne 2016'!R49,'Cologne 2016'!$E$50='Cologne 2016'!R50,'Cologne 2016'!$E$50='Cologne 2016'!R48),2,0) -> 0 | S57: =IF(OR('Cologne 2016'!$E$50='Cologne 2016'!S49,'Cologne 2016'!$E$50='Cologne 2016'!S50,'Cologne 2016'!$E$50='Cologne 2016'!S48),2,0) -> 0 | T57: =IF(OR('Cologne 2016'!$E$50='Cologne 2016'!T49,'Cologne 2016'!$E$50='Cologne 2016'!T50,'Cologne 2016'!$E$50='Cologne 2016'!T48),2,0) -> 0

Sheet Data
A1: Liste des équipes | D1: peRf | E1: Cpassimal | F1: douzer | G1: Budo | H1: mikeu | I1: waz | J1: ventur | K1: Nico | L1: doyl | N1: Joueur | O1: Points | Q1: Joueur | R1: Points | T1: Joueur | U1: Pts
A2: NiP | C2: 1ers de groupe | D2: =IF('Tableau de bord'!E3='Tableau de bord'!$D3,5,0) -> 5 | E2: =IF('Tableau de bord'!F3='Tableau de bord'!$D3,5,0) -> 0 | F2: =IF('Tableau de bord'!G3='Tableau de bord'!$D3,5,0) -> 5 | G2: =IF('Tableau de bord'!H3='Tableau de bord'!$D3,5,0) -> 5 | H2: =IF('Tableau de bord'!I3='Tableau de bord'!$D3,5,0) -> 5 | I2: =IF('Tableau de bord'!J3='Tableau de bord'!$D3,5,0) -> 0 | J2: =IF('Tableau de bord'!K3='Tableau de bord'!$D3,5,0) -> 0 | K2: =IF('Tableau de bord'!L3='Tableau de bord'!$D3,5,0) -> 5 | L2: =IF('Tableau de bord'!M3='Tableau de bord'!$D3,5,0) -> 5 | N2: ='Tableau de bord'!G2 -> douzer | O2: ='Tableau de bord'!G35 -> 52 | Q2: ='OMFG Week'!B5 -> neo | R2: ='OMFG Week'!G5 -> 3377.6 | T2: ='Cologne 2016'!O2 -> DOUZER | U2: ='Cologne 2016'!O53 -> 92
A3: TSM | D3: =IF('Tableau de bord'!E4='Tableau de bord'!$D4,5,0) -> 5 | E3: =IF('Tableau de bord'!F4='Tableau de bord'!$D4,5,0) -> 5 | F3: =IF('Tableau de bord'!G4='Tableau de bord'!$D4,5,0) -> 5 | G3: =IF('Tableau de bord'!H4='Tableau de bord'!$D4,5,0) -> 0 | H3: =IF('Tableau de bord'!I4='Tableau de bord'!$D4,5,0) -> 5 | I3: =IF('Tableau de bord'!J4='Tableau de bord'!$D4,5,0) -> 5 | J3: =IF('Tableau de bord'!K4='Tableau de bord'!$D4,5,0) -> 5 | K3: =IF('Tableau de bord'!L4='Tableau de bord'!$D4,5,0) -> 5 | L3: =IF('Tableau de bord'!M4='Tableau de bord'!$D4,5,0) -> 0 | N3: ='Tableau de bord'!L2 -> Nico | O3: ='Tableau de bord'!L35 -> 52 | Q3: ='OMFG Week'!B4 -> peRf | R3: ='OMFG Week'!G4 -> 2806.7 | T3: ='Cologne 2016'!M2 -> MIKEU | U3: ='Cologne 2016'!M53 -> 84
A4: Renegades | D4: =IF('Tableau de bord'!E5='Tableau de bord'!$D5,5,0) -> 5 | E4: =IF('Tableau de bord'!F5='Tableau de bord'!$D5,5,0) -> 5 | F4: =IF('Tableau de bord'!G5='Tableau de bord'!$D5,5,0) -> 5 | G4: =IF('Tableau de bord'!H5='Tableau de bord'!$D5,5,0) -> 5 | H4: =IF('Tableau de bord'!I5='Tableau de bord'!$D5,5,0) -> 5 | I4: =IF('Tableau de bord'!J5='Tableau de bord'!$D5,5,0) -> 5 | J4: =IF('Tableau de bord'!K5='Tableau de bord'!$D5,5,0) -> 5 | K4: =IF('Tableau de bord'!L5='Tableau de bord'!$D5,5,0) -> 5 | L4: =IF('Tableau de bord'!M5='Tableau de bord'!$D5,5,0) -> 5 | N4: ='Tableau de bord'!E2 -> peRf | O4: ='Tableau de bord'!E35 -> 60 | Q4: ='OMFG Week'!B6 -> douzer | R4: ='OMFG Week'!G6 -> 2064.6 | T4: ='Cologne 2016'!I2 -> KEVNAY | U4: ='Cologne 2016'!I53 -> 83
A5: CLG | D5: =IF('Tableau de bord'!E6='Tableau de bord'!$D6,5,0) -> 0 | E5: =IF('Tableau de bord'!F6='Tableau de bord'!$D6,5,0) -> 5 | F5: =IF('Tableau de bord'!G6='Tableau de bord'!$D6,5,0) -> 5 | G5: =IF('Tableau de bord'!H6='Tableau de bord'!$D6,5,0) -> 0 | H5: =IF('Tableau de bord'!I6='Tableau de bord'!$D6,5,0) -> 0 | I5: =IF('Tableau de bord'!J6='Tableau de bord'!$D6,5,0) -> 0 | J5: =IF('Tableau de bord'!K6='Tableau de bord'!$D6,5,0) -> 5 | K5: =IF('Tableau de bord'!L6='Tableau de bord'!$D6,5,0) -> 5 | L5: =IF('Tableau de bord'!M6='Tableau de bord'!$D6,5,0) -> 0 | N5: ='Tableau de bord'!F2 -> Cpassimal | O5: ='Tableau de bord'!F35 -> 36 | Q5: ='OMFG Week'!B9 -> kid | R5: ='OMFG Week'!G9 -> 1276.8 | T5: ='Cologne 2016'!N2 -> CPASSIMAL | U5: ='Cologne 2016'!N53 -> 83
A6: nV | C6: Repéchés | D6: =IF(OR('Tableau de bord'!E10='Tableau de bord'!$B$10,'Tableau de bord'!E10='Tableau de bord'!$B$11,'Tableau de bord'!E10='Tableau de bord'!$B$12,'Tableau de bord'!E10='Tableau de bord'!$B$13),3,0) -> 3 | E6: =IF(OR('Tableau de bord'!F10='Tableau de bord'!$B$10,'Tableau de bord'!F10='Tableau de bord'!$B$11,'Tableau de bord'!F10='Tableau de bord'!$B$12,'Tableau de bord'!F10='Tableau de bord'!$B$13),3,0) -> 3 | F6: =IF(OR('Tableau de bord'!G10='Tableau de bord'!$B$10,'Tableau de bord'!G10='Tableau de bord'!$B$11,'Tableau de bord'!G10='Tableau de bord'!$B$12,'Tableau de bord'!G10='Tableau de bord'!$B$13),3,0) -> 3 | G6: =IF(OR('Tableau de bord'!H10='Tableau de bord'!$B$10,'Tableau de bord'!H10='Tableau de bord'!$B$11,'Tableau de bord'!H10='Tableau de bord'!$B$12,'Tableau de bord'!H10='Tableau de bord'!$B$13),3,0) -> 3 | H6: =IF(OR('Tableau de bord'!I10='Tableau de bord'!$B$10,'Tableau de bord'!I10='Tableau de bord'!$B$11,'Tableau de bord'!I10='Tableau de bord'!$B$12,'Tableau de bord'!I10='Tableau de bord'!$B$13),3,0) -> 0 | I6: =IF(OR('Tableau de bord'!J10='Tableau de bord'!$B$10,'Tableau de bord'!J10='Tableau de bord'!$B$11,'Tableau de bord'!J10='Tableau de bord'!$B$12,'Tableau de bord'!J10='Tableau de bord'!$B$13),3,0) -> 3 | J6: =IF(OR('Tableau de bord'!K10='Tableau de bord'!$B$10,'Tableau de bord'!K10='Tableau de bord'!$B$11,'Tableau de bord'!K10='Tableau de bord'!$B$12,'Tableau de bord'!K10='Tableau de bord'!$B$13),3,0) -> 0 | K6: =IF(OR('Tableau de bord'!L10='Tableau de bord'!$B$10,'Tableau de bord'!L10='Tableau de bord'!$B$11,'Tableau de bord'!L10='Tableau de bord'!$B$12,'Tableau de bord'!L10='Tableau de bord'!$B$13),3,0) -> 3 | L6: =IF(OR('Tableau de bord'!M10='Tableau de bord'!$B$10,'Tableau de bord'!M10='Tableau de bord'!$B$11,'Tableau de bord'!M10='Tableau de bord'!$B$12,'Tableau de bord'!M10='Tableau de bord'!$B$13),3,0) -> 0 | N6: ='Tableau de bord'!K2 -> ventur | O6: ='Tableau de bord'!K35 -> 42 | Q6: ='OMFG Week'!B8 -> ventur | R6: ='OMFG Week'!G8 -> 1266 | T6: ='Cologne 2016'!L2 -> VENTUR | U6: ='Cologne 2016'!L53 -> 81
A7: Luminosity | D7: =IF(OR('Tableau de bord'!E11='Tableau de bord'!$B$10,'Tableau de bord'!E11='Tableau de bord'!$B$11,'Tableau de bord'!E11='Tableau de bord'!$B$12,'Tableau de bord'!E11='Tableau de bord'!$B$13),3,0) -> 3 | E7: =IF(OR('Tableau de bord'!F11='Tableau de bord'!$B$10,'Tableau de bord'!F11='Tableau de bord'!$B$11,'Tableau de bord'!F11='Tableau de bord'!$B$12,'Tableau de bord'!F11='Tableau de bord'!$B$13),3,0) -> 0 | F7: =IF(OR('Tableau de bord'!G11='Tableau de bord'!$B$10,'Tableau de bord'!G11='Tableau de bord'!$B$11,'Tableau de bord'!G11='Tableau de bord'!$B$12,'Tableau de bord'!G11='Tableau de bord'!$B$13),3,0) -> 3 | G7: =IF(OR('Tableau de bord'!H11='Tableau de bord'!$B$10,'Tableau de bord'!H11='Tableau de bord'!$B$11,'Tableau de bord'!H11='Tableau de bord'!$B$12,'Tableau de bord'!H11='Tableau de bord'!$B$13),3,0) -> 0 | H7: =IF(OR('Tableau de bord'!I11='Tableau de bord'!$B$10,'Tableau de bord'!I11='Tableau de bord'!$B$11,'Tableau de bord'!I11='Tableau de bord'!$B$12,'Tableau de bord'!I11='Tableau de bord'!$B$13),3,0) -> 3 | I7: =IF(OR('Tableau de bord'!J11='Tableau de bord'!$B$10,'Tableau de bord'!J11='Tableau de bord'!$B$11,'Tableau de bord'!J11='Tableau de bord'!$B$12,'Tableau de bord'!J11='Tableau de bord'!$B$13),3,0) -> 0 | J7: =IF(OR('Tableau de bord'!K11='Tableau de bord'!$B$10,'Tableau de bord'!K11='Tableau de bord'!$B$11,'Tableau de bord'!K11='Tableau de bord'!$B$12,'Tableau de bord'!K11='Tableau de bord'!$B$13),3,0) -> 3 | K7: =IF(OR('Tableau de bord'!L11='Tableau de bord'!$B$10,'Tableau de bord'!L11='Tableau de bord'!$B$11,'Tableau de bord'!L11='Tableau de bord'!$B$12,'Tableau de bord'!L11='Tableau de bord'!$B$13),3,0) -> 3 | L7: =IF(OR('Tableau de bord'!M11='Tableau de bord'!$B$10,'Tableau de bord'!M11='Tableau de bord'!$B$11,'Tableau de bord'!M11='Tableau de bord'!$B$12,'Tableau de bord'!M11='Tableau de bord'!$B$13),3,0) -> 0 | N7: ='Tableau de bord'!I2 -> mikeu | O7: ='Tableau de bord'!I35 -> 39 | Q7: ='OMFG Week'!B13 -> cpassimal | R7: ='OMFG Week'!G13 -> 702.9 | T7: ='Cologne 2016'!J2 -> NICO | U7: ='Cologne 2016'!J53 -> 69
A8: Kinguin | D8: =IF(OR('Tableau de bord'!E12='Tableau de bord'!$B$10,'Tableau de bord'!E12='Tableau de bord'!$B$11,'Tableau de bord'!E12='Tableau de bord'!$B$12,'Tableau de bord'!E12='Tableau de bord'!$B$13),3,0) -> 0 | E8: =IF(OR('Tableau de bord'!F12='Tableau de bord'!$B$10,'Tableau de bord'!F12='Tableau de bord'!$B$11,'Tableau de bord'!F12='Tableau de bord'!$B$12,'Tableau de bord'!F12='Tableau de bord'!$B$13),3,0) -> 0 | F8: =IF(OR('Tableau de bord'!G12='Tableau de bord'!$B$10,'Tableau de bord'!G12='Tableau de bord'!$B$11,'Tableau de bord'!G12='Tableau de bord'!$B$12,'Tableau de bord'!G12='Tableau de bord'!$B$13),3,0) -> 0 | G8: =IF(OR('Tableau de bord'!H12='Tableau de bord'!$B$10,'Tableau de bord'!H12='Tableau de bord'!$B$11,'Tableau de bord'!H12='Tableau de bord'!$B$12,'Tableau de bord'!H12='Tableau de bord'!$B$13),3,0) -> 0 | H8: =IF(OR('Tableau de bord'!I12='Tableau de bord'!$B$10,'Tableau de bord'!I12='Tableau de bord'!$B$11,'Tableau de bord'!I12='Tableau de bord'!$B$12,'Tableau de bord'!I12='Tableau de bord'!$B$13),3,0) -> 3 | I8: =IF(OR('Tableau de bord'!J12='Tableau de bord'!$B$10,'Tableau de bord'!J12='Tableau de bord'!$B$11,'Tableau de bord'!J12='Tableau de bord'!$B$12,'Tableau de bord'!J12='Tableau de bord'!$B$13),3,0) -> 0 | J8: =IF(OR('Tableau de bord'!K12='Tableau de bord'!$B$10,'Tableau de bord'!K12='Tableau de bord'!$B$11,'Tableau de bord'!K12='Tableau de bord'!$B$12,'Tableau de bord'!K12='Tableau de bord'!$B$13),3,0) -> 3 | K8: =IF(OR('Tableau de bord'!L12='Tableau de bord'!$B$10,'Tableau de bord'!L12='Tableau de bord'!$B$11,'Tableau de bord'!L12='Tableau de bord'!$B$12,'Tableau de bord'!L12='Tableau de bord'!$B$13),3,0) -> 0 | L8: =IF(OR('Tableau de bord'!M12='Tableau de bord'!$B$10,'Tableau de bord'!M12='Tableau de bord'!$B$11,'Tableau de bord'!M12='Tableau de bord'!$B$12,'Tableau de bord'!M12='Tableau de bord'!$B$13),3,0) -> 0 | N8: ='Tableau de bord'!H2 -> Budo | O8: ='Tableau de bord'!H35 -> 34 | Q8: ='OMFG Week'!B10 -> epicier | R8: ='OMFG Week'!G10 -> 525.2 | T8: ='Cologne 2016'!P2 -> PERF | U8: ='Cologne 2016'!P53 -> 65
A9: Flipside | D9: =IF(OR('Tableau de bord'!E13='Tableau de bord'!$B$10,'Tableau de bord'!E13='Tableau de bord'!$B$11,'Tableau de bord'!E13='Tableau de bord'!$B$12,'Tableau de bord'!E13='Tableau de bord'!$B$13),3,0) -> 3 | E9: =IF(OR('Tableau de bord'!F13='Tableau de bord'!$B$10,'Tableau de bord'!F13='Tableau de bord'!$B$11,'Tableau de bord'!F13='Tableau de bord'!$B$12,'Tableau de bord'!F13='Tableau de bord'!$B$13),3,0) -> 0 | F9: =IF(OR('Tableau de bord'!G13='Tableau de bord'!$B$10,'Tableau de bord'!G13='Tableau de bord'!$B$11,'Tableau de bord'!G13='Tableau de bord'!$B$12,'Tableau de bord'!G13='Tableau de bord'!$B$13),3,0) -> 0 | G9: =IF(OR('Tableau de bord'!H13='Tableau de bord'!$B$10,'Tableau de bord'!H13='Tableau de bord'!$B$11,'Tableau de bord'!H13='Tableau de bord'!$B$12,'Tableau de bord'!H13='Tableau de bord'!$B$13),3,0) -> 0 | H9: =IF(OR('Tableau de bord'!I13='Tableau de bord'!$B$10,'Tableau de bord'!I13='Tableau de bord'!$B$11,'Tableau de bord'!I13='Tableau de bord'!$B$12,'Tableau de bord'!I13='Tableau de bord'!$B$13),3,0) -> 0 | I9: =IF(OR('Tableau de bord'!J13='Tableau de bord'!$B$10,'Tableau de bord'!J13='Tableau de bord'!$B$11,'Tableau de bord'!J13='Tableau de bord'!$B$12,'Tableau de bord'!J13='Tableau de bord'!$B$13),3,0) -> 0 | J9: =IF(OR('Tableau de bord'!K13='Tableau de bord'!$B$10,'Tableau de bord'!K13='Tableau de bord'!$B$11,'Tableau de bord'!K13='Tableau de bord'!$B$12,'Tableau de bord'!K13='Tableau de bord'!$B$13),3,0) -> 0 | K9: =IF(OR('Tableau de bord'!L13='Tableau de bord'!$B$10,'Tableau de bord'!L13='Tableau de bord'!$B$11,'Tableau de bord'!L13='Tableau de bord'!$B$12,'Tableau de bord'!L13='Tableau de bord'!$B$13),3,0) -> 0 | L9: =IF(OR('Tableau de bord'!M13='Tableau de bord'!$B$10,'Tableau de bord'!M13='Tableau de bord'!$B$11,'Tableau de bord'!M13='Tableau de bord'!$B$12,'Tableau de bord'!M13='Tableau de bord'!$B$13),3,0) -> 0 | N9: ='Tableau de bord'!M2 -> doyl | O9: ='Tableau de bord'!M35 -> 31 | Q9: ='OMFG Week'!B12 -> doyl | R9: ='OMFG Week'!G12 -> 455 | T9: ='Cologne 2016'!F2 -> DOYL | U9: ='Cologne 2016'!F53 -> 58
A10: fnatic | C10: Quarts | D10: =IF('Tableau de bord'!E18='Tableau de bord'!$D18,8,IF(OR(LEFT('Tableau de bord'!E18,1)=LEFT('Tableau de bord'!$D18,1),RIGHT('Tableau de bord'!E18,1)=RIGHT('Tableau de bord'!$D18,1)),5,0)) -> 5 | E10: =IF('Tableau de bord'!F18='Tableau de bord'!$D18,8,IF(OR(LEFT('Tableau de bord'!F18,1)=LEFT('Tableau de bord'!$D18,1),RIGHT('Tableau de bord'!F18,1)=RIGHT('Tableau de bord'!$D18,1)),5,0)) -> 5 | F10: =IF('Tableau de bord'!G18='Tableau de bord'!$D18,8,IF(OR(LEFT('Tableau de bord'!G18,1)=LEFT('Tableau de bord'!$D18,1),RIGHT('Tableau de bord'!G18,1)=RIGHT('Tableau de bord'!$D18,1)),5,0)) -> 8 | G10: =IF('Tableau de bord'!H18='Tableau de bord'!$D18,8,IF(OR(LEFT('Tableau de bord'!H18,1)=LEFT('Tableau de bord'!$D18,1),RIGHT('Tableau de bord'!H18,1)=RIGHT('Tableau de bord'!$D18,1)),5,0)) -> 5 | H10: =IF('Tableau de bord'!I18='Tableau de bord'!$D18,8,IF(OR(LEFT('Tableau de bord'!I18,1)=LEFT('Tableau de bord'!$D18,1),RIGHT('Tableau de bord'!I18,1)=RIGHT('Tableau de bord'!$D18,1)),5,0)) -> 8 | I10: =IF('Tableau de bord'!J18='Tableau de bord'!$D18,8,IF(OR(LEFT('Tableau de bord'!J18,1)=LEFT('Tableau de bord'!$D18,1),RIGHT('Tableau de bord'!J18,1)=RIGHT('Tableau de bord'!$D18,1)),5,0)) -> 0 | J10: =IF('Tableau de bord'!K18='Tableau de bord'!$D18,8,IF(OR(LEFT('Tableau de bord'!K18,1)=LEFT('Tableau de bord'!$D18,1),RIGHT('Tableau de bord'!K18,1)=RIGHT('Tableau de bord'!$D18,1)),5,0)) -> 8 | K10: =IF('Tableau de bord'!L18='Tableau de bord'!$D18,8,IF(OR(LEFT('Tableau de bord'!L18,1)=LEFT('Tableau de bord'!$D18,1),RIGHT('Tableau de bord'!L18,1)=RIGHT('Tableau de bord'!$D18,1)),5,0)) -> 5 | L10: =IF('Tableau de bord'!M18='Tableau de bord'!$D18,8,IF(OR(LEFT('Tableau de bord'!M18,1)=LEFT('Tableau de bord'!$D18,1),RIGHT('Tableau de bord'!M18,1)=RIGHT('Tableau de bord'!$D18,1)),5,0)) -> 5 | N10: ='Tableau de bord'!J2 -> waz | O10: ='Tableau de bord'!J35 -> 21 | Q10: ='OMFG Week'!B7 -> pat | R10: ='OMFG Week'!G7 -> 316.8 | T10: ='Cologne 2016'!H2 -> DARKS | U10: ='Cologne 2016'!H53 -> 49
A11: NaVi | D11: =IF('Tableau de bord'!E19='Tableau de bord'!$D19,8,IF(OR(LEFT('Tableau de bord'!E19,1)=LEFT('Tableau de bord'!$D19,1),RIGHT('Tableau de bord'!E19,1)=RIGHT('Tableau de bord'!$D19,1)),5,0)) -> 8 | E11: =IF('Tableau de bord'!F19='Tableau de bord'!$D19,8,IF(OR(LEFT('Tableau de bord'!F19,1)=LEFT('Tableau de bord'!$D19,1),RIGHT('Tableau de bord'!F19,1)=RIGHT('Tableau de bord'!$D19,1)),5,0)) -> 5 | F11: =IF('Tableau de bord'!G19='Tableau de bord'!$D19,8,IF(OR(LEFT('Tableau de bord'!G19,1)=LEFT('Tableau de bord'!$D19,1),RIGHT('Tableau de bord'!G19,1)=RIGHT('Tableau de bord'!$D19,1)),5,0)) -> 5 | G11: =IF('Tableau de bord'!H19='Tableau de bord'!$D19,8,IF(OR(LEFT('Tableau de bord'!H19,1)=LEFT('Tableau de bord'!$D19,1),RIGHT('Tableau de bord'!H19,1)=RIGHT('Tableau de bord'!$D19,1)),5,0)) -> 8 | H11: =IF('Tableau de bord'!I19='Tableau de bord'!$D19,8,IF(OR(LEFT('Tableau de bord'!I19,1)=LEFT('Tableau de bord'!$D19,1),RIGHT('Tableau de bord'!I19,1)=RIGHT('Tableau de bord'!$D19,1)),5,0)) -> 5 | I11: =IF('Tableau de bord'!J19='Tableau de bord'!$D19,8,IF(OR(LEFT('Tableau de bord'!J19,1)=LEFT('Tableau de bord'!$D19,1),RIGHT('Tableau de bord'!J19,1)=RIGHT('Tableau de bord'!$D19,1)),5,0)) -> 0 | J11: =IF('Tableau de bord'!K19='Tableau de bord'!$D19,8,IF(OR(LEFT('Tableau de bord'!K19,1)=LEFT('Tableau de bord'!$D19,1),RIGHT('Tableau de bord'!K19,1)=RIGHT('Tableau de bord'!$D19,1)),5,0)) -> 5 | K11: =IF('Tableau de bord'!L19='Tableau de bord'!$D19,8,IF(OR(LEFT('Tableau de bord'!L19,1)=LEFT('Tableau de bord'!$D19,1),RIGHT('Tableau de bord'!L19,1)=RIGHT('Tableau de bord'!$D19,1)),5,0)) -> 8 | L11: =IF('Tableau de bord'!M19='Tableau de bord'!$D19,8,IF(OR(LEFT('Tableau de bord'!M19,1)=LEFT('Tableau de bord'!$D19,1),RIGHT('Tableau de bord'!M19,1)=RIGHT('Tableau de bord'!$D19,1)),5,0)) -> 0 | Q11: ='OMFG Week'!B11 -> quentin | R11: ='OMFG Week'!G11 -> 118.8 | T11: ='Cologne 2016'!K2 -> BUDO | U11: ='Cologne 2016'!K53 -> 38
A12: Titan | D12: =IF('Tableau de bord'!E20='Tableau de bord'!$D20,8,IF(OR(LEFT('Tableau de bord'!E20,1)=LEFT('Tableau de bord'!$D20,1),RIGHT('Tableau de bord'!E20,1)=RIGHT('Tableau de bord'!$D20,1)),5,0)) -> 0 | E12: =IF('Tableau de bord'!F20='Tableau de bord'!$D20,8,IF(OR(LEFT('Tableau de bord'!F20,1)=LEFT('Tableau de bord'!$D20,1),RIGHT('Tableau de bord'!F20,1)=RIGHT('Tableau de bord'!$D20,1)),5,0)) -> 0 | F12: =IF('Tableau de bord'!G20='Tableau de bord'!$D20,8,IF(OR(LEFT('Tableau de bord'!G20,1)=LEFT('Tableau de bord'!$D20,1),RIGHT('Tableau de bord'!G20,1)=RIGHT('Tableau de bord'!$D20,1)),5,0)) -> 5 | G12: =IF('Tableau de bord'!H20='Tableau de bord'!$D20,8,IF(OR(LEFT('Tableau de bord'!H20,1)=LEFT('Tableau de bord'!$D20,1),RIGHT('Tableau de bord'!H20,1)=RIGHT('Tableau de bord'!$D20,1)),5,0)) -> 0 | H12: =IF('Tableau de bord'!I20='Tableau de bord'!$D20,8,IF(OR(LEFT('Tableau de bord'!I20,1)=LEFT('Tableau de bord'!$D20,1),RIGHT('Tableau de bord'!I20,1)=RIGHT('Tableau de bord'!$D20,1)),5,0)) -> 0 | I12: =IF('Tableau de bord'!J20='Tableau de bord'!$D20,8,IF(OR(LEFT('Tableau de bord'!J20,1)=LEFT('Tableau de bord'!$D20,1),RIGHT('Tableau de bord'!J20,1)=RIGHT('Tableau de bord'!$D20,1)),5,0)) -> 0 | J12: =IF('Tableau de bord'!K20='Tableau de bord'!$D20,8,IF(OR(LEFT('Tableau de bord'!K20,1)=LEFT('Tableau de bord'!$D20,1),RIGHT('Tableau de bord'!K20,1)=RIGHT('Tableau de bord'!$D20,1)),5,0)) -> 0 | K12: =IF('Tableau de bord'!L20='Tableau de bord'!$D20,8,IF(OR(LEFT('Tableau de bord'!L20,1)=LEFT('Tableau de bord'!$D20,1),RIGHT('Tableau de bord'!L20,1)=RIGHT('Tableau de bord'!$D20,1)),5,0)) -> 5 | L12: =IF('Tableau de bord'!M20='Tableau de bord'!$D20,8,IF(OR(LEFT('Tableau de bord'!M20,1)=LEFT('Tableau de bord'!$D20,1),RIGHT('Tableau de bord'!M20,1)=RIGHT('Tableau de bord'!$D20,1)),5,0)) -> 8 | Q12: ='OMFG Week'!B14 -> axwell | R12: ='OMFG Week'!G14 -> 79.2 | T12: ='Cologne 2016'!G2 -> EPICIER | U12: ='Cologne 2016'!G53 -> 18
A13: eBettle | D13: =IF('Tableau de bord'!E21='Tableau de bord'!$D21,8,IF(OR(LEFT('Tableau de bord'!E21,1)=LEFT('Tableau de bord'!$D21,1),RIGHT('Tableau de bord'!E21,1)=RIGHT('Tableau de bord'!$D21,1)),5,0)) -> 8 | E13: =IF('Tableau de bord'!F21='Tableau de bord'!$D21,8,IF(OR(LEFT('Tableau de bord'!F21,1)=LEFT('Tableau de bord'!$D21,1),RIGHT('Tableau de bord'!F21,1)=RIGHT('Tableau de bord'!$D21,1)),5,0)) -> 8 | F13: =IF('Tableau de bord'!G21='Tableau de bord'!$D21,8,IF(OR(LEFT('Tableau de bord'!G21,1)=LEFT('Tableau de bord'!$D21,1),RIGHT('Tableau de bord'!G21,1)=RIGHT('Tableau de bord'!$D21,1)),5,0)) -> 8 | G13: =IF('Tableau de bord'!H21='Tableau de bord'!$D21,8,IF(OR(LEFT('Tableau de bord'!H21,1)=LEFT('Tableau de bord'!$D21,1),RIGHT('Tableau de bord'!H21,1)=RIGHT('Tableau de bord'!$D21,1)),5,0)) -> 8 | H13: =IF('Tableau de bord'!I21='Tableau de bord'!$D21,8,IF(OR(LEFT('Tableau de bord'!I21,1)=LEFT('Tableau de bord'!$D21,1),RIGHT('Tableau de bord'!I21,1)=RIGHT('Tableau de bord'!$D21,1)),5,0)) -> 5 | I13: =IF('Tableau de bord'!J21='Tableau de bord'!$D21,8,IF(OR(LEFT('Tableau de bord'!J21,1)=LEFT('Tableau de bord'!$D21,1),RIGHT('Tableau de bord'!J21,1)=RIGHT('Tableau de bord'!$D21,1)),5,0)) -> 8 | J13: =IF('Tableau de bord'!K21='Tableau de bord'!$D21,8,IF(OR(LEFT('Tableau de bord'!K21,1)=LEFT('Tableau de bord'!$D21,1),RIGHT('Tableau de bord'!K21,1)=RIGHT('Tableau de bord'!$D21,1)),5,0)) -> 8 | K13: =IF('Tableau de bord'!L21='Tableau de bord'!$D21,8,IF(OR(LEFT('Tableau de bord'!L21,1)=LEFT('Tableau de bord'!$D21,1),RIGHT('Tableau de bord'!L21,1)=RIGHT('Tableau de bord'!$D21,1)),5,0)) -> 8 | L13: =IF('Tableau de bord'!M21='Tableau de bord'!$D21,8,IF(OR(LEFT('Tableau de bord'!M21,1)=LEFT('Tableau de bord'!$D21,1),RIGHT('Tableau de bord'!M21,1)=RIGHT('Tableau de bord'!$D21,1)),5,0)) -> 8 | Q13: ='OMFG Week'!B15 -> 0 | R13: ='OMFG Week'!G15 -> 0
A14: VP | C14: Demies | D14: =IF('Tableau de bord'!E26='Tableau de bord'!$D26,11,IF(OR(LEFT('Tableau de bord'!E26,1)=LEFT('Tableau de bord'!$D26,1),RIGHT('Tableau de bord'!E26,1)=RIGHT('Tableau de bord'!$D26,1)),7,0)) -> 0 | E14: =IF('Tableau de bord'!F26='Tableau de bord'!$D26,11,IF(OR(LEFT('Tableau de bord'!F26,1)=LEFT('Tableau de bord'!$D26,1),RIGHT('Tableau de bord'!F26,1)=RIGHT('Tableau de bord'!$D26,1)),7,0)) -> 0 | F14: =IF('Tableau de bord'!G26='Tableau de bord'!$D26,11,IF(OR(LEFT('Tableau de bord'!G26,1)=LEFT('Tableau de bord'!$D26,1),RIGHT('Tableau de bord'!G26,1)=RIGHT('Tableau de bord'!$D26,1)),7,0)) -> 0 | G14: =IF('Tableau de bord'!H26='Tableau de bord'!$D26,11,IF(OR(LEFT('Tableau de bord'!H26,1)=LEFT('Tableau de bord'!$D26,1),RIGHT('Tableau de bord'!H26,1)=RIGHT('Tableau de bord'!$D26,1)),7,0)) -> 0 | H14: =IF('Tableau de bord'!I26='Tableau de bord'!$D26,11,IF(OR(LEFT('Tableau de bord'!I26,1)=LEFT('Tableau de bord'!$D26,1),RIGHT('Tableau de bord'!I26,1)=RIGHT('Tableau de bord'!$D26,1)),7,0)) -> 0 | I14: =IF('Tableau de bord'!J26='Tableau de bord'!$D26,11,IF(OR(LEFT('Tableau de bord'!J26,1)=LEFT('Tableau de bord'!$D26,1),RIGHT('Tableau de bord'!J26,1)=RIGHT('Tableau de bord'!$D26,1)),7,0)) -> 0 | J14: =IF('Tableau de bord'!K26='Tableau de bord'!$D26,11,IF(OR(LEFT('Tableau de bord'!K26,1)=LEFT('Tableau de bord'!$D26,1),RIGHT('Tableau de bord'!K26,1)=RIGHT('Tableau de bord'!$D26,1)),7,0)) -> 0 | K14: =IF('Tableau de bord'!L26='Tableau de bord'!$D26,11,IF(OR(LEFT('Tableau de bord'!L26,1)=LEFT('Tableau de bord'!$D26,1),RIGHT('Tableau de bord'!L26,1)=RIGHT('Tableau de bord'!$D26,1)),7,0)) -> 0 | L14: =IF('Tableau de bord'!M26='Tableau de bord'!$D26,11,IF(OR(LEFT('Tableau de bord'!M26,1)=LEFT('Tableau de bord'!$D26,1),RIGHT('Tableau de bord'!M26,1)=RIGHT('Tableau de bord'!$D26,1)),7,0)) -> 0 | Q14: ='OMFG Week'!B16 -> 0 | R14: ='OMFG Week'!G16 -> 0
A15: mouz | D15: =IF('Tableau de bord'!E27='Tableau de bord'!$D27,11,IF(OR(LEFT('Tableau de bord'!E27,1)=LEFT('Tableau de bord'!$D27,1),RIGHT('Tableau de bord'!E27,1)=RIGHT('Tableau de bord'!$D27,1)),7,0)) -> 0 | E15: =IF('Tableau de bord'!F27='Tableau de bord'!$D27,11,IF(OR(LEFT('Tableau de bord'!F27,1)=LEFT('Tableau de bord'!$D27,1),RIGHT('Tableau de bord'!F27,1)=RIGHT('Tableau de bord'!$D27,1)),7,0)) -> 0 | F15: =IF('Tableau de bord'!G27='Tableau de bord'!$D27,11,IF(OR(LEFT('Tableau de bord'!G27,1)=LEFT('Tableau de bord'!$D27,1),RIGHT('Tableau de bord'!G27,1)=RIGHT('Tableau de bord'!$D27,1)),7,0)) -> 0 | G15: =IF('Tableau de bord'!H27='Tableau de bord'!$D27,11,IF(OR(LEFT('Tableau de bord'!H27,1)=LEFT('Tableau de bord'!$D27,1),RIGHT('Tableau de bord'!H27,1)=RIGHT('Tableau de bord'!$D27,1)),7,0)) -> 0 | H15: =IF('Tableau de bord'!I27='Tableau de bord'!$D27,11,IF(OR(LEFT('Tableau de bord'!I27,1)=LEFT('Tableau de bord'!$D27,1),RIGHT('Tableau de bord'!I27,1)=RIGHT('Tableau de bord'!$D27,1)),7,0)) -> 0 | I15: =IF('Tableau de bord'!J27='Tableau de bord'!$D27,11,IF(OR(LEFT('Tableau de bord'!J27,1)=LEFT('Tableau de bord'!$D27,1),RIGHT('Tableau de bord'!J27,1)=RIGHT('Tableau de bord'!$D27,1)),7,0)) -> 0 | J15: =IF('Tableau de bord'!K27='Tableau de bord'!$D27,11,IF(OR(LEFT('Tableau de bord'!K27,1)=LEFT('Tableau de bord'!$D27,1),RIGHT('Tableau de bord'!K27,1)=RIGHT('Tableau de bord'!$D27,1)),7,0)) -> 0 | K15: =IF('Tableau de bord'!L27='Tableau de bord'!$D27,11,IF(OR(LEFT('Tableau de bord'!L27,1)=LEFT('Tableau de bord'!$D27,1),RIGHT('Tableau de bord'!L27,1)=RIGHT('Tableau de bord'!$D27,1)),7,0)) -> 0 | L15: =IF('Tableau de bord'!M27='Tableau de bord'!$D27,11,IF(OR(LEFT('Tableau de bord'!M27,1)=LEFT('Tableau de bord'!$D27,1),RIGHT('Tableau de bord'!M27,1)=RIGHT('Tableau de bord'!$D27,1)),7,0)) -> 0 | Q15: ='OMFG Week'!B17 -> 0 | R15: ='OMFG Week'!G17 -> 0
A16: C9 | C16: Finale | D16: =IF('Tableau de bord'!E32='Tableau de bord'!$D32,15,IF(OR(LEFT('Tableau de bord'!E32,1)=LEFT('Tableau de bord'!$D32,1),RIGHT('Tableau de bord'!E32,1)=RIGHT('Tableau de bord'!$D32,1)),10,0)) -> 15 | E16: =IF('Tableau de bord'!F32='Tableau de bord'!$D32,15,IF(OR(LEFT('Tableau de bord'!F32,1)=LEFT('Tableau de bord'!$D32,1),RIGHT('Tableau de bord'!F32,1)=RIGHT('Tableau de bord'!$D32,1)),10,0)) -> 0 | F16: =IF('Tableau de bord'!G32='Tableau de bord'!$D32,15,IF(OR(LEFT('Tableau de bord'!G32,1)=LEFT('Tableau de bord'!$D32,1),RIGHT('Tableau de bord'!G32,1)=RIGHT('Tableau de bord'!$D32,1)),10,0)) -> 0 | G16: =IF('Tableau de bord'!H32='Tableau de bord'!$D32,15,IF(OR(LEFT('Tableau de bord'!H32,1)=LEFT('Tableau de bord'!$D32,1),RIGHT('Tableau de bord'!H32,1)=RIGHT('Tableau de bord'!$D32,1)),10,0)) -> 0 | H16: =IF('Tableau de bord'!I32='Tableau de bord'!$D32,15,IF(OR(LEFT('Tableau de bord'!I32,1)=LEFT('Tableau de bord'!$D32,1),RIGHT('Tableau de bord'!I32,1)=RIGHT('Tableau de bord'!$D32,1)),10,0)) -> 0 | I16: =IF('Tableau de bord'!J32='Tableau de bord'!$D32,15,IF(OR(LEFT('Tableau de bord'!J32,1)=LEFT('Tableau de bord'!$D32,1),RIGHT('Tableau de bord'!J32,1)=RIGHT('Tableau de bord'!$D32,1)),10,0)) -> 0 | J16: =IF('Tableau de bord'!K32='Tableau de bord'!$D32,15,IF(OR(LEFT('Tableau de bord'!K32,1)=LEFT('Tableau de bord'!$D32,1),RIGHT('Tableau de bord'!K32,1)=RIGHT('Tableau de bord'!$D32,1)),10,0)) -> 0 | K16: =IF('Tableau de bord'!L32='Tableau de bord'!$D32,15,IF(OR(LEFT('Tableau de bord'!L32,1)=LEFT('Tableau de bord'!$D32,1),RIGHT('Tableau de bord'!L32,1)=RIGHT('Tableau de bord'!$D32,1)),10,0)) -> 0 | L16: =IF('Tableau de bord'!M32='Tableau de bord'!$D32,15,IF(OR(LEFT('Tableau de bord'!M32,1)=LEFT('Tableau de bord'!$D32,1),RIGHT('Tableau de bord'!M32,1)=RIGHT('Tableau de bord'!$D32,1)),10,0)) -> 0 | Q16: ='OMFG Week'!B18 -> 0 | R16: ='OMFG Week'!G18 -> 0
A17: Immunity | D17: =IF('Tableau de bord'!$D$33='Tableau de bord'!E33,4,0) -> 0 | E17: =IF('Tableau de bord'!$D$33='Tableau de bord'!F33,4,0) -> 0 | F17: =IF('Tableau de bord'!$D$33='Tableau de bord'!G33,4,0) -> 0 | G17: =IF('Tableau de bord'!$D$33='Tableau de bord'!H33,4,0) -> 0 | H17: =IF('Tableau de bord'!$D$33='Tableau de bord'!I33,4,0) -> 0 | I17: =IF('Tableau de bord'!$D$33='Tableau de bord'!J33,4,0) -> 0 | J17: =IF('Tableau de bord'!$D$33='Tableau de bord'!K33,4,0) -> 0 | K17: =IF('Tableau de bord'!$D$33='Tableau de bord'!L33,4,0) -> 0 | L17: =IF('Tableau de bord'!$D$33='Tableau de bord'!M33,4,0) -> 0 | Q17: ='OMFG Week'!B19 -> 0 | R17: ='OMFG Week'!G19 -> 0
D20: ='Cologne 2016'!F2 -> DOYL | E20: ='Cologne 2016'!G2 -> EPICIER | F20: ='Cologne 2016'!H2 -> DARKS | G20: ='Cologne 2016'!I2 -> KEVNAY | H20: ='Cologne 2016'!J2 -> NICO | I20: ='Cologne 2016'!K2 -> BUDO | J20: ='Cologne 2016'!L2 -> VENTUR | K20: ='Cologne 2016'!M2 -> MIKEU | L20: ='Cologne 2016'!N2 -> CPASSIMAL | M20: ='Cologne 2016'!O2 -> DOUZER | N20: ='Cologne 2016'!P2 -> PERF | O20: ='Cologne 2016'!Q2 -> 0 | P20: ='Cologne 2016'!R2 -> 0 | Q20: ='Cologne 2016'!S2 -> 0 | R20: ='Cologne 2016'!T2 -> 0
C21: POULES | D21: =IF('Cologne 2016'!$E3='Cologne 2016'!F3,3,0) -> 3 | E21: =IF('Cologne 2016'!$E3='Cologne 2016'!G3,3,0) -> 3 | F21: =IF('Cologne 2016'!$E3='Cologne 2016'!H3,3,0) -> 3 | G21: =IF('Cologne 2016'!$E3='Cologne 2016'!I3,3,0) -> 3 | H21: =IF('Cologne 2016'!$E3='Cologne 2016'!J3,3,0) -> 3 | I21: =IF('Cologne 2016'!$E3='Cologne 2016'!K3,3,0) -> 3 | J21: =IF('Cologne 2016'!$E3='Cologne 2016'!L3,3,0) -> 3 | K21: =IF('Cologne 2016'!$E3='Cologne 2016'!M3,3,0) -> 3 | L21: =IF('Cologne 2016'!$E3='Cologne 2016'!N3,3,0) -> 3 | M21: =IF('Cologne 2016'!$E3='Cologne 2016'!O3,3,0) -> 3 | N21: =IF('Cologne 2016'!$E3='Cologne 2016'!P3,3,0) -> 3 | O21: =IF('Cologne 2016'!$E3='Cologne 2016'!Q3,3,0) -> 0 | P21: =IF('Cologne 2016'!$E3='Cologne 2016'!R3,3,0) -> 0 | Q21: =IF('Cologne 2016'!$E3='Cologne 2016'!S3,3,0) -> 0 | R21: =IF('Cologne 2016'!$E3='Cologne 2016'!T3,3,0) -> 0
A22: Résultats | D22: =IF('Cologne 2016'!$E4='Cologne 2016'!F4,3,0) -> 3 | E22: =IF('Cologne 2016'!$E4='Cologne 2016'!G4,3,0) -> 0 | F22: =IF('Cologne 2016'!$E4='Cologne 2016'!H4,3,0) -> 0 | G22: =IF('Cologne 2016'!$E4='Cologne 2016'!I4,3,0) -> 0 | H22: =IF('Cologne 2016'!$E4='Cologne 2016'!J4,3,0) -> 0 | I22: =IF('Cologne 2016'!$E4='Cologne 2016'!K4,3,0) -> 0 | J22: =IF('Cologne 2016'!$E4='Cologne 2016'!L4,3,0) -> 0 | K22: =IF('Cologne 2016'!$E4='Cologne 2016'!M4,3,0) -> 3 | L22: =IF('Cologne 2016'!$E4='Cologne 2016'!N4,3,0) -> 3 | M22: =IF('Cologne 2016'!$E4='Cologne 2016'!O4,3,0) -> 3 | N22: =IF('Cologne 2016'!$E4='Cologne 2016'!P4,3,0) -> 0 | O22: =IF('Cologne 2016'!$E4='Cologne 2016'!Q4,3,0) -> 0 | P22: =IF('Cologne 2016'!$E4='Cologne 2016'!R4,3,0) -> 0 | Q22: =IF('Cologne 2016'!$E4='Cologne 2016'!S4,3,0) -> 0 | R22: =IF('Cologne 2016'!$E4='Cologne 2016'!T4,3,0) -> 0
A23: 2 - 0 | B23: 1 - 0 | D23: =IF('Cologne 2016'!$E5='Cologne 2016'!F5,3,0) -> 0 | E23: =IF('Cologne 2016'!$E5='Cologne 2016'!G5,3,0) -> 0 | F23: =IF('Cologne 2016'!$E5='Cologne 2016'!H5,3,0) -> 0 | G23: =IF('Cologne 2016'!$E5='Cologne 2016'!I5,3,0) -> 0 | H23: =IF('Cologne 2016'!$E5='Cologne 2016'!J5,3,0) -> 0 | I23: =IF('Cologne 2016'!$E5='Cologne 2016'!K5,3,0) -> 0 | J23: =IF('Cologne 2016'!$E5='Cologne 2016'!L5,3,0) -> 0 | K23: =IF('Cologne 2016'!$E5='Cologne 2016'!M5,3,0) -> 0 | L23: =IF('Cologne 2016'!$E5='Cologne 2016'!N5,3,0) -> 0 | M23: =IF('Cologne 2016'!$E5='Cologne 2016'!O5,3,0) -> 0 | N23: =IF('Cologne 2016'!$E5='Cologne 2016'!P5,3,0) -> 0 | O23: =IF('Cologne 2016'!$E5='Cologne 2016'!Q5,3,0) -> 0 | P23: =IF('Cologne 2016'!$E5='Cologne 2016'!R5,3,0) -> 0 | Q23: =IF('Cologne 2016'!$E5='Cologne 2016'!S5,3,0) -> 0 | R23: =IF('Cologne 2016'!$E5='Cologne 2016'!T5,3,0) -> 0
A24: 2 - 1 | B24: 0 - 1 | D24: =IF('Cologne 2016'!$E6='Cologne 2016'!F6,3,0) -> 3 | E24: =IF('Cologne 2016'!$E6='Cologne 2016'!G6,3,0) -> 0 | F24: =IF('Cologne 2016'!$E6='Cologne 2016'!H6,3,0) -> 0 | G24: =IF('Cologne 2016'!$E6='Cologne 2016'!I6,3,0) -> 3 | H24: =IF('Cologne 2016'!$E6='Cologne 2016'!J6,3,0) -> 0 | I24: =IF('Cologne 2016'!$E6='Cologne 2016'!K6,3,0) -> 3 | J24: =IF('Cologne 2016'!$E6='Cologne 2016'!L6,3,0) -> 3 | K24: =IF('Cologne 2016'!$E6='Cologne 2016'!M6,3,0) -> 3 | L24: =IF('Cologne 2016'!$E6='Cologne 2016'!N6,3,0) -> 0 | M24: =IF('Cologne 2016'!$E6='Cologne 2016'!O6,3,0) -> 3 | N24: =IF('Cologne 2016'!$E6='Cologne 2016'!P6,3,0) -> 3 | O24: =IF('Cologne 2016'!$E6='Cologne 2016'!Q6,3,0) -> 0 | P24: =IF('Cologne 2016'!$E6='Cologne 2016'!R6,3,0) -> 0 | Q24: =IF('Cologne 2016'!$E6='Cologne 2016'!S6,3,0) -> 0 | R24: =IF('Cologne 2016'!$E6='Cologne 2016'!T6,3,0) -> 0
A25: 1 - 2 | B25: 0 - 0 | D25: =IF('Cologne 2016'!$E7='Cologne 2016'!F7,4,IF(OR(LEFT('Cologne 2016'!$E7,1)=LEFT('Cologne 2016'!F7,1),RIGHT('Cologne 2016'!$E7,1)=RIGHT('Cologne 2016'!F7,1)),3,0)) -> 4 | E25: =IF('Cologne 2016'!$E7='Cologne 2016'!G7,4,IF(OR(LEFT('Cologne 2016'!$E7,1)=LEFT('Cologne 2016'!G7,1),RIGHT('Cologne 2016'!$E7,1)=RIGHT('Cologne 2016'!G7,1)),3,0)) -> 0 | F25: =IF('Cologne 2016'!$E7='Cologne 2016'!H7,4,IF(OR(LEFT('Cologne 2016'!$E7,1)=LEFT('Cologne 2016'!H7,1),RIGHT('Cologne 2016'!$E7,1)=RIGHT('Cologne 2016'!H7,1)),3,0)) -> 4 | G25: =IF('Cologne 2016'!$E7='Cologne 2016'!I7,4,IF(OR(LEFT('Cologne 2016'!$E7,1)=LEFT('Cologne 2016'!I7,1),RIGHT('Cologne 2016'!$E7,1)=RIGHT('Cologne 2016'!I7,1)),3,0)) -> 4 | H25: =IF('Cologne 2016'!$E7='Cologne 2016'!J7,4,IF(OR(LEFT('Cologne 2016'!$E7,1)=LEFT('Cologne 2016'!J7,1),RIGHT('Cologne 2016'!$E7,1)=RIGHT('Cologne 2016'!J7,1)),3,0)) -> 4 | I25: =IF('Cologne 2016'!$E7='Cologne 2016'!K7,4,IF(OR(LEFT('Cologne 2016'!$E7,1)=LEFT('Cologne 2016'!K7,1),RIGHT('Cologne 2016'!$E7,1)=RIGHT('Cologne 2016'!K7,1)),3,0)) -> 0 | J25: =IF('Cologne 2016'!$E7='Cologne 2016'!L7,4,IF(OR(LEFT('Cologne 2016'!$E7,1)=LEFT('Cologne 2016'!L7,1),RIGHT('Cologne 2016'!$E7,1)=RIGHT('Cologne 2016'!L7,1)),3,0)) -> 3 | K25: =IF('Cologne 2016'!$E7='Cologne 2016'!M7,4,IF(OR(LEFT('Cologne 2016'!$E7,1)=LEFT('Cologne 2016'!M7,1),RIGHT('Cologne 2016'!$E7,1)=RIGHT('Cologne 2016'!M7,1)),3,0)) -> 3 | L25: =IF('Cologne 2016'!$E7='Cologne 2016'!N7,4,IF(OR(LEFT('Cologne 2016'!$E7,1)=LEFT('Cologne 2016'!N7,1),RIGHT('Cologne 2016'!$E7,1)=RIGHT('Cologne 2016'!N7,1)),3,0)) -> 4 | M25: =IF('Cologne 2016'!$E7='Cologne 2016'!O7,4,IF(OR(LEFT('Cologne 2016'!$E7,1)=LEFT('Cologne 2016'!O7,1),RIGHT('Cologne 2016'!$E7,1)=RIGHT('Cologne 2016'!O7,1)),3,0)) -> 0 | N25: =IF('Cologne 2016'!$E7='Cologne 2016'!P7,4,IF(OR(LEFT('Cologne 2016'!$E7,1)=LEFT('Cologne 2016'!P7,1),RIGHT('Cologne 2016'!$E7,1)=RIGHT('Cologne 2016'!P7,1)),3,0)) -> 0 | O25: =IF('Cologne 2016'!$E7='Cologne 2016'!Q7,4,IF(OR(LEFT('Cologne 2016'!$E7,1)=LEFT('Cologne 2016'!Q7,1),RIGHT('Cologne 2016'!$E7,1)=RIGHT('Cologne 2016'!Q7,1)),3,0)) -> 0 | P25: =IF('Cologne 2016'!$E7='Cologne 2016'!R7,4,IF(OR(LEFT('Cologne 2016'!$E7,1)=LEFT('Cologne 2016'!R7,1),RIGHT('Cologne 2016'!$E7,1)=RIGHT('Cologne 2016'!R7,1)),3,0)) -> 0 | Q25: =IF('Cologne 2016'!$E7='Cologne 2016'!S7,4,IF(OR(LEFT('Cologne 2016'!$E7,1)=LEFT('Cologne 2016'!S7,1),RIGHT('Cologne 2016'!$E7,1)=RIGHT('Cologne 2016'!S7,1)),3,0)) -> 0 | R25: =IF('Cologne 2016'!$E7='Cologne 2016'!T7,4,IF(OR(LEFT('Cologne 2016'!$E7,1)=LEFT('Cologne 2016'!T7,1),RIGHT('Cologne 2016'!$E7,1)=RIGHT('Cologne 2016'!T7,1)),3,0)) -> 0
A26: 0 - 2 | D26: =IF('Cologne 2016'!$E8='Cologne 2016'!F8,3,0) -> 3 | E26: =IF('Cologne 2016'!$E8='Cologne 2016'!G8,3,0) -> 0 | F26: =IF('Cologne 2016'!$E8='Cologne 2016'!H8,3,0) -> 3 | G26: =IF('Cologne 2016'!$E8='Cologne 2016'!I8,3,0) -> 3 | H26: =IF('Cologne 2016'!$E8='Cologne 2016'!J8,3,0) -> 3 | I26: =IF('Cologne 2016'!$E8='Cologne 2016'!K8,3,0) -> 3 | J26: =IF('Cologne 2016'!$E8='Cologne 2016'!L8,3,0) -> 3 | K26: =IF('Cologne 2016'!$E8='Cologne 2016'!M8,3,0) -> 3 | L26: =IF('Cologne 2016'!$E8='Cologne 2016'!N8,3,0) -> 3 | M26: =IF('Cologne 2016'!$E8='Cologne 2016'!O8,3,0) -> 3 | N26: =IF('Cologne 2016'!$E8='Cologne 2016'!P8,3,0) -> 3 | O26: =IF('Cologne 2016'!$E8='Cologne 2016'!Q8,3,0) -> 0 | P26: =IF('Cologne 2016'!$E8='Cologne 2016'!R8,3,0) -> 0 | Q26: =IF('Cologne 2016'!$E8='Cologne 2016'!S8,3,0) -> 0 | R26: =IF('Cologne 2016'!$E8='Cologne 2016'!T8,3,0) -> 0
A27: 0 - 0 | D27: =IF('Cologne 2016'!$E9='Cologne 2016'!F9,3,0) -> 3 | E27: =IF('Cologne 2016'!$E9='Cologne 2016'!G9,3,0) -> 3 | F27: =IF('Cologne 2016'!$E9='Cologne 2016'!H9,3,0) -> 0 | G27: =IF('Cologne 2016'!$E9='Cologne 2016'!I9,3,0) -> 3 | H27: =IF('Cologne 2016'!$E9='Cologne 2016'!J9,3,0) -> 3 | I27: =IF('Cologne 2016'!$E9='Cologne 2016'!K9,3,0) -> 3 | J27: =IF('Cologne 2016'!$E9='Cologne 2016'!L9,3,0) -> 3 | K27: =IF('Cologne 2016'!$E9='Cologne 2016'!M9,3,0) -> 3 | L27: =IF('Cologne 2016'!$E9='Cologne 2016'!N9,3,0) -> 3 | M27: =IF('Cologne 2016'!$E9='Cologne 2016'!O9,3,0) -> 3 | N27: =IF('Cologne 2016'!$E9='Cologne 2016'!P9,3,0) -> 3 | O27: =IF('Cologne 2016'!$E9='Cologne 2016'!Q9,3,0) -> 0 | P27: =IF('Cologne 2016'!$E9='Cologne 2016'!R9,3,0) -> 0 | Q27: =IF('Cologne 2016'!$E9='Cologne 2016'!S9,3,0) -> 0 | R27: =IF('Cologne 2016'!$E9='Cologne 2016'!T9,3,0) -> 0
D28: =IF('Cologne 2016'!$E10='Cologne 2016'!F10,3,0) -> 0 | E28: =IF('Cologne 2016'!$E10='Cologne 2016'!G10,3,0) -> 3 | F28: =IF('Cologne 2016'!$E10='Cologne 2016'!H10,3,0) -> 3 | G28: =IF('Cologne 2016'!$E10='Cologne 2016'!I10,3,0) -> 3 | H28: =IF('Cologne 2016'!$E10='Cologne 2016'!J10,3,0) -> 0 | I28: =IF('Cologne 2016'!$E10='Cologne 2016'!K10,3,0) -> 0 | J28: =IF('Cologne 2016'!$E10='Cologne 2016'!L10,3,0) -> 0 | K28: =IF('Cologne 2016'!$E10='Cologne 2016'!M10,3,0) -> 0 | L28: =IF('Cologne 2016'!$E10='Cologne 2016'!N10,3,0) -> 3 | M28: =IF('Cologne 2016'!$E10='Cologne 2016'!O10,3,0) -> 3 | N28: =IF('Cologne 2016'!$E10='Cologne 2016'!P10,3,0) -> 3 | O28: =IF('Cologne 2016'!$E10='Cologne 2016'!Q10,3,0) -> 0 | P28: =IF('Cologne 2016'!$E10='Cologne 2016'!R10,3,0) -> 0 | Q28: =IF('Cologne 2016'!$E10='Cologne 2016'!S10,3,0) -> 0 | R28: =IF('Cologne 2016'!$E10='Cologne 2016'!T10,3,0) -> 0
D29: =IF('Cologne 2016'!$E11='Cologne 2016'!F11,3,0) -> 3 | E29: =IF('Cologne 2016'!$E11='Cologne 2016'!G11,3,0) -> 3 | F29: =IF('Cologne 2016'!$E11='Cologne 2016'!H11,3,0) -> 0 | G29: =IF('Cologne 2016'!$E11='Cologne 2016'!I11,3,0) -> 3 | H29: =IF('Cologne 2016'!$E11='Cologne 2016'!J11,3,0) -> 0 | I29: =IF('Cologne 2016'!$E11='Cologne 2016'!K11,3,0) -> 0 | J29: =IF('Cologne 2016'!$E11='Cologne 2016'!L11,3,0) -> 0 | K29: =IF('Cologne 2016'!$E11='Cologne 2016'!M11,3,0) -> 3 | L29: =IF('Cologne 2016'!$E11='Cologne 2016'!N11,3,0) -> 3 | M29: =IF('Cologne 2016'!$E11='Cologne 2016'!O11,3,0) -> 3 | N29: =IF('Cologne 2016'!$E11='Cologne 2016'!P11,3,0) -> 3 | O29: =IF('Cologne 2016'!$E11='Cologne 2016'!Q11,3,0) -> 0 | P29: =IF('Cologne 2016'!$E11='Cologne 2016'!R11,3,0) -> 0 | Q29: =IF('Cologne 2016'!$E11='Cologne 2016'!S11,3,0) -> 0 | R29: =IF('Cologne 2016'!$E11='Cologne 2016'!T11,3,0) -> 0
D30: =IF('Cologne 2016'!$E12='Cologne 2016'!F12,4,IF(OR(LEFT('Cologne 2016'!$E12,1)=LEFT('Cologne 2016'!F12,1),RIGHT('Cologne 2016'!$E12,1)=RIGHT('Cologne 2016'!F12,1)),3,0)) -> 0 | E30: =IF('Cologne 2016'!$E12='Cologne 2016'!G12,4,IF(OR(LEFT('Cologne 2016'!$E12,1)=LEFT('Cologne 2016'!G12,1),RIGHT('Cologne 2016'!$E12,1)=RIGHT('Cologne 2016'!G12,1)),3,0)) -> 0 | F30: =IF('Cologne 2016'!$E12='Cologne 2016'!H12,4,IF(OR(LEFT('Cologne 2016'!$E12,1)=LEFT('Cologne 2016'!H12,1),RIGHT('Cologne 2016'!$E12,1)=RIGHT('Cologne 2016'!H12,1)),3,0)) -> 0 | G30: =IF('Cologne 2016'!$E12='Cologne 2016'!I12,4,IF(OR(LEFT('Cologne 2016'!$E12,1)=LEFT('Cologne 2016'!I12,1),RIGHT('Cologne 2016'!$E12,1)=RIGHT('Cologne 2016'!I12,1)),3,0)) -> 0 | H30: =IF('Cologne 2016'!$E12='Cologne 2016'!J12,4,IF(OR(LEFT('Cologne 2016'!$E12,1)=LEFT('Cologne 2016'!J12,1),RIGHT('Cologne 2016'!$E12,1)=RIGHT('Cologne 2016'!J12,1)),3,0)) -> 0 | I30: =IF('Cologne 2016'!$E12='Cologne 2016'!K12,4,IF(OR(LEFT('Cologne 2016'!$E12,1)=LEFT('Cologne 2016'!K12,1),RIGHT('Cologne 2016'!$E12,1)=RIGHT('Cologne 2016'!K12,1)),3,0)) -> 0 | J30: =IF('Cologne 2016'!$E12='Cologne 2016'!L12,4,IF(OR(LEFT('Cologne 2016'!$E12,1)=LEFT('Cologne 2016'!L12,1),RIGHT('Cologne 2016'!$E12,1)=RIGHT('Cologne 2016'!L12,1)),3,0)) -> 0 | K30: =IF('Cologne 2016'!$E12='Cologne 2016'!M12,4,IF(OR(LEFT('Cologne 2016'!$E12,1)=LEFT('Cologne 2016'!M12,1),RIGHT('Cologne 2016'!$E12,1)=RIGHT('Cologne 2016'!M12,1)),3,0)) -> 0 | L30: =IF('Cologne 2016'!$E12='Cologne 2016'!N12,4,IF(OR(LEFT('Cologne 2016'!$E12,1)=LEFT('Cologne 2016'!N12,1),RIGHT('Cologne 2016'!$E12,1)=RIGHT('Cologne 2016'!N12,1)),3,0)) -> 0 | M30: =IF('Cologne 2016'!$E12='Cologne 2016'!O12,4,IF(OR(LEFT('Cologne 2016'!$E12,1)=LEFT('Cologne 2016'!O12,1),RIGHT('Cologne 2016'!$E12,1)=RIGHT('Cologne 2016'!O12,1)),3,0)) -> 0 | N30: =IF('Cologne 2016'!$E12='Cologne 2016'!P12,4,IF(OR(LEFT('Cologne 2016'!$E12,1)=LEFT('Cologne 2016'!P12,1),RIGHT('Cologne 2016'!$E12,1)=RIGHT('Cologne 2016'!P12,1)),3,0)) -> 0 | O30: =IF('Cologne 2016'!$E12='Cologne 2016'!Q12,4,IF(OR(LEFT('Cologne 2016'!$E12,1)=LEFT('Cologne 2016'!Q12,1),RIGHT('Cologne 2016'!$E12,1)=RIGHT('Cologne 2016'!Q12,1)),3,0)) -> 0 | P30: =IF('Cologne 2016'!$E12='Cologne 2016'!R12,4,IF(OR(LEFT('Cologne 2016'!$E12,1)=LEFT('Cologne 2016'!R12,1),RIGHT('Cologne 2016'!$E12,1)=RIGHT('Cologne 2016'!R12,1)),3,0)) -> 0 | Q30: =IF('Cologne 2016'!$E12='Cologne 2016'!S12,4,IF(OR(LEFT('Cologne 2016'!$E12,1)=LEFT('Cologne 2016'!S12,1),RIGHT('Cologne 2016'!$E12,1)=RIGHT('Cologne 2016'!S12,1)),3,0)) -> 0 | R30: =IF('Cologne 2016'!$E12='Cologne 2016'!T12,4,IF(OR(LEFT('Cologne 2016'!$E12,1)=LEFT('Cologne 2016'!T12,1),RIGHT('Cologne 2016'!$E12,1)=RIGHT('Cologne 2016'!T12,1)),3,0)) -> 0
A31: Astralis | D31: =IF('Cologne 2016'!$E13='Cologne 2016'!F13,3,0) -> 3 | E31: =IF('Cologne 2016'!$E13='Cologne 2016'!G13,3,0) -> 0 | F31: =IF('Cologne 2016'!$E13='Cologne 2016'!H13,3,0) -> 0 | G31: =IF('Cologne 2016'!$E13='Cologne 2016'!I13,3,0) -> 3 | H31: =IF('Cologne 2016'!$E13='Cologne 2016'!J13,3,0) -> 0 | I31: =IF('Cologne 2016'!$E13='Cologne 2016'!K13,3,0) -> 3 | J31: =IF('Cologne 2016'!$E13='Cologne 2016'!L13,3,0) -> 3 | K31: =IF('Cologne 2016'!$E13='Cologne 2016'!M13,3,0) -> 3 | L31: =IF('Cologne 2016'!$E13='Cologne 2016'!N13,3,0) -> 3 | M31: =IF('Cologne 2016'!$E13='Cologne 2016'!O13,3,0) -> 0 | N31: =IF('Cologne 2016'!$E13='Cologne 2016'!P13,3,0) -> 3 | O31: =IF('Cologne 2016'!$E13='Cologne 2016'!Q13,3,0) -> 0 | P31: =IF('Cologne 2016'!$E13='Cologne 2016'!R13,3,0) -> 0 | Q31: =IF('Cologne 2016'!$E13='Cologne 2016'!S13,3,0) -> 0 | R31: =IF('Cologne 2016'!$E13='Cologne 2016'!T13,3,0) -> 0
A32: CLG | D32: =IF('Cologne 2016'!$E14='Cologne 2016'!F14,3,0) -> 3 | E32: =IF('Cologne 2016'!$E14='Cologne 2016'!G14,3,0) -> 0 | F32: =IF('Cologne 2016'!$E14='Cologne 2016'!H14,3,0) -> 3 | G32: =IF('Cologne 2016'!$E14='Cologne 2016'!I14,3,0) -> 0 | H32: =IF('Cologne 2016'!$E14='Cologne 2016'!J14,3,0) -> 0 | I32: =IF('Cologne 2016'!$E14='Cologne 2016'!K14,3,0) -> 0 | J32: =IF('Cologne 2016'!$E14='Cologne 2016'!L14,3,0) -> 0 | K32: =IF('Cologne 2016'!$E14='Cologne 2016'!M14,3,0) -> 3 | L32: =IF('Cologne 2016'!$E14='Cologne 2016'!N14,3,0) -> 3 | M32: =IF('Cologne 2016'!$E14='Cologne 2016'!O14,3,0) -> 3 | N32: =IF('Cologne 2016'!$E14='Cologne 2016'!P14,3,0) -> 0 | O32: =IF('Cologne 2016'!$E14='Cologne 2016'!Q14,3,0) -> 0 | P32: =IF('Cologne 2016'!$E14='Cologne 2016'!R14,3,0) -> 0 | Q32: =IF('Cologne 2016'!$E14='Cologne 2016'!S14,3,0) -> 0 | R32: =IF('Cologne 2016'!$E14='Cologne 2016'!T14,3,0) -> 0
A33: Gambit | D33: =IF('Cologne 2016'!$E15='Cologne 2016'!F15,3,0) -> 3 | E33: =IF('Cologne 2016'!$E15='Cologne 2016'!G15,3,0) -> 0 | F33: =IF('Cologne 2016'!$E15='Cologne 2016'!H15,3,0) -> 0 | G33: =IF('Cologne 2016'!$E15='Cologne 2016'!I15,3,0) -> 0 | H33: =IF('Cologne 2016'!$E15='Cologne 2016'!J15,3,0) -> 3 | I33: =IF('Cologne 2016'!$E15='Cologne 2016'!K15,3,0) -> 0 | J33: =IF('Cologne 2016'!$E15='Cologne 2016'!L15,3,0) -> 0 | K33: =IF('Cologne 2016'!$E15='Cologne 2016'!M15,3,0) -> 0 | L33: =IF('Cologne 2016'!$E15='Cologne 2016'!N15,3,0) -> 0 | M33: =IF('Cologne 2016'!$E15='Cologne 2016'!O15,3,0) -> 3 | N33: =IF('Cologne 2016'!$E15='Cologne 2016'!P15,3,0) -> 0 | O33: =IF('Cologne 2016'!$E15='Cologne 2016'!Q15,3,0) -> 0 | P33: =IF('Cologne 2016'!$E15='Cologne 2016'!R15,3,0) -> 0 | Q33: =IF('Cologne 2016'!$E15='Cologne 2016'!S15,3,0) -> 0 | R33: =IF('Cologne 2016'!$E15='Cologne 2016'!T15,3,0) -> 0
A34: dignitas | D34: =IF('Cologne 2016'!$E16='Cologne 2016'!F16,3,0) -> 3 | E34: =IF('Cologne 2016'!$E16='Cologne 2016'!G16,3,0) -> 3 | F34: =IF('Cologne 2016'!$E16='Cologne 2016'!H16,3,0) -> 3 | G34: =IF('Cologne 2016'!$E16='Cologne 2016'!I16,3,0) -> 3 | H34: =IF('Cologne 2016'!$E16='Cologne 2016'!J16,3,0) -> 0 | I34: =IF('Cologne 2016'!$E16='Cologne 2016'!K16,3,0) -> 3 | J34: =IF('Cologne 2016'!$E16='Cologne 2016'!L16,3,0) -> 3 | K34: =IF('Cologne 2016'!$E16='Cologne 2016'!M16,3,0) -> 3 | L34: =IF('Cologne 2016'!$E16='Cologne 2016'!N16,3,0) -> 3 | M34: =IF('Cologne 2016'!$E16='Cologne 2016'!O16,3,0) -> 3 | N34: =IF('Cologne 2016'!$E16='Cologne 2016'!P16,3,0) -> 3 | O34: =IF('Cologne 2016'!$E16='Cologne 2016'!Q16,3,0) -> 0 | P34: =IF('Cologne 2016'!$E16='Cologne 2016'!R16,3,0) -> 0 | Q34: =IF('Cologne 2016'!$E16='Cologne 2016'!S16,3,0) -> 0 | R34: =IF('Cologne 2016'!$E16='Cologne 2016'!T16,3,0) -> 0
A35: NaVi | D35: =IF('Cologne 2016'!$E17='Cologne 2016'!F17,4,IF(OR(LEFT('Cologne 2016'!$E17,1)=LEFT('Cologne 2016'!F17,1),RIGHT('Cologne 2016'!$E17,1)=RIGHT('Cologne 2016'!F17,1)),3,0)) -> 4 | E35: =IF('Cologne 2016'!$E17='Cologne 2016'!G17,4,IF(OR(LEFT('Cologne 2016'!$E17,1)=LEFT('Cologne 2016'!G17,1),RIGHT('Cologne 2016'!$E17,1)=RIGHT('Cologne 2016'!G17,1)),3,0)) -> 0 | F35: =IF('Cologne 2016'!$E17='Cologne 2016'!H17,4,IF(OR(LEFT('Cologne 2016'!$E17,1)=LEFT('Cologne 2016'!H17,1),RIGHT('Cologne 2016'!$E17,1)=RIGHT('Cologne 2016'!H17,1)),3,0)) -> 3 | G35: =IF('Cologne 2016'!$E17='Cologne 2016'!I17,4,IF(OR(LEFT('Cologne 2016'!$E17,1)=LEFT('Cologne 2016'!I17,1),RIGHT('Cologne 2016'!$E17,1)=RIGHT('Cologne 2016'!I17,1)),3,0)) -> 3 | H35: =IF('Cologne 2016'!$E17='Cologne 2016'!J17,4,IF(OR(LEFT('Cologne 2016'!$E17,1)=LEFT('Cologne 2016'!J17,1),RIGHT('Cologne 2016'!$E17,1)=RIGHT('Cologne 2016'!J17,1)),3,0)) -> 0 | I35: =IF('Cologne 2016'!$E17='Cologne 2016'!K17,4,IF(OR(LEFT('Cologne 2016'!$E17,1)=LEFT('Cologne 2016'!K17,1),RIGHT('Cologne 2016'!$E17,1)=RIGHT('Cologne 2016'!K17,1)),3,0)) -> 0 | J35: =IF('Cologne 2016'!$E17='Cologne 2016'!L17,4,IF(OR(LEFT('Cologne 2016'!$E17,1)=LEFT('Cologne 2016'!L17,1),RIGHT('Cologne 2016'!$E17,1)=RIGHT('Cologne 2016'!L17,1)),3,0)) -> 3 | K35: =IF('Cologne 2016'!$E17='Cologne 2016'!M17,4,IF(OR(LEFT('Cologne 2016'!$E17,1)=LEFT('Cologne 2016'!M17,1),RIGHT('Cologne 2016'!$E17,1)=RIGHT('Cologne 2016'!M17,1)),3,0)) -> 3 | L35: =IF('Cologne 2016'!$E17='Cologne 2016'!N17,4,IF(OR(LEFT('Cologne 2016'!$E17,1)=LEFT('Cologne 2016'!N17,1),RIGHT('Cologne 2016'!$E17,1)=RIGHT('Cologne 2016'!N17,1)),3,0)) -> 0 | M35: =IF('Cologne 2016'!$E17='Cologne 2016'!O17,4,IF(OR(LEFT('Cologne 2016'!$E17,1)=LEFT('Cologne 2016'!O17,1),RIGHT('Cologne 2016'!$E17,1)=RIGHT('Cologne 2016'!O17,1)),3,0)) -> 3 | N35: =IF('Cologne 2016'!$E17='Cologne 2016'!P17,4,IF(OR(LEFT('Cologne 2016'!$E17,1)=LEFT('Cologne 2016'!P17,1),RIGHT('Cologne 2016'!$E17,1)=RIGHT('Cologne 2016'!P17,1)),3,0)) -> 3 | O35: =IF('Cologne 2016'!$E17='Cologne 2016'!Q17,4,IF(OR(LEFT('Cologne 2016'!$E17,1)=LEFT('Cologne 2016'!Q17,1),RIGHT('Cologne 2016'!$E17,1)=RIGHT('Cologne 2016'!Q17,1)),3,0)) -> 0 | P35: =IF('Cologne 2016'!$E17='Cologne 2016'!R17,4,IF(OR(LEFT('Cologne 2016'!$E17,1)=LEFT('Cologne 2016'!R17,1),RIGHT('Cologne 2016'!$E17,1)=RIGHT('Cologne 2016'!R17,1)),3,0)) -> 0 | Q35: =IF('Cologne 2016'!$E17='Cologne 2016'!S17,4,IF(OR(LEFT('Cologne 2016'!$E17,1)=LEFT('Cologne 2016'!S17,1),RIGHT('Cologne 2016'!$E17,1)=RIGHT('Cologne 2016'!S17,1)),3,0)) -> 0 | R35: =IF('Cologne 2016'!$E17='Cologne 2016'!T17,4,IF(OR(LEFT('Cologne 2016'!$E17,1)=LEFT('Cologne 2016'!T17,1),RIGHT('Cologne 2016'!$E17,1)=RIGHT('Cologne 2016'!T17,1)),3,0)) -> 0
A36: NiP | D36: =IF('Cologne 2016'!$E18='Cologne 2016'!F18,3,0) -> 0 | E36: =IF('Cologne 2016'!$E18='Cologne 2016'!G18,3,0) -> 0 | F36: =IF('Cologne 2016'!$E18='Cologne 2016'!H18,3,0) -> 0 | G36: =IF('Cologne 2016'!$E18='Cologne 2016'!I18,3,0) -> 3 | H36: =IF('Cologne 2016'!$E18='Cologne 2016'!J18,3,0) -> 3 | I36: =IF('Cologne 2016'!$E18='Cologne 2016'!K18,3,0) -> 3 | J36: =IF('Cologne 2016'!$E18='Cologne 2016'!L18,3,0) -> 3 | K36: =IF('Cologne 2016'!$E18='Cologne 2016'!M18,3,0) -> 0 | L36: =IF('Cologne 2016'!$E18='Cologne 2016'!N18,3,0) -> 0 | M36: =IF('Cologne 2016'!$E18='Cologne 2016'!O18,3,0) -> 3 | N36: =IF('Cologne 2016'!$E18='Cologne 2016'!P18,3,0) -> 0 | O36: =IF('Cologne 2016'!$E18='Cologne 2016'!Q18,3,0) -> 0 | P36: =IF('Cologne 2016'!$E18='Cologne 2016'!R18,3,0) -> 0 | Q36: =IF('Cologne 2016'!$E18='Cologne 2016'!S18,3,0) -> 0 | R36: =IF('Cologne 2016'!$E18='Cologne 2016'!T18,3,0) -> 0
A37: OpTic | D37: =IF('Cologne 2016'!$E19='Cologne 2016'!F19,3,0) -> 0 | E37: =IF('Cologne 2016'!$E19='Cologne 2016'!G19,3,0) -> 0 | F37: =IF('Cologne 2016'!$E19='Cologne 2016'!H19,3,0) -> 3 | G37: =IF('Cologne 2016'!$E19='Cologne 2016'!I19,3,0) -> 0 | H37: =IF('Cologne 2016'!$E19='Cologne 2016'!J19,3,0) -> 0 | I37: =IF('Cologne 2016'!$E19='Cologne 2016'!K19,3,0) -> 0 | J37: =IF('Cologne 2016'!$E19='Cologne 2016'!L19,3,0) -> 0 | K37: =IF('Cologne 2016'!$E19='Cologne 2016'!M19,3,0) -> 0 | L37: =IF('Cologne 2016'!$E19='Cologne 2016'!N19,3,0) -> 0 | M37: =IF('Cologne 2016'!$E19='Cologne 2016'!O19,3,0) -> 0 | N37: =IF('Cologne 2016'!$E19='Cologne 2016'!P19,3,0) -> 0 | O37: =IF('Cologne 2016'!$E19='Cologne 2016'!Q19,3,0) -> 0 | P37: =IF('Cologne 2016'!$E19='Cologne 2016'!R19,3,0) -> 0 | Q37: =IF('Cologne 2016'!$E19='Cologne 2016'!S19,3,0) -> 0 | R37: =IF('Cologne 2016'!$E19='Cologne 2016'!T19,3,0) -> 0
A38: Flipside | D38: =IF('Cologne 2016'!$E20='Cologne 2016'!F20,3,0) -> 0 | E38: =IF('Cologne 2016'!$E20='Cologne 2016'!G20,3,0) -> 3 | F38: =IF('Cologne 2016'!$E20='Cologne 2016'!H20,3,0) -> 0 | G38: =IF('Cologne 2016'!$E20='Cologne 2016'!I20,3,0) -> 3 | H38: =IF('Cologne 2016'!$E20='Cologne 2016'!J20,3,0) -> 3 | I38: =IF('Cologne 2016'!$E20='Cologne 2016'!K20,3,0) -> 3 | J38: =IF('Cologne 2016'!$E20='Cologne 2016'!L20,3,0) -> 3 | K38: =IF('Cologne 2016'!$E20='Cologne 2016'!M20,3,0) -> 3 | L38: =IF('Cologne 2016'!$E20='Cologne 2016'!N20,3,0) -> 3 | M38: =IF('Cologne 2016'!$E20='Cologne 2016'!O20,3,0) -> 3 | N38: =IF('Cologne 2016'!$E20='Cologne 2016'!P20,3,0) -> 0 | O38: =IF('Cologne 2016'!$E20='Cologne 2016'!Q20,3,0) -> 0 | P38: =IF('Cologne 2016'!$E20='Cologne 2016'!R20,3,0) -> 0 | Q38: =IF('Cologne 2016'!$E20='Cologne 2016'!S20,3,0) -> 0 | R38: =IF('Cologne 2016'!$E20='Cologne 2016'!T20,3,0) -> 0
A39: Liquid | D39: =IF('Cologne 2016'!$E21='Cologne 2016'!F21,3,0) -> 3 | E39: =IF('Cologne 2016'!$E21='Cologne 2016'!G21,3,0) -> 0 | F39: =IF('Cologne 2016'!$E21='Cologne 2016'!H21,3,0) -> 3 | G39: =IF('Cologne 2016'!$E21='Cologne 2016'!I21,3,0) -> 0 | H39: =IF('Cologne 2016'!$E21='Cologne 2016'!J21,3,0) -> 3 | I39: =IF('Cologne 2016'!$E21='Cologne 2016'!K21,3,0) -> 3 | J39: =IF('Cologne 2016'!$E21='Cologne 2016'!L21,3,0) -> 3 | K39: =IF('Cologne 2016'!$E21='Cologne 2016'!M21,3,0) -> 3 | L39: =IF('Cologne 2016'!$E21='Cologne 2016'!N21,3,0) -> 3 | M39: =IF('Cologne 2016'!$E21='Cologne 2016'!O21,3,0) -> 0 | N39: =IF('Cologne 2016'!$E21='Cologne 2016'!P21,3,0) -> 0 | O39: =IF('Cologne 2016'!$E21='Cologne 2016'!Q21,3,0) -> 0 | P39: =IF('Cologne 2016'!$E21='Cologne 2016'!R21,3,0) -> 0 | Q39: =IF('Cologne 2016'!$E21='Cologne 2016'!S21,3,0) -> 0 | R39: =IF('Cologne 2016'!$E21='Cologne 2016'!T21,3,0) -> 0
A40: VP | D40: =IF('Cologne 2016'!$E22='Cologne 2016'!F22,4,IF(OR(LEFT('Cologne 2016'!$E22,1)=LEFT('Cologne 2016'!F22,1),RIGHT('Cologne 2016'!$E22,1)=RIGHT('Cologne 2016'!F22,1)),3,0)) -> 0 | E40: =IF('Cologne 2016'!$E22='Cologne 2016'!G22,4,IF(OR(LEFT('Cologne 2016'!$E22,1)=LEFT('Cologne 2016'!G22,1),RIGHT('Cologne 2016'!$E22,1)=RIGHT('Cologne 2016'!G22,1)),3,0)) -> 0 | F40: =IF('Cologne 2016'!$E22='Cologne 2016'!H22,4,IF(OR(LEFT('Cologne 2016'!$E22,1)=LEFT('Cologne 2016'!H22,1),RIGHT('Cologne 2016'!$E22,1)=RIGHT('Cologne 2016'!H22,1)),3,0)) -> 3 | G40: =IF('Cologne 2016'!$E22='Cologne 2016'!I22,4,IF(OR(LEFT('Cologne 2016'!$E22,1)=LEFT('Cologne 2016'!I22,1),RIGHT('Cologne 2016'!$E22,1)=RIGHT('Cologne 2016'!I22,1)),3,0)) -> 4 | H40: =IF('Cologne 2016'!$E22='Cologne 2016'!J22,4,IF(OR(LEFT('Cologne 2016'!$E22,1)=LEFT('Cologne 2016'!J22,1),RIGHT('Cologne 2016'!$E22,1)=RIGHT('Cologne 2016'!J22,1)),3,0)) -> 3 | I40: =IF('Cologne 2016'!$E22='Cologne 2016'!K22,4,IF(OR(LEFT('Cologne 2016'!$E22,1)=LEFT('Cologne 2016'!K22,1),RIGHT('Cologne 2016'!$E22,1)=RIGHT('Cologne 2016'!K22,1)),3,0)) -> 0 | J40: =IF('Cologne 2016'!$E22='Cologne 2016'!L22,4,IF(OR(LEFT('Cologne 2016'!$E22,1)=LEFT('Cologne 2016'!L22,1),RIGHT('Cologne 2016'!$E22,1)=RIGHT('Cologne 2016'!L22,1)),3,0)) -> 3 | K40: =IF('Cologne 2016'!$E22='Cologne 2016'!M22,4,IF(OR(LEFT('Cologne 2016'!$E22,1)=LEFT('Cologne 2016'!M22,1),RIGHT('Cologne 2016'!$E22,1)=RIGHT('Cologne 2016'!M22,1)),3,0)) -> 0 | L40: =IF('Cologne 2016'!$E22='Cologne 2016'!N22,4,IF(OR(LEFT('Cologne 2016'!$E22,1)=LEFT('Cologne 2016'!N22,1),RIGHT('Cologne 2016'!$E22,1)=RIGHT('Cologne 2016'!N22,1)),3,0)) -> 3 | M40: =IF('Cologne 2016'!$E22='Cologne 2016'!O22,4,IF(OR(LEFT('Cologne 2016'!$E22,1)=LEFT('Cologne 2016'!O22,1),RIGHT('Cologne 2016'!$E22,1)=RIGHT('Cologne 2016'!O22,1)),3,0)) -> 3 | N40: =IF('Cologne 2016'!$E22='Cologne 2016'!P22,4,IF(OR(LEFT('Cologne 2016'!$E22,1)=LEFT('Cologne 2016'!P22,1),RIGHT('Cologne 2016'!$E22,1)=RIGHT('Cologne 2016'!P22,1)),3,0)) -> 0 | O40: =IF('Cologne 2016'!$E22='Cologne 2016'!Q22,4,IF(OR(LEFT('Cologne 2016'!$E22,1)=LEFT('Cologne 2016'!Q22,1),RIGHT('Cologne 2016'!$E22,1)=RIGHT('Cologne 2016'!Q22,1)),3,0)) -> 0 | P40: =IF('Cologne 2016'!$E22='Cologne 2016'!R22,4,IF(OR(LEFT('Cologne 2016'!$E22,1)=LEFT('Cologne 2016'!R22,1),RIGHT('Cologne 2016'!$E22,1)=RIGHT('Cologne 2016'!R22,1)),3,0)) -> 0 | Q40: =IF('Cologne 2016'!$E22='Cologne 2016'!S22,4,IF(OR(LEFT('Cologne 2016'!$E22,1)=LEFT('Cologne 2016'!S22,1),RIGHT('Cologne 2016'!$E22,1)=RIGHT('Cologne 2016'!S22,1)),3,0)) -> 0 | R40: =IF('Cologne 2016'!$E22='Cologne 2016'!T22,4,IF(OR(LEFT('Cologne 2016'!$E22,1)=LEFT('Cologne 2016'!T22,1),RIGHT('Cologne 2016'!$E22,1)=RIGHT('Cologne 2016'!T22,1)),3,0)) -> 0
A41: mouz | D41: =IF('Cologne 2016'!$E23='Cologne 2016'!F23,2,0) -> 2 | E41: =IF('Cologne 2016'!$E23='Cologne 2016'!G23,2,0) -> 0 | F41: =IF('Cologne 2016'!$E23='Cologne 2016'!H23,2,0) -> 0 | G41: =IF('Cologne 2016'!$E23='Cologne 2016'!I23,2,0) -> 2 | H41: =IF('Cologne 2016'!$E23='Cologne 2016'!J23,2,0) -> 0 | I41: =IF('Cologne 2016'!$E23='Cologne 2016'!K23,2,0) -> 0 | J41: =IF('Cologne 2016'!$E23='Cologne 2016'!L23,2,0) -> 2 | K41: =IF('Cologne 2016'!$E23='Cologne 2016'!M23,2,0) -> 2 | L41: =IF('Cologne 2016'!$E23='Cologne 2016'!N23,2,0) -> 0 | M41: =IF('Cologne 2016'!$E23='Cologne 2016'!O23,2,0) -> 0 | N41: =IF('Cologne 2016'!$E23='Cologne 2016'!P23,2,0) -> 0 | O41: =IF('Cologne 2016'!$E23='Cologne 2016'!Q23,2,0) -> 0 | P41: =IF('Cologne 2016'!$E23='Cologne 2016'!R23,2,0) -> 0 | Q41: =IF('Cologne 2016'!$E23='Cologne 2016'!S23,2,0) -> 0 | R41: =IF('Cologne 2016'!$E23='Cologne 2016'!T23,2,0) -> 0
A42: nV | D42: =IF('Cologne 2016'!$E24='Cologne 2016'!F24,2,0) -> 0 | E42: =IF('Cologne 2016'!$E24='Cologne 2016'!G24,2,0) -> 0 | F42: =IF('Cologne 2016'!$E24='Cologne 2016'!H24,2,0) -> 0 | G42: =IF('Cologne 2016'!$E24='Cologne 2016'!I24,2,0) -> 2 | H42: =IF('Cologne 2016'!$E24='Cologne 2016'!J24,2,0) -> 0 | I42: =IF('Cologne 2016'!$E24='Cologne 2016'!K24,2,0) -> 0 | J42: =IF('Cologne 2016'!$E24='Cologne 2016'!L24,2,0) -> 0 | K42: =IF('Cologne 2016'!$E24='Cologne 2016'!M24,2,0) -> 0 | L42: =IF('Cologne 2016'!$E24='Cologne 2016'!N24,2,0) -> 0 | M42: =IF('Cologne 2016'!$E24='Cologne 2016'!O24,2,0) -> 0 | N42: =IF('Cologne 2016'!$E24='Cologne 2016'!P24,2,0) -> 0 | O42: =IF('Cologne 2016'!$E24='Cologne 2016'!Q24,2,0) -> 0 | P42: =IF('Cologne 2016'!$E24='Cologne 2016'!R24,2,0) -> 0 | Q42: =IF('Cologne 2016'!$E24='Cologne 2016'!S24,2,0) -> 0 | R42: =IF('Cologne 2016'!$E24='Cologne 2016'!T24,2,0) -> 0
A43: LG | D43: 3 | E43: 0 | F43: 2 | G43: 0 | H43: 1 | I43: 0 | J43: 2 | K43: 1 | L43: 5 | M43: 1 | N43: 1
A44: fnatic | D44: =SUM(D21:D43) -> 46 | E44: =SUM(E21:E43) -> 18 | F44: 33 | G44: 45 | H44: 29 | I44: 27 | J44: 40 | K44: 42 | L44: 45 | M44: 43 | N44: 28 | O44: 0 | P44: 0 | Q44: 0 | R44: 0
A45: FaZe | C45: Quarts | D45: =IF('Cologne 2016'!$E29='Cologne 2016'!F29,6,IF(OR(LEFT('Cologne 2016'!$E29,1)=LEFT('Cologne 2016'!F29,1),RIGHT('Cologne 2016'!$E29,1)=RIGHT('Cologne 2016'!F29,1)),4,0)) -> 0 | E45: =IF('Cologne 2016'!$E29='Cologne 2016'!G29,6,IF(OR(LEFT('Cologne 2016'!$E29,1)=LEFT('Cologne 2016'!G29,1),RIGHT('Cologne 2016'!$E29,1)=RIGHT('Cologne 2016'!G29,1)),4,0)) -> 0 | F45: =IF('Cologne 2016'!$E29='Cologne 2016'!H29,6,IF(OR(LEFT('Cologne 2016'!$E29,1)=LEFT('Cologne 2016'!H29,1),RIGHT('Cologne 2016'!$E29,1)=RIGHT('Cologne 2016'!H29,1)),4,0)) -> 4 | G45: =IF('Cologne 2016'!$E29='Cologne 2016'!I29,6,IF(OR(LEFT('Cologne 2016'!$E29,1)=LEFT('Cologne 2016'!I29,1),RIGHT('Cologne 2016'!$E29,1)=RIGHT('Cologne 2016'!I29,1)),4,0)) -> 6 | H45: =IF('Cologne 2016'!$E29='Cologne 2016'!J29,6,IF(OR(LEFT('Cologne 2016'!$E29,1)=LEFT('Cologne 2016'!J29,1),RIGHT('Cologne 2016'!$E29,1)=RIGHT('Cologne 2016'!J29,1)),4,0)) -> 6 | I45: =IF('Cologne 2016'!$E29='Cologne 2016'!K29,6,IF(OR(LEFT('Cologne 2016'!$E29,1)=LEFT('Cologne 2016'!K29,1),RIGHT('Cologne 2016'!$E29,1)=RIGHT('Cologne 2016'!K29,1)),4,0)) -> 0 | J45: =IF('Cologne 2016'!$E29='Cologne 2016'!L29,6,IF(OR(LEFT('Cologne 2016'!$E29,1)=LEFT('Cologne 2016'!L29,1),RIGHT('Cologne 2016'!$E29,1)=RIGHT('Cologne 2016'!L29,1)),4,0)) -> 6 | K45: =IF('Cologne 2016'!$E29='Cologne 2016'!M29,6,IF(OR(LEFT('Cologne 2016'!$E29,1)=LEFT('Cologne 2016'!M29,1),RIGHT('Cologne 2016'!$E29,1)=RIGHT('Cologne 2016'!M29,1)),4,0)) -> 4 | L45: =IF('Cologne 2016'!$E29='Cologne 2016'!N29,6,IF(OR(LEFT('Cologne 2016'!$E29,1)=LEFT('Cologne 2016'!N29,1),RIGHT('Cologne 2016'!$E29,1)=RIGHT('Cologne 2016'!N29,1)),4,0)) -> 6 | M45: =IF('Cologne 2016'!$E29='Cologne 2016'!O29,6,IF(OR(LEFT('Cologne 2016'!$E29,1)=LEFT('Cologne 2016'!O29,1),RIGHT('Cologne 2016'!$E29,1)=RIGHT('Cologne 2016'!O29,1)),4,0)) -> 6 | N45: =IF('Cologne 2016'!$E29='Cologne 2016'!P29,6,IF(OR(LEFT('Cologne 2016'!$E29,1)=LEFT('Cologne 2016'!P29,1),RIGHT('Cologne 2016'!$E29,1)=RIGHT('Cologne 2016'!P29,1)),4,0)) -> 6 | O45: =IF('Cologne 2016'!$E29='Cologne 2016'!Q29,6,IF(OR(LEFT('Cologne 2016'!$E29,1)=LEFT('Cologne 2016'!Q29,1),RIGHT('Cologne 2016'!$E29,1)=RIGHT('Cologne 2016'!Q29,1)),4,0)) -> 0 | P45: =IF('Cologne 2016'!$E29='Cologne 2016'!R29,6,IF(OR(LEFT('Cologne 2016'!$E29,1)=LEFT('Cologne 2016'!R29,1),RIGHT('Cologne 2016'!$E29,1)=RIGHT('Cologne 2016'!R29,1)),4,0)) -> 0 | Q45: =IF('Cologne 2016'!$E29='Cologne 2016'!S29,6,IF(OR(LEFT('Cologne 2016'!$E29,1)=LEFT('Cologne 2016'!S29,1),RIGHT('Cologne 2016'!$E29,1)=RIGHT('Cologne 2016'!S29,1)),4,0)) -> 0 | R45: =IF('Cologne 2016'!$E29='Cologne 2016'!T29,6,IF(OR(LEFT('Cologne 2016'!$E29,1)=LEFT('Cologne 2016'!T29,1),RIGHT('Cologne 2016'!$E29,1)=RIGHT('Cologne 2016'!T29,1)),4,0)) -> 0
A46: G2 | D46: =IF('Cologne 2016'!$E30='Cologne 2016'!F30,6,IF(OR(LEFT('Cologne 2016'!$E30,1)=LEFT('Cologne 2016'!F30,1),RIGHT('Cologne 2016'!$E30,1)=RIGHT('Cologne 2016'!F30,1)),4,0)) -> 6 | E46: =IF('Cologne 2016'!$E30='Cologne 2016'!G30,6,IF(OR(LEFT('Cologne 2016'!$E30,1)=LEFT('Cologne 2016'!G30,1),RIGHT('Cologne 2016'!$E30,1)=RIGHT('Cologne 2016'!G30,1)),4,0)) -> 0 | F46: =IF('Cologne 2016'!$E30='Cologne 2016'!H30,6,IF(OR(LEFT('Cologne 2016'!$E30,1)=LEFT('Cologne 2016'!H30,1),RIGHT('Cologne 2016'!$E30,1)=RIGHT('Cologne 2016'!H30,1)),4,0)) -> 0 | G46: =IF('Cologne 2016'!$E30='Cologne 2016'!I30,6,IF(OR(LEFT('Cologne 2016'!$E30,1)=LEFT('Cologne 2016'!I30,1),RIGHT('Cologne 2016'!$E30,1)=RIGHT('Cologne 2016'!I30,1)),4,0)) -> 0 | H46: =IF('Cologne 2016'!$E30='Cologne 2016'!J30,6,IF(OR(LEFT('Cologne 2016'!$E30,1)=LEFT('Cologne 2016'!J30,1),RIGHT('Cologne 2016'!$E30,1)=RIGHT('Cologne 2016'!J30,1)),4,0)) -> 0 | I46: =IF('Cologne 2016'!$E30='Cologne 2016'!K30,6,IF(OR(LEFT('Cologne 2016'!$E30,1)=LEFT('Cologne 2016'!K30,1),RIGHT('Cologne 2016'!$E30,1)=RIGHT('Cologne 2016'!K30,1)),4,0)) -> 0 | J46: =IF('Cologne 2016'!$E30='Cologne 2016'!L30,6,IF(OR(LEFT('Cologne 2016'!$E30,1)=LEFT('Cologne 2016'!L30,1),RIGHT('Cologne 2016'!$E30,1)=RIGHT('Cologne 2016'!L30,1)),4,0)) -> 0 | K46: =IF('Cologne 2016'!$E30='Cologne 2016'!M30,6,IF(OR(LEFT('Cologne 2016'!$E30,1)=LEFT('Cologne 2016'!M30,1),RIGHT('Cologne 2016'!$E30,1)=RIGHT('Cologne 2016'!M30,1)),4,0)) -> 6 | L46: =IF('Cologne 2016'!$E30='Cologne 2016'!N30,6,IF(OR(LEFT('Cologne 2016'!$E30,1)=LEFT('Cologne 2016'!N30,1),RIGHT('Cologne 2016'!$E30,1)=RIGHT('Cologne 2016'!N30,1)),4,0)) -> 0 | M46: =IF('Cologne 2016'!$E30='Cologne 2016'!O30,6,IF(OR(LEFT('Cologne 2016'!$E30,1)=LEFT('Cologne 2016'!O30,1),RIGHT('Cologne 2016'!$E30,1)=RIGHT('Cologne 2016'!O30,1)),4,0)) -> 0 | N46: =IF('Cologne 2016'!$E30='Cologne 2016'!P30,6,IF(OR(LEFT('Cologne 2016'!$E30,1)=LEFT('Cologne 2016'!P30,1),RIGHT('Cologne 2016'!$E30,1)=RIGHT('Cologne 2016'!P30,1)),4,0)) -> 0 | O46: =IF('Cologne 2016'!$E30='Cologne 2016'!Q30,6,IF(OR(LEFT('Cologne 2016'!$E30,1)=LEFT('Cologne 2016'!Q30,1),RIGHT('Cologne 2016'!$E30,1)=RIGHT('Cologne 2016'!Q30,1)),4,0)) -> 0 | P46: =IF('Cologne 2016'!$E30='Cologne 2016'!R30,6,IF(OR(LEFT('Cologne 2016'!$E30,1)=LEFT('Cologne 2016'!R30,1),RIGHT('Cologne 2016'!$E30,1)=RIGHT('Cologne 2016'!R30,1)),4,0)) -> 0 | Q46: =IF('Cologne 2016'!$E30='Cologne 2016'!S30,6,IF(OR(LEFT('Cologne 2016'!$E30,1)=LEFT('Cologne 2016'!S30,1),RIGHT('Cologne 2016'!$E30,1)=RIGHT('Cologne 2016'!S30,1)),4,0)) -> 0 | R46: =IF('Cologne 2016'!$E30='Cologne 2016'!T30,6,IF(OR(LEFT('Cologne 2016'!$E30,1)=LEFT('Cologne 2016'!T30,1),RIGHT('Cologne 2016'!$E30,1)=RIGHT('Cologne 2016'!T30,1)),4,0)) -> 0
D47: =IF('Cologne 2016'!$E31='Cologne 2016'!F31,6,IF(OR(LEFT('Cologne 2016'!$E31,1)=LEFT('Cologne 2016'!F31,1),RIGHT('Cologne 2016'!$E31,1)=RIGHT('Cologne 2016'!F31,1)),4,0)) -> 0 | E47: =IF('Cologne 2016'!$E31='Cologne 2016'!G31,6,IF(OR(LEFT('Cologne 2016'!$E31,1)=LEFT('Cologne 2016'!G31,1),RIGHT('Cologne 2016'!$E31,1)=RIGHT('Cologne 2016'!G31,1)),4,0)) -> 0 | F47: =IF('Cologne 2016'!$E31='Cologne 2016'!H31,6,IF(OR(LEFT('Cologne 2016'!$E31,1)=LEFT('Cologne 2016'!H31,1),RIGHT('Cologne 2016'!$E31,1)=RIGHT('Cologne 2016'!H31,1)),4,0)) -> 0 | G47: =IF('Cologne 2016'!$E31='Cologne 2016'!I31,6,IF(OR(LEFT('Cologne 2016'!$E31,1)=LEFT('Cologne 2016'!I31,1),RIGHT('Cologne 2016'!$E31,1)=RIGHT('Cologne 2016'!I31,1)),4,0)) -> 4 | H47: =IF('Cologne 2016'!$E31='Cologne 2016'!J31,6,IF(OR(LEFT('Cologne 2016'!$E31,1)=LEFT('Cologne 2016'!J31,1),RIGHT('Cologne 2016'!$E31,1)=RIGHT('Cologne 2016'!J31,1)),4,0)) -> 4 | I47: =IF('Cologne 2016'!$E31='Cologne 2016'!K31,6,IF(OR(LEFT('Cologne 2016'!$E31,1)=LEFT('Cologne 2016'!K31,1),RIGHT('Cologne 2016'!$E31,1)=RIGHT('Cologne 2016'!K31,1)),4,0)) -> 0 | J47: =IF('Cologne 2016'!$E31='Cologne 2016'!L31,6,IF(OR(LEFT('Cologne 2016'!$E31,1)=LEFT('Cologne 2016'!L31,1),RIGHT('Cologne 2016'!$E31,1)=RIGHT('Cologne 2016'!L31,1)),4,0)) -> 4 | K47: =IF('Cologne 2016'!$E31='Cologne 2016'!M31,6,IF(OR(LEFT('Cologne 2016'!$E31,1)=LEFT('Cologne 2016'!M31,1),RIGHT('Cologne 2016'!$E31,1)=RIGHT('Cologne 2016'!M31,1)),4,0)) -> 0 | L47: =IF('Cologne 2016'!$E31='Cologne 2016'!N31,6,IF(OR(LEFT('Cologne 2016'!$E31,1)=LEFT('Cologne 2016'!N31,1),RIGHT('Cologne 2016'!$E31,1)=RIGHT('Cologne 2016'!N31,1)),4,0)) -> 0 | M47: =IF('Cologne 2016'!$E31='Cologne 2016'!O31,6,IF(OR(LEFT('Cologne 2016'!$E31,1)=LEFT('Cologne 2016'!O31,1),RIGHT('Cologne 2016'!$E31,1)=RIGHT('Cologne 2016'!O31,1)),4,0)) -> 4 | N47: =IF('Cologne 2016'!$E31='Cologne 2016'!P31,6,IF(OR(LEFT('Cologne 2016'!$E31,1)=LEFT('Cologne 2016'!P31,1),RIGHT('Cologne 2016'!$E31,1)=RIGHT('Cologne 2016'!P31,1)),4,0)) -> 6 | O47: =IF('Cologne 2016'!$E31='Cologne 2016'!Q31,6,IF(OR(LEFT('Cologne 2016'!$E31,1)=LEFT('Cologne 2016'!Q31,1),RIGHT('Cologne 2016'!$E31,1)=RIGHT('Cologne 2016'!Q31,1)),4,0)) -> 0 | P47: =IF('Cologne 2016'!$E31='Cologne 2016'!R31,6,IF(OR(LEFT('Cologne 2016'!$E31,1)=LEFT('Cologne 2016'!R31,1),RIGHT('Cologne 2016'!$E31,1)=RIGHT('Cologne 2016'!R31,1)),4,0)) -> 0 | Q47: =IF('Cologne 2016'!$E31='Cologne 2016'!S31,6,IF(OR(LEFT('Cologne 2016'!$E31,1)=LEFT('Cologne 2016'!S31,1),RIGHT('Cologne 2016'!$E31,1)=RIGHT('Cologne 2016'!S31,1)),4,0)) -> 0 | R47: =IF('Cologne 2016'!$E31='Cologne 2016'!T31,6,IF(OR(LEFT('Cologne 2016'!$E31,1)=LEFT('Cologne 2016'!T31,1),RIGHT('Cologne 2016'!$E31,1)=RIGHT('Cologne 2016'!T31,1)),4,0)) -> 0
D48: =IF('Cologne 2016'!$E32='Cologne 2016'!F32,6,IF(OR(LEFT('Cologne 2016'!$E32,1)=LEFT('Cologne 2016'!F32,1),RIGHT('Cologne 2016'!$E32,1)=RIGHT('Cologne 2016'!F32,1)),4,0)) -> 0 | E48: =IF('Cologne 2016'!$E32='Cologne 2016'!G32,6,IF(OR(LEFT('Cologne 2016'!$E32,1)=LEFT('Cologne 2016'!G32,1),RIGHT('Cologne 2016'!$E32,1)=RIGHT('Cologne 2016'!G32,1)),4,0)) -> 0 | F48: =IF('Cologne 2016'!$E32='Cologne 2016'!H32,6,IF(OR(LEFT('Cologne 2016'!$E32,1)=LEFT('Cologne 2016'!H32,1),RIGHT('Cologne 2016'!$E32,1)=RIGHT('Cologne 2016'!H32,1)),4,0)) -> 6 | G48: =IF('Cologne 2016'!$E32='Cologne 2016'!I32,6,IF(OR(LEFT('Cologne 2016'!$E32,1)=LEFT('Cologne 2016'!I32,1),RIGHT('Cologne 2016'!$E32,1)=RIGHT('Cologne 2016'!I32,1)),4,0)) -> 6 | H48: =IF('Cologne 2016'!$E32='Cologne 2016'!J32,6,IF(OR(LEFT('Cologne 2016'!$E32,1)=LEFT('Cologne 2016'!J32,1),RIGHT('Cologne 2016'!$E32,1)=RIGHT('Cologne 2016'!J32,1)),4,0)) -> 6 | I48: =IF('Cologne 2016'!$E32='Cologne 2016'!K32,6,IF(OR(LEFT('Cologne 2016'!$E32,1)=LEFT('Cologne 2016'!K32,1),RIGHT('Cologne 2016'!$E32,1)=RIGHT('Cologne 2016'!K32,1)),4,0)) -> 0 | J48: =IF('Cologne 2016'!$E32='Cologne 2016'!L32,6,IF(OR(LEFT('Cologne 2016'!$E32,1)=LEFT('Cologne 2016'!L32,1),RIGHT('Cologne 2016'!$E32,1)=RIGHT('Cologne 2016'!L32,1)),4,0)) -> 6 | K48: =IF('Cologne 2016'!$E32='Cologne 2016'!M32,6,IF(OR(LEFT('Cologne 2016'!$E32,1)=LEFT('Cologne 2016'!M32,1),RIGHT('Cologne 2016'!$E32,1)=RIGHT('Cologne 2016'!M32,1)),4,0)) -> 6 | L48: =IF('Cologne 2016'!$E32='Cologne 2016'!N32,6,IF(OR(LEFT('Cologne 2016'!$E32,1)=LEFT('Cologne 2016'!N32,1),RIGHT('Cologne 2016'!$E32,1)=RIGHT('Cologne 2016'!N32,1)),4,0)) -> 6 | M48: =IF('Cologne 2016'!$E32='Cologne 2016'!O32,6,IF(OR(LEFT('Cologne 2016'!$E32,1)=LEFT('Cologne 2016'!O32,1),RIGHT('Cologne 2016'!$E32,1)=RIGHT('Cologne 2016'!O32,1)),4,0)) -> 6 | N48: =IF('Cologne 2016'!$E32='Cologne 2016'!P32,6,IF(OR(LEFT('Cologne 2016'!$E32,1)=LEFT('Cologne 2016'!P32,1),RIGHT('Cologne 2016'!$E32,1)=RIGHT('Cologne 2016'!P32,1)),4,0)) -> 6 | O48: =IF('Cologne 2016'!$E32='Cologne 2016'!Q32,6,IF(OR(LEFT('Cologne 2016'!$E32,1)=LEFT('Cologne 2016'!Q32,1),RIGHT('Cologne 2016'!$E32,1)=RIGHT('Cologne 2016'!Q32,1)),4,0)) -> 0 | P48: =IF('Cologne 2016'!$E32='Cologne 2016'!R32,6,IF(OR(LEFT('Cologne 2016'!$E32,1)=LEFT('Cologne 2016'!R32,1),RIGHT('Cologne 2016'!$E32,1)=RIGHT('Cologne 2016'!R32,1)),4,0)) -> 0 | Q48: =IF('Cologne 2016'!$E32='Cologne 2016'!S32,6,IF(OR(LEFT('Cologne 2016'!$E32,1)=LEFT('Cologne 2016'!S32,1),RIGHT('Cologne 2016'!$E32,1)=RIGHT('Cologne 2016'!S32,1)),4,0)) -> 0 | R48: =IF('Cologne 2016'!$E32='Cologne 2016'!T32,6,IF(OR(LEFT('Cologne 2016'!$E32,1)=LEFT('Cologne 2016'!T32,1),RIGHT('Cologne 2016'!$E32,1)=RIGHT('Cologne 2016'!T32,1)),4,0)) -> 0
A49: Quarts | C49: Demies | D49: =IF('Cologne 2016'!$E37='Cologne 2016'!F37,7,IF(OR(LEFT('Cologne 2016'!$E37,1)=LEFT('Cologne 2016'!F37,1),RIGHT('Cologne 2016'!$E37,1)=RIGHT('Cologne 2016'!F37,1)),5,0)) -> 0 | E49: =IF('Cologne 2016'!$E37='Cologne 2016'!G37,7,IF(OR(LEFT('Cologne 2016'!$E37,1)=LEFT('Cologne 2016'!G37,1),RIGHT('Cologne 2016'!$E37,1)=RIGHT('Cologne 2016'!G37,1)),5,0)) -> 0 | F49: =IF('Cologne 2016'!$E37='Cologne 2016'!H37,7,IF(OR(LEFT('Cologne 2016'!$E37,1)=LEFT('Cologne 2016'!H37,1),RIGHT('Cologne 2016'!$E37,1)=RIGHT('Cologne 2016'!H37,1)),5,0)) -> 0 | G49: =IF('Cologne 2016'!$E37='Cologne 2016'!I37,7,IF(OR(LEFT('Cologne 2016'!$E37,1)=LEFT('Cologne 2016'!I37,1),RIGHT('Cologne 2016'!$E37,1)=RIGHT('Cologne 2016'!I37,1)),5,0)) -> 5 | H49: =IF('Cologne 2016'!$E37='Cologne 2016'!J37,7,IF(OR(LEFT('Cologne 2016'!$E37,1)=LEFT('Cologne 2016'!J37,1),RIGHT('Cologne 2016'!$E37,1)=RIGHT('Cologne 2016'!J37,1)),5,0)) -> 5 | I49: =IF('Cologne 2016'!$E37='Cologne 2016'!K37,7,IF(OR(LEFT('Cologne 2016'!$E37,1)=LEFT('Cologne 2016'!K37,1),RIGHT('Cologne 2016'!$E37,1)=RIGHT('Cologne 2016'!K37,1)),5,0)) -> 0 | J49: =IF('Cologne 2016'!$E37='Cologne 2016'!L37,7,IF(OR(LEFT('Cologne 2016'!$E37,1)=LEFT('Cologne 2016'!L37,1),RIGHT('Cologne 2016'!$E37,1)=RIGHT('Cologne 2016'!L37,1)),5,0)) -> 5 | K49: =IF('Cologne 2016'!$E37='Cologne 2016'!M37,7,IF(OR(LEFT('Cologne 2016'!$E37,1)=LEFT('Cologne 2016'!M37,1),RIGHT('Cologne 2016'!$E37,1)=RIGHT('Cologne 2016'!M37,1)),5,0)) -> 7 | L49: =IF('Cologne 2016'!$E37='Cologne 2016'!N37,7,IF(OR(LEFT('Cologne 2016'!$E37,1)=LEFT('Cologne 2016'!N37,1),RIGHT('Cologne 2016'!$E37,1)=RIGHT('Cologne 2016'!N37,1)),5,0)) -> 7 | M49: =IF('Cologne 2016'!$E37='Cologne 2016'!O37,7,IF(OR(LEFT('Cologne 2016'!$E37,1)=LEFT('Cologne 2016'!O37,1),RIGHT('Cologne 2016'!$E37,1)=RIGHT('Cologne 2016'!O37,1)),5,0)) -> 7 | N49: =IF('Cologne 2016'!$E37='Cologne 2016'!P37,7,IF(OR(LEFT('Cologne 2016'!$E37,1)=LEFT('Cologne 2016'!P37,1),RIGHT('Cologne 2016'!$E37,1)=RIGHT('Cologne 2016'!P37,1)),5,0)) -> 5 | O49: =IF('Cologne 2016'!$E37='Cologne 2016'!Q37,7,IF(OR(LEFT('Cologne 2016'!$E37,1)=LEFT('Cologne 2016'!Q37,1),RIGHT('Cologne 2016'!$E37,1)=RIGHT('Cologne 2016'!Q37,1)),5,0)) -> 0 | P49: =IF('Cologne 2016'!$E37='Cologne 2016'!R37,7,IF(OR(LEFT('Cologne 2016'!$E37,1)=LEFT('Cologne 2016'!R37,1),RIGHT('Cologne 2016'!$E37,1)=RIGHT('Cologne 2016'!R37,1)),5,0)) -> 0 | Q49: =IF('Cologne 2016'!$E37='Cologne 2016'!S37,7,IF(OR(LEFT('Cologne 2016'!$E37,1)=LEFT('Cologne 2016'!S37,1),RIGHT('Cologne 2016'!$E37,1)=RIGHT('Cologne 2016'!S37,1)),5,0)) -> 0 | R49: =IF('Cologne 2016'!$E37='Cologne 2016'!T37,7,IF(OR(LEFT('Cologne 2016'!$E37,1)=LEFT('Cologne 2016'!T37,1),RIGHT('Cologne 2016'!$E37,1)=RIGHT('Cologne 2016'!T37,1)),5,0)) -> 0
A50: =ISBLANK('Cologne 2016'!E5) -> FALSE | D50: =IF('Cologne 2016'!$E38='Cologne 2016'!F38,7,IF(OR(LEFT('Cologne 2016'!$E38,1)=LEFT('Cologne 2016'!F38,1),RIGHT('Cologne 2016'!$E38,1)=RIGHT('Cologne 2016'!F38,1)),5,0)) -> 0 | E50: =IF('Cologne 2016'!$E38='Cologne 2016'!G38,7,IF(OR(LEFT('Cologne 2016'!$E38,1)=LEFT('Cologne 2016'!G38,1),RIGHT('Cologne 2016'!$E38,1)=RIGHT('Cologne 2016'!G38,1)),5,0)) -> 0 | F50: =IF('Cologne 2016'!$E38='Cologne 2016'!H38,7,IF(OR(LEFT('Cologne 2016'!$E38,1)=LEFT('Cologne 2016'!H38,1),RIGHT('Cologne 2016'!$E38,1)=RIGHT('Cologne 2016'!H38,1)),5,0)) -> 0 | G50: =IF('Cologne 2016'!$E38='Cologne 2016'!I38,7,IF(OR(LEFT('Cologne 2016'!$E38,1)=LEFT('Cologne 2016'!I38,1),RIGHT('Cologne 2016'!$E38,1)=RIGHT('Cologne 2016'!I38,1)),5,0)) -> 0 | H50: =IF('Cologne 2016'!$E38='Cologne 2016'!J38,7,IF(OR(LEFT('Cologne 2016'!$E38,1)=LEFT('Cologne 2016'!J38,1),RIGHT('Cologne 2016'!$E38,1)=RIGHT('Cologne 2016'!J38,1)),5,0)) -> 0 | I50: =IF('Cologne 2016'!$E38='Cologne 2016'!K38,7,IF(OR(LEFT('Cologne 2016'!$E38,1)=LEFT('Cologne 2016'!K38,1),RIGHT('Cologne 2016'!$E38,1)=RIGHT('Cologne 2016'!K38,1)),5,0)) -> 0 | J50: =IF('Cologne 2016'!$E38='Cologne 2016'!L38,7,IF(OR(LEFT('Cologne 2016'!$E38,1)=LEFT('Cologne 2016'!L38,1),RIGHT('Cologne 2016'!$E38,1)=RIGHT('Cologne 2016'!L38,1)),5,0)) -> 0 | K50: =IF('Cologne 2016'!$E38='Cologne 2016'!M38,7,IF(OR(LEFT('Cologne 2016'!$E38,1)=LEFT('Cologne 2016'!M38,1),RIGHT('Cologne 2016'!$E38,1)=RIGHT('Cologne 2016'!M38,1)),5,0)) -> 0 | L50: =IF('Cologne 2016'!$E38='Cologne 2016'!N38,7,IF(OR(LEFT('Cologne 2016'!$E38,1)=LEFT('Cologne 2016'!N38,1),RIGHT('Cologne 2016'!$E38,1)=RIGHT('Cologne 2016'!N38,1)),5,0)) -> 0 | M50: =IF('Cologne 2016'!$E38='Cologne 2016'!O38,7,IF(OR(LEFT('Cologne 2016'!$E38,1)=LEFT('Cologne 2016'!O38,1),RIGHT('Cologne 2016'!$E38,1)=RIGHT('Cologne 2016'!O38,1)),5,0)) -> 0 | N50: =IF('Cologne 2016'!$E38='Cologne 2016'!P38,7,IF(OR(LEFT('Cologne 2016'!$E38,1)=LEFT('Cologne 2016'!P38,1),RIGHT('Cologne 2016'!$E38,1)=RIGHT('Cologne 2016'!P38,1)),5,0)) -> 0 | O50: =IF('Cologne 2016'!$E38='Cologne 2016'!Q38,7,IF(OR(LEFT('Cologne 2016'!$E38,1)=LEFT('Cologne 2016'!Q38,1),RIGHT('Cologne 2016'!$E38,1)=RIGHT('Cologne 2016'!Q38,1)),5,0)) -> 0 | P50: =IF('Cologne 2016'!$E38='Cologne 2016'!R38,7,IF(OR(LEFT('Cologne 2016'!$E38,1)=LEFT('Cologne 2016'!R38,1),RIGHT('Cologne 2016'!$E38,1)=RIGHT('Cologne 2016'!R38,1)),5,0)) -> 0 | Q50: =IF('Cologne 2016'!$E38='Cologne 2016'!S38,7,IF(OR(LEFT('Cologne 2016'!$E38,1)=LEFT('Cologne 2016'!S38,1),RIGHT('Cologne 2016'!$E38,1)=RIGHT('Cologne 2016'!S38,1)),5,0)) -> 0 | R50: =IF('Cologne 2016'!$E38='Cologne 2016'!T38,7,IF(OR(LEFT('Cologne 2016'!$E38,1)=LEFT('Cologne 2016'!T38,1),RIGHT('Cologne 2016'!$E38,1)=RIGHT('Cologne 2016'!T38,1)),5,0)) -> 0
A51: =ISBLANK('Cologne 2016'!E10) -> FALSE | C51: Finale | D51: =IF('Cologne 2016'!$E47='Cologne 2016'!F47,9,IF(OR(LEFT('Cologne 2016'!$E47,1)=LEFT('Cologne 2016'!F47,1),RIGHT('Cologne 2016'!$E47,1)=RIGHT('Cologne 2016'!F47,1)),6,0)) -> 0 | E51: =IF('Cologne 2016'!$E47='Cologne 2016'!G47,9,IF(OR(LEFT('Cologne 2016'!$E47,1)=LEFT('Cologne 2016'!G47,1),RIGHT('Cologne 2016'!$E47,1)=RIGHT('Cologne 2016'!G47,1)),6,0)) -> 0 | F51: =IF('Cologne 2016'!$E47='Cologne 2016'!H47,9,IF(OR(LEFT('Cologne 2016'!$E47,1)=LEFT('Cologne 2016'!H47,1),RIGHT('Cologne 2016'!$E47,1)=RIGHT('Cologne 2016'!H47,1)),6,0)) -> 0 | G51: =IF('Cologne 2016'!$E47='Cologne 2016'!I47,9,IF(OR(LEFT('Cologne 2016'!$E47,1)=LEFT('Cologne 2016'!I47,1),RIGHT('Cologne 2016'!$E47,1)=RIGHT('Cologne 2016'!I47,1)),6,0)) -> 6 | H51: =IF('Cologne 2016'!$E47='Cologne 2016'!J47,9,IF(OR(LEFT('Cologne 2016'!$E47,1)=LEFT('Cologne 2016'!J47,1),RIGHT('Cologne 2016'!$E47,1)=RIGHT('Cologne 2016'!J47,1)),6,0)) -> 6 | I51: =IF('Cologne 2016'!$E47='Cologne 2016'!K47,9,IF(OR(LEFT('Cologne 2016'!$E47,1)=LEFT('Cologne 2016'!K47,1),RIGHT('Cologne 2016'!$E47,1)=RIGHT('Cologne 2016'!K47,1)),6,0)) -> 6 | J51: =IF('Cologne 2016'!$E47='Cologne 2016'!L47,9,IF(OR(LEFT('Cologne 2016'!$E47,1)=LEFT('Cologne 2016'!L47,1),RIGHT('Cologne 2016'!$E47,1)=RIGHT('Cologne 2016'!L47,1)),6,0)) -> 9 | K51: =IF('Cologne 2016'!$E47='Cologne 2016'!M47,9,IF(OR(LEFT('Cologne 2016'!$E47,1)=LEFT('Cologne 2016'!M47,1),RIGHT('Cologne 2016'!$E47,1)=RIGHT('Cologne 2016'!M47,1)),6,0)) -> 6 | L51: =IF('Cologne 2016'!$E47='Cologne 2016'!N47,9,IF(OR(LEFT('Cologne 2016'!$E47,1)=LEFT('Cologne 2016'!N47,1),RIGHT('Cologne 2016'!$E47,1)=RIGHT('Cologne 2016'!N47,1)),6,0)) -> 6 | M51: =IF('Cologne 2016'!$E47='Cologne 2016'!O47,9,IF(OR(LEFT('Cologne 2016'!$E47,1)=LEFT('Cologne 2016'!O47,1),RIGHT('Cologne 2016'!$E47,1)=RIGHT('Cologne 2016'!O47,1)),6,0)) -> 9 | N51: =IF('Cologne 2016'!$E47='Cologne 2016'!P47,9,IF(OR(LEFT('Cologne 2016'!$E47,1)=LEFT('Cologne 2016'!P47,1),RIGHT('Cologne 2016'!$E47,1)=RIGHT('Cologne 2016'!P47,1)),6,0)) -> 0 | O51: =IF('Cologne 2016'!$E47='Cologne 2016'!Q47,9,IF(OR(LEFT('Cologne 2016'!$E47,1)=LEFT('Cologne 2016'!Q47,1),RIGHT('Cologne 2016'!$E47,1)=RIGHT('Cologne 2016'!Q47,1)),6,0)) -> 0 | P51: =IF('Cologne 2016'!$E47='Cologne 2016'!R47,9,IF(OR(LEFT('Cologne 2016'!$E47,1)=LEFT('Cologne 2016'!R47,1),RIGHT('Cologne 2016'!$E47,1)=RIGHT('Cologne 2016'!R47,1)),6,0)) -> 0 | Q51: =IF('Cologne 2016'!$E47='Cologne 2016'!S47,9,IF(OR(LEFT('Cologne 2016'!$E47,1)=LEFT('Cologne 2016'!S47,1),RIGHT('Cologne 2016'!$E47,1)=RIGHT('Cologne 2016'!S47,1)),6,0)) -> 0 | R51: =IF('Cologne 2016'!$E47='Cologne 2016'!T47,9,IF(OR(LEFT('Cologne 2016'!$E47,1)=LEFT('Cologne 2016'!T47,1),RIGHT('Cologne 2016'!$E47,1)=RIGHT('Cologne 2016'!T47,1)),6,0)) -> 0
A52: =ISBLANK('Cologne 2016'!E15) -> FALSE
A53: =ISBLANK('Cologne 2016'!E20) -> FALSE
A55: Demies | C55: Bonus | D55: 4 | E55: 0 | F55: 0 | G55: 4 | H55: 4 | I55: 0 | J55: 2 | K55: 2 | L55: 2 | M55: 4 | N55: 6
A56: ='Cologne 2016'!C29 -> Gambit | D56: 0 | E56: 0 | F56: 4 | G56: 4 | H56: 6 | I56: 0 | J56: 4 | K56: 6 | L56: 6 | M56: 6 | N56: 6
A57: ='Cologne 2016'!C30 -> NaVi
A58: ='Cologne 2016'!C31 -> VP | D58: =IF('Cologne 2016'!$E$48='Cologne 2016'!D51,3,IF(OR('Cologne 2016'!$E$48='Cologne 2016'!D52,'Cologne 2016'!$E$48='Cologne 2016'!D53),2,0)) -> 0 | E58: =IF('Cologne 2016'!$E$48='Cologne 2016'!E51,3,IF(OR('Cologne 2016'!$E$48='Cologne 2016'!E52,'Cologne 2016'!$E$48='Cologne 2016'!E53),2,0)) -> 0 | F58: =IF('Cologne 2016'!$E$48='Cologne 2016'!F51,3,IF(OR('Cologne 2016'!$E$48='Cologne 2016'!F52,'Cologne 2016'!$E$48='Cologne 2016'!F53),2,0)) -> 0 | G58: =IF('Cologne 2016'!$E$48='Cologne 2016'!G51,3,IF(OR('Cologne 2016'!$E$48='Cologne 2016'!G52,'Cologne 2016'!$E$48='Cologne 2016'!G53),2,0)) -> 0 | H58: =IF('Cologne 2016'!$E$48='Cologne 2016'!H51,3,IF(OR('Cologne 2016'!$E$48='Cologne 2016'!H52,'Cologne 2016'!$E$48='Cologne 2016'!H53),2,0)) -> 0 | I58: =IF('Cologne 2016'!$E$48='Cologne 2016'!I51,3,IF(OR('Cologne 2016'!$E$48='Cologne 2016'!I52,'Cologne 2016'!$E$48='Cologne 2016'!I53),2,0)) -> 0 | J58: =IF('Cologne 2016'!$E$48='Cologne 2016'!J51,3,IF(OR('Cologne 2016'!$E$48='Cologne 2016'!J52,'Cologne 2016'!$E$48='Cologne 2016'!J53),2,0)) -> 0 | K58: =IF('Cologne 2016'!$E$48='Cologne 2016'!K51,3,IF(OR('Cologne 2016'!$E$48='Cologne 2016'!K52,'Cologne 2016'!$E$48='Cologne 2016'!K53),2,0)) -> 0 | L58: =IF('Cologne 2016'!$E$48='Cologne 2016'!L51,3,IF(OR('Cologne 2016'!$E$48='Cologne 2016'!L52,'Cologne 2016'!$E$48='Cologne 2016'!L53),2,0)) -> 0 | M58: =IF('Cologne 2016'!$E$48='Cologne 2016'!M51,3,IF(OR('Cologne 2016'!$E$48='Cologne 2016'!M52,'Cologne 2016'!$E$48='Cologne 2016'!M53),2,0)) -> 0 | N58: =IF('Cologne 2016'!$E$48='Cologne 2016'!N51,3,IF(OR('Cologne 2016'!$E$48='Cologne 2016'!N52,'Cologne 2016'!$E$48='Cologne 2016'!N53),2,0)) -> 0 | O58: =IF('Cologne 2016'!$E$48='Cologne 2016'!O51,3,IF(OR('Cologne 2016'!$E$48='Cologne 2016'!O52,'Cologne 2016'!$E$48='Cologne 2016'!O53),2,0)) -> 0 | P58: =IF('Cologne 2016'!$E$48='Cologne 2016'!P51,3,IF(OR('Cologne 2016'!$E$48='Cologne 2016'!P52,'Cologne 2016'!$E$48='Cologne 2016'!P53),2,0)) -> 0 | Q58: =IF('Cologne 2016'!$E$48='Cologne 2016'!Q51,3,IF(OR('Cologne 2016'!$E$48='Cologne 2016'!Q52,'Cologne 2016'!$E$48='Cologne 2016'!Q53),2,0)) -> 0 | R58: =IF('Cologne 2016'!$E$48='Cologne 2016'!R51,3,IF(OR('Cologne 2016'!$E$48='Cologne 2016'!R52,'Cologne 2016'!$E$48='Cologne 2016'!R53),2,0)) -> 0
A59: ='Cologne 2016'!C32 -> LG | D59: =IF(OR('Cologne 2016'!$E$49='Cologne 2016'!D52,'Cologne 2016'!$E$49='Cologne 2016'!D53,'Cologne 2016'!$E$49='Cologne 2016'!D51),2,0) -> 0 | E59: =IF(OR('Cologne 2016'!$E$49='Cologne 2016'!E52,'Cologne 2016'!$E$49='Cologne 2016'!E53,'Cologne 2016'!$E$49='Cologne 2016'!E51),2,0) -> 0 | F59: =IF(OR('Cologne 2016'!$E$49='Cologne 2016'!F52,'Cologne 2016'!$E$49='Cologne 2016'!F53,'Cologne 2016'!$E$49='Cologne 2016'!F51),2,0) -> 0 | G59: =IF(OR('Cologne 2016'!$E$49='Cologne 2016'!G52,'Cologne 2016'!$E$49='Cologne 2016'!G53,'Cologne 2016'!$E$49='Cologne 2016'!G51),2,0) -> 0 | H59: =IF(OR('Cologne 2016'!$E$49='Cologne 2016'!H52,'Cologne 2016'!$E$49='Cologne 2016'!H53,'Cologne 2016'!$E$49='Cologne 2016'!H51),2,0) -> 0 | I59: =IF(OR('Cologne 2016'!$E$49='Cologne 2016'!I52,'Cologne 2016'!$E$49='Cologne 2016'!I53,'Cologne 2016'!$E$49='Cologne 2016'!I51),2,0) -> 0 | J59: =IF(OR('Cologne 2016'!$E$49='Cologne 2016'!J52,'Cologne 2016'!$E$49='Cologne 2016'!J53,'Cologne 2016'!$E$49='Cologne 2016'!J51),2,0) -> 0 | K59: =IF(OR('Cologne 2016'!$E$49='Cologne 2016'!K52,'Cologne 2016'!$E$49='Cologne 2016'!K53,'Cologne 2016'!$E$49='Cologne 2016'!K51),2,0) -> 0 | L59: =IF(OR('Cologne 2016'!$E$49='Cologne 2016'!L52,'Cologne 2016'!$E$49='Cologne 2016'!L53,'Cologne 2016'!$E$49='Cologne 2016'!L51),2,0) -> 0 | M59: =IF(OR('Cologne 2016'!$E$49='Cologne 2016'!M52,'Cologne 2016'!$E$49='Cologne 2016'!M53,'Cologne 2016'!$E$49='Cologne 2016'!M51),2,0) -> 0 | N59: =IF(OR('Cologne 2016'!$E$49='Cologne 2016'!N52,'Cologne 2016'!$E$49='Cologne 2016'!N53,'Cologne 2016'!$E$49='Cologne 2016'!N51),2,0) -> 0 | O59: =IF(OR('Cologne 2016'!$E$49='Cologne 2016'!O52,'Cologne 2016'!$E$49='Cologne 2016'!O53,'Cologne 2016'!$E$49='Cologne 2016'!O51),2,0) -> 0 | P59: =IF(OR('Cologne 2016'!$E$49='Cologne 2016'!P52,'Cologne 2016'!$E$49='Cologne 2016'!P53,'Cologne 2016'!$E$49='Cologne 2016'!P51),2,0) -> 0 | Q59: =IF(OR('Cologne 2016'!$E$49='Cologne 2016'!Q52,'Cologne 2016'!$E$49='Cologne 2016'!Q53,'Cologne 2016'!$E$49='Cologne 2016'!Q51),2,0) -> 0 | R59: =IF(OR('Cologne 2016'!$E$49='Cologne 2016'!R52,'Cologne 2016'!$E$49='Cologne 2016'!R53,'Cologne 2016'!$E$49='Cologne 2016'!R51),2,0) -> 0
A60: ='Cologne 2016'!D29 -> fnatic | D60: =IF(OR('Cologne 2016'!$E$50='Cologne 2016'!D52,'Cologne 2016'!$E$50='Cologne 2016'!D53,'Cologne 2016'!$E$50='Cologne 2016'!D51),2,0) -> 0 | E60: =IF(OR('Cologne 2016'!$E$50='Cologne 2016'!E52,'Cologne 2016'!$E$50='Cologne 2016'!E53,'Cologne 2016'!$E$50='Cologne 2016'!E51),2,0) -> 0 | F60: =IF(OR('Cologne 2016'!$E$50='Cologne 2016'!F52,'Cologne 2016'!$E$50='Cologne 2016'!F53,'Cologne 2016'!$E$50='Cologne 2016'!F51),2,0) -> 0 | G60: =IF(OR('Cologne 2016'!$E$50='Cologne 2016'!G52,'Cologne 2016'!$E$50='Cologne 2016'!G53,'Cologne 2016'!$E$50='Cologne 2016'!G51),2,0) -> 0 | H60: =IF(OR('Cologne 2016'!$E$50='Cologne 2016'!H52,'Cologne 2016'!$E$50='Cologne 2016'!H53,'Cologne 2016'!$E$50='Cologne 2016'!H51),2,0) -> 0 | I60: =IF(OR('Cologne 2016'!$E$50='Cologne 2016'!I52,'Cologne 2016'!$E$50='Cologne 2016'!I53,'Cologne 2016'!$E$50='Cologne 2016'!I51),2,0) -> 0 | J60: =IF(OR('Cologne 2016'!$E$50='Cologne 2016'!J52,'Cologne 2016'!$E$50='Cologne 2016'!J53,'Cologne 2016'!$E$50='Cologne 2016'!J51),2,0) -> 0 | K60: =IF(OR('Cologne 2016'!$E$50='Cologne 2016'!K52,'Cologne 2016'!$E$50='Cologne 2016'!K53,'Cologne 2016'!$E$50='Cologne 2016'!K51),2,0) -> 0 | L60: =IF(OR('Cologne 2016'!$E$50='Cologne 2016'!L52,'Cologne 2016'!$E$50='Cologne 2016'!L53,'Cologne 2016'!$E$50='Cologne 2016'!L51),2,0) -> 0 | M60: =IF(OR('Cologne 2016'!$E$50='Cologne 2016'!M52,'Cologne 2016'!$E$50='Cologne 2016'!M53,'Cologne 2016'!$E$50='Cologne 2016'!M51),2,0) -> 0 | N60: =IF(OR('Cologne 2016'!$E$50='Cologne 2016'!N52,'Cologne 2016'!$E$50='Cologne 2016'!N53,'Cologne 2016'!$E$50='Cologne 2016'!N51),2,0) -> 0 | O60: =IF(OR('Cologne 2016'!$E$50='Cologne 2016'!O52,'Cologne 2016'!$E$50='Cologne 2016'!O53,'Cologne 2016'!$E$50='Cologne 2016'!O51),2,0) -> 0 | P60: =IF(OR('Cologne 2016'!$E$50='Cologne 2016'!P52,'Cologne 2016'!$E$50='Cologne 2016'!P53,'Cologne 2016'!$E$50='Cologne 2016'!P51),2,0) -> 0 | Q60: =IF(OR('Cologne 2016'!$E$50='Cologne 2016'!Q52,'Cologne 2016'!$E$50='Cologne 2016'!Q53,'Cologne 2016'!$E$50='Cologne 2016'!Q51),2,0) -> 0 | R60: =IF(OR('Cologne 2016'!$E$50='Cologne 2016'!R52,'Cologne 2016'!$E$50='Cologne 2016'!R53,'Cologne 2016'!$E$50='Cologne 2016'!R51),2,0) -> 0
A61: ='Cologne 2016'!D30 -> Liquid
A62: ='Cologne 2016'!D31 -> Astralis
A63: ='Cologne 2016'!D32 -> Flipside
A65: finale

Sheet ELEAGUE
D1: Jazz | E1: doyL | F1: Epicier | G1: darks | H1: Lema | I1: Cpassimal | J1: edia | K1: budo | L1: peRf | M1: shogoki | N1: douzer | O1: ventur | P1: Kevnay | Q1: Neo | R1: Nico | U1: classement
A2: Bonus | B2: Vainqueur Major | D2: faze | E2: astralis | F2: vp | H2: navi | I2: navi | J2: navi | K2: vp | L2: astralis | M2: astralis | N2: sk | O2: astralis | P2: sk | Q2: astralis | U2: 1er | V2: ='Data EL'!AK2 -> ventur | W2: ='Data EL'!AL2 -> 101
B3: Vainqueur FFF | D3: kevnay | E3: perf | F3: edialor | G3: douz | H3: ventur | I3: Cpassimal | K3: perf | L3: ventur | M3: perf | N3: douzer | O3: kevnay | P3: ventur | Q3: perf | U3: =IF(W2=W3,"-","2eme") -> 2eme | V3: ='Data EL'!AK3 -> peRf | W3: ='Data EL'!AL3 -> 95
B4: Total bonus | D4: 0 | E4: 5 | F4: 0 | G4: 0 | H4: 5 | I4: 0 | J4: 0 | K4: 0 | L4: 10 | M4: 5 | N4: 0 | O4: 5 | P4: 5 | Q4: 5 | U4: =IF(W4=W3,"-","3eme") -> 3eme | V4: ='Data EL'!AK4 -> Kevnay | W4: ='Data EL'!AL4 -> 92
A5: Jour 1 | B5: gambit - north | C5: gambit | D5: north | E5: north | F5: gambit | G5: north | H5: gambit | I5: gambit | J5: gambit | K5: north | L5: north | M5: north | N5: north | O5: gambit | P5: north | Q5: north | U5: =IF(W5=W4,"-","4eme") -> 4eme | V5: ='Data EL'!AK5 -> douzer | W5: ='Data EL'!AL5 -> 80
B6: fnatic - g2 | C6: g2 | D6: fnatic | E6: g2 | F6: g2 | G6: g2 | H6: g2 | I6: g2 | J6: fnatic | K6: g2 | L6: fnatic | M6: g2 | N6: fnatic | O6: fnatic | P6: g2 | Q6: fnatic | U6: =IF(W6=W5,"-","5eme") -> 5eme | V6: ='Data EL'!AK6 -> Jazz | W6: ='Data EL'!AL6 -> 76
B7: sk - hr | C7: sk | D7: sk | E7: hr | F7: hr | G7: sk | H7: sk | I7: sk | J7: sk | K7: sk | L7: sk | M7: sk | N7: sk | O7: sk | P7: sk | Q7: sk | U7: =IF(W7=W6,"-","6eme") -> - | V7: ='Data EL'!AK7 -> budo | W7: ='Data EL'!AL7 -> 76
B8: vp - optic | C8: vp | D8: optic | E8: vp | F8: vp | G8: optic | H8: vp | I8: vp | J8: optic | K8: vp | L8: vp | M8: vp | N8: vp | O8: optic | P8: vp | Q8: vp | U8: =IF(W8=W7,"-","7eme") -> 7eme | V8: ='Data EL'!AK8 -> Lema | W8: ='Data EL'!AL8 -> 72
B9: navi - mouz | C9: navi | D9: navi | E9: mouz | F9: mouz | G9: navi | H9: navi | I9: navi | J9: navi | K9: navi | L9: navi | M9: navi | N9: navi | O9: navi | P9: navi | Q9: navi | U9: =IF(W9=W8,"-","8eme") -> 8eme | V9: ='Data EL'!AK9 -> Cpassimal | W9: ='Data EL'!AL9 -> 71
B10: liquid - nv | C10: nv | D10: nv | E10: nv | F10: nv | G10: liquid | H10: nv | I10: liquid | J10: nv | K10: liquid | L10: nv | M10: nv | N10: nv | O10: nv | P10: nv | Q10: nv | U10: =IF(W10=W9,"-","9eme") -> 9eme | V10: ='Data EL'!AK10 -> Epicier | W10: ='Data EL'!AL10 -> 67
B11: astralis - godsent | C11: godsent | D11: astralis | E11: astralis | F11: astralis | G11: godsent | H11: astralis | I11: astralis | J11: astralis | K11: astralis | L11: astralis | M11: astralis | N11: astralis | O11: astralis | P11: astralis | Q11: astralis | U11: =IF(W11=W10,"-","10eme") -> 10eme | V11: ='Data EL'!AK11 -> Neo | W11: ='Data EL'!AL11 -> 65
B12: f3 - faze | C12: faze | D12: faze | E12: faze | F12: f3 | G12: faze | H12: faze | I12: faze | J12: faze | K12: faze | L12: faze | M12: faze | N12: faze | O12: faze | P12: faze | Q12: faze | U12: =IF(W12=W11,"-","11eme") -> 11eme | V12: ='Data EL'!AK12 -> doyL | W12: ='Data EL'!AL12 -> 50
A13: bonus du jour | B13: / | C13: / | U13: =IF(W13=W12,"-","12eme") -> 12eme | V13: ='Data EL'!AK13 -> darks | W13: ='Data EL'!AL13 -> 42
B14: Sous total | D14: ='Data EL'!D13 -> 12 | E14: ='Data EL'!E13 -> 12 | F14: ='Data EL'!F13 -> 12 | G14: ='Data EL'!G13 -> 15 | H14: ='Data EL'!H13 -> 21 | I14: ='Data EL'!I13 -> 18 | J14: ='Data EL'!J13 -> 15 | K14: ='Data EL'!K13 -> 15 | L14: ='Data EL'!L13 -> 15 | M14: ='Data EL'!M13 -> 18 | N14: ='Data EL'!N13 -> 15 | O14: ='Data EL'!O13 -> 15 | P14: ='Data EL'!P13 -> 18 | Q14: ='Data EL'!Q13 -> 15 | R14: ='Data EL'!R13 -> 0 | U14: =IF(W14=W13,"-","13eme") -> 13eme | V14: ='Data EL'!AK14 -> shogoki | W14: ='Data EL'!AL14 -> 23
A15: Jour 2 | B15: mouz - hr | C15: mouz | D15: mouz | E15: mouz | F15: mouz | G15: mouz | H15: mouz | I15: mouz | K15: mouz | L15: mouz | N15: mouz | O15: mouz | P15: mouz | Q15: mouz | U15: =IF(W15=W14,"-","14eme") -> 14eme | V15: ='Data EL'!AK15 -> edia | W15: ='Data EL'!AL15 -> 15
B16: navi - nv | C16: navi | D16: navi | E16: nv | F16: navi | G16: navi | H16: navi | I16: navi | K16: navi | L16: navi | N16: navi | O16: navi | P16: navi | Q16: navi
B17: faze - sk | C17: sk | D17: faze | E17: faze | F17: sk | G17: sk | H17: sk | I17: sk | K17: sk | L17: sk | N17: sk | O17: faze | P17: sk | Q17: sk
B18: flipside - liquid | C18: liquid | D18: liquid | E18: liquid | F18: flipside | G18: liquid | H18: liquid | I18: liquid | K18: liquid | L18: liquid | N18: flipside | O18: liquid | P18: liquid | Q18: flipside
B19: north - fnatic | C19: fnatic | D19: fnatic | E19: fnatic | F19: fnatic | G19: fnatic | H19: fnatic | I19: fnatic | K19: fnatic | L19: fnatic | N19: fnatic | O19: fnatic | P19: fnatic | Q19: fnatic
B20: optic - astralis | C20: astralis | D20: optic | E20: astralis | F20: astralis | G20: astralis | H20: astralis | I20: astralis | K20: astralis | L20: astralis | N20: optic | O20: astralis | P20: astralis | Q20: astralis
B21: godsent - gambit | C21: gambit | D21: godsent | E21: godsent | F21: godsent | G21: gambit | H21: gambit | I21: godsent | K21: godsent | L21: godsent | N21: godsent | O21: godsent | P21: godsent | Q21: gambit
B22: vp - g2 | C22: vp | D22: vp | E22: g2 | F22: g2 | G22: g2 | H22: g2 | I22: vp | K22: vp | L22: g2 | N22: vp | O22: vp | P22: vp | Q22: vp
A23: bonus du jour | B23: rekt | C23: navi - nv | D23: navi - nv | E23: optic - astralis | F23: faze - sk | G23: godsent - gambit | H23: vp - g2 | I23: flipside - liquid | K23: flipside - liquid | L23: mouz - hr | N23: mouz - hr | O23: godsent - gambit | P23: flipside - liquid | Q23: mouz - hr
B24: Sous total | D24: ='Data EL'!D23 -> 18 | E24: ='Data EL'!E23 -> 12 | F24: ='Data EL'!F23 -> 15 | G24: ='Data EL'!G23 -> 21 | H24: ='Data EL'!H23 -> 21 | I24: ='Data EL'!I23 -> 21 | J24: ='Data EL'!J23 -> 0 | K24: ='Data EL'!K23 -> 21 | L24: ='Data EL'!L23 -> 18 | M24: ='Data EL'!M23 -> 0 | N24: ='Data EL'!N23 -> 15 | O24: ='Data EL'!O23 -> 18 | P24: ='Data EL'!P23 -> 21 | Q24: ='Data EL'!Q23 -> 21 | R24: ='Data EL'!R23 -> 0
A25: Jour 3 | B25: mouz - fnatic | C25: fnatic | D25: fnatic | E25: mouz | F25: fnatic | G25: mouz | H25: mouz | I25: fnatic | K25: fnatic | L25: fnatic | N25: fnatic | O25: mouz | P25: fnatic | Q25: mouz
B26: godsent - nv | C26: nv | D26: nv | E26: nv | F26: godsent | G26: godsent | H26: godsent | I26: godsent | K26: godsent | L26: godsent | N26: nv | O26: godsent | P26: godsent | Q26: godsent
B27: north - hr | C27: north | D27: north | E27: hr | F27: north | G27: hr | H27: north | I27: north | K27: north | L27: north | N27: north | O27: north | P27: north | Q27: north
B28: gambit - vp | C28: vp | D28: vp | E28: vp | F28: vp | G28: vp | H28: gambit | I28: vp | K28: vp | L28: vp | N28: vp | O28: vp | P28: vp | Q28: gambit
B29: astralis - g2 | C29: astralis | D29: astralis | E29: astralis | F29: g2 | G29: g2 | H29: g2 | I29: g2 | K29: g2 | L29: astralis | N29: astralis | O29: astralis | P29: g2 | Q29: astralis
B30: sk - navi | C30: navi | D30: sk | E30: navi | F30: sk | G30: navi | H30: navi | I30: navi | K30: sk | L30: navi | N30: sk | O30: navi | P30: navi | Q30: sk
B31: liquid - faze | C31: / | D31: faze | E31: faze | F31: faze | G31: liquid | H31: faze | I31: faze | K31: faze | L31: faze | N31: faze | O31: faze | P31: faze | Q31: faze
B32: flipside - optic | C32: / | D32: optic | E32: flipside | F32: flipside | G32: optic | H32: optic | I32: optic | K32: optic | L32: optic | N32: optic | O32: optic | P32: optic | Q32: optic
A33: bonus du jour | B33: close | C33: / | D33: sk - navi | E33: godsent - nv | F33: flipside - optic | G33: liquid - faze | H33: gambit - vp | I33: astralis - g2 | K33: sk - navi | L33: gambit - vp | N33: sk - navi | O33: liquid - faze | P33: sk - navi | Q33: gambit - vp
B34: Sous total | D34: ='Data EL'!D33 -> 15 | E34: ='Data EL'!E33 -> 12 | F34: ='Data EL'!F33 -> 9 | G34: ='Data EL'!G33 -> 6 | H34: ='Data EL'!H33 -> 6 | I34: ='Data EL'!I33 -> 12 | J34: ='Data EL'!J33 -> 0 | K34: ='Data EL'!K33 -> 9 | L34: ='Data EL'!L33 -> 15 | M34: ='Data EL'!M33 -> 0 | N34: ='Data EL'!N33 -> 15 | O34: ='Data EL'!O33 -> 12 | P34: ='Data EL'!P33 -> 12 | Q34: ='Data EL'!Q33 -> 6 | R34: ='Data EL'!R33 -> 0
A35: Jour 4 | B35: north - g2 | C35: north | D35: g2 | E35: north | F35: g2 | H35: g2 | I35: g2 | K35: g2 | L35: g2 | N35: north | O35: north | P35: g2 | Q35: g2
B36: nv - fnatic | C36: fnatic | D36: nv | E36: nv | F36: nv | H36: nv | I36: nv | K36: nv | L36: nv | N36: fnatic | O36: fnatic | P36: fnatic | Q36: nv
B37: mouz - liquid | C37: liquid | D37: liquid | E37: mouz | F37: liquid | H37: mouz | I37: liquid | K37: liquid | L37: liquid | N37: mouz | O37: liquid | P37: liquid | Q37: liquid
B38: godsent - optic | C38: godsent | D38: optic | E38: godsent | F38: godsent | H38: godsent | I38: optic | K38: optic | L38: optic | N38: optic | O38: optic | P38: godsent | Q38: optic
B39: sk - astralis | C39: sk | D39: astralis | E39: sk | F39: sk | H39: astralis | I39: astralis | K39: astralis | L39: astralis | N39: sk | O39: astralis | P39: sk | Q39: astralis
B40: gambit - faze | C40: faze | D40: faze | E40: gambit | F40: faze | H40: gambit | I40: faze | K40: faze | L40: faze | N40: faze | O40: faze | P40: faze | Q40: faze
C41: /
C42: /
A43: bonus du jour | B43: team fr playoffs | C43: 0 | D43: 2 | E43: 1 | F43: 0 | G43: - | H43: 2 | I43: 2 | J43: - | K43: 1 | L43: 1 | M43: - | N43: 0 | O43: 1 | P43: 1 | Q43: - | R43: -
B44: Sous total | D44: ='Data EL'!D43 -> 6 | E44: ='Data EL'!E43 -> 9 | F44: ='Data EL'!F43 -> 14 | G44: ='Data EL'!G43 -> 0 | H44: ='Data EL'!H43 -> 3 | I44: ='Data EL'!I43 -> 6 | J44: ='Data EL'!J43 -> 0 | K44: ='Data EL'!K43 -> 6 | L44: ='Data EL'!L43 -> 6 | M44: ='Data EL'!M43 -> 0 | N44: ='Data EL'!N43 -> 14 | O44: ='Data EL'!O43 -> 12 | P44: ='Data EL'!P43 -> 15 | Q44: ='Data EL'!Q43 -> 6 | R44: ='Data EL'!R43 -> 0
A45: Jour 5 | C45: /
C46: /
C47: /
C48: /
C49: /
C50: /
C51: /
C52: /
A53: bonus du jour | C53: /
B54: Sous total | D54: ='Data EL'!D53 -> 0 | E54: ='Data EL'!E53 -> 0 | F54: ='Data EL'!F53 -> 0 | G54: ='Data EL'!G53 -> 0 | H54: ='Data EL'!H53 -> 0 | I54: ='Data EL'!I53 -> 0 | J54: ='Data EL'!J53 -> 0 | K54: ='Data EL'!K53 -> 0 | L54: ='Data EL'!L53 -> 0 | M54: ='Data EL'!M53 -> 0 | N54: ='Data EL'!N53 -> 0 | O54: ='Data EL'!O53 -> 0 | P54: ='Data EL'!P53 -> 0 | Q54: ='Data EL'!Q53 -> 0 | R54: ='Data EL'!R53 -> 0
B55: total groupes | D55: =D14+D24+D34+D44+D54 -> 51 | E55: =E14+E24+E34+E44+E54 -> 45 | F55: 50 | G55: 42 | H55: 51 | I55: 57 | J55: 15 | K55: 51 | L55: 54 | M55: 18 | N55: 59 | O55: 57 | P55: 66 | Q55: 48 | R55: 0
A56: Quarts de finales
A57: navi | B57: astralis | C57: 1 - 2 | D57: 2 - 1 | F57: 2 - 0 | H57: 2 - 1 | I57: 2 - 0 | K57: 2 - 0 | L57: 2 - 1 | N57: 2 - 1 | O57: 1 - 2 | P57: 2 - 1 | Q57: 2 - 1
A58: gambit | B58: fnatic | C58: 1 - 2 | D58: 0 - 2 | F58: 2 - 0 | H58: 2 - 1 | I58: 2 - 1 | K58: 2 - 1 | L58: 2 - 0 | N58: 2 - 1 | O58: 1 - 2 | P58: 2 - 1 | Q58: 2 - 0
A59: vp | B59: north | C59: 2 - 1 | D59: 2 - 0 | F59: 2 - 0 | H59: 2 - 1 | I59: 2 - 0 | K59: 2 - 1 | L59: 2 - 0 | N59: 2 - 1 | O59: 2 - 1 | P59: 2 - 1 | Q59: 2 - 1
A60: faze | B60: sk | C60: 1 - 2 | D60: 2 - 1 | F60: 0 - 2 | H60: 2 - 1 | I60: 2 - 1 | K60: 1 - 2 | L60: 2 - 1 | N60: 1 - 2 | O60: 2 - 1 | P60: 0 - 2 | Q60: 1 - 2
A61: Bottomfraggers | C61: edward | D61: seized | F61: kjaerbye | H61: device | I61: glaive | K61: glaive | L61: seized | N61: xyp9x | O61: edward | P61: glaive | Q61: glaive
C62: dosia | D62: zeus | F62: krimz | H62: twist | I62: adren | K62: disco | L62: disco | N62: disco | O62: disco | P62: disco | Q62: disco
C63: taz/byali | D63: msl | F63: cajunb | H63: msl | I63: msl | K63: msl | L63: msl | N63: msl | O63: msl | P63: msl | Q63: msl
C64: rain | D64: allu | F64: kio | H64: fox | I64: aizy | K64: aizy | L64: fox | N64: aizy | O64: fox | P64: aizy | Q64: aizy
A65: total 1/4 de finales | D65: 8 | E65: =SUM(Data!C72:C75)+SUM(Data!C82:C82) -> 0 | F65: 8 | G65: =SUM(Data!E72:E75)+SUM(Data!E82:E82) -> 0 | H65: 6 | I65: 4 | J65: =SUM(Data!H72:H75)+SUM(Data!H82:H82) -> 0 | K65: 12 | L65: 4 | M65: =SUM(Data!K72:K75)+SUM(Data!K82:K82) -> 0 | N65: 12 | O65: 18 | P65: 10 | Q65: 12 | R65: =SUM(Data!P72:P75)+SUM(Data!P82:P82) -> 0
A67: demies finales
A68: astralis | B68: fnatic | C68: 2 - 0 | D68: 2 - 0 | F68: 0 - 2 | H68: 2 - 1 | I68: 2 - 0 | K68: 2 - 1 | L68: 2 - 0 | N68: 2 - 1 | O68: 2 - 1 | P68: 2 - 0
A69: vp | B69: sk | C69: 2 - 0 | D69: 0 - 2 | F69: 2 - 0 | H69: 2 - 1 | I69: 1 - 2 | K69: 2 - 1 | L69: 2 - 0 | N69: 1 - 2 | O69: 2 - 1 | P69: 1 - 2
A70: topfraggers | C70: krimz | D70: device | F70: olof | H70: kjaerbye | I70: device | K70: device | L70: device | N70: device | O70: device | P70: device
C71: taz/cold | D71: cold | F71: byali | H71: snax | I71: fer | K71: neo | L71: snax | N71: cold | O71: snax | P71: cold
A72: total 1/2 finale | D72: 9 | E72: =SUM(Data!C79:C80)+Data!C86 -> 0 | F72: 7 | G72: =SUM(Data!E79:E80)+Data!E86 -> 0 | H72: 10 | I72: 7 | J72: =SUM(Data!H79:H80)+Data!H86 -> 0 | K72: 10 | L72: 14 | M72: =SUM(Data!K79:K80)+Data!K86 -> 0 | N72: 7 | O72: 10 | P72: 9 | Q72: =SUM(Data!O79:O80)+Data!O86 -> 0 | R72: =SUM(Data!P79:P80)+Data!P86 -> 0
A74: finale
A75: astralis | B75: vp | C75: 0 - 0 | D75: 2 - 0 | F75: 0 - 2 | H75: 1 - 2 | I75: 1 - 2 | K75: 1 - 2 | L75: 2 - 1 | N75: 0 - 2 | O75: 2 - 1 | P75: 1 - 2
A76: topfragger | C76: snax | D76: device | F76: taz | I76: snax | K76: snax | L76: device | N76: device | O76: device | P76: device
A77: 2 | C77: kjaerbye | D77: snax | F77: device | I77: device | K77: taz | L77: snax | N77: snax | O77: snax | P77: snax
A78: 3 | C78: byali | D78: kjaerbye | F78: snax | I78: taz | K78: device | L78: kjaerbye | N78: pasha | O78: dupreeh | P78: taz
A79: bonus top fragger | D79: 2 | F79: 2 | H79: 0 | I79: 3 | K79: 3 | L79: 4 | N79: 2 | O79: 2 | P79: 2
A80: total finale | D80: 8 | F80: 2 | H80: 0 | I80: 3 | K80: 3 | L80: 13 | N80: 2 | O80: 11 | P80: 2
B82: total | D82: =D55+D65+D4+D72+D80 -> 76 | E82: =E55+E65+E4+E72+E80 -> 50 | F82: 67 | G82: 42 | H82: 72 | I82: 71 | J82: 15 | K82: 76 | L82: 95 | M82: 23 | N82: 80 | O82: 101 | P82: 92 | Q82: 65 | R82: 0

Sheet Data EL
D1: Jazz | E1: doyL | F1: Epicier | G1: darks | H1: Lema | I1: Passi | J1: edia | K1: budo | L1: peRf | M1: shogoki | N1: douzer | O1: ventur | P1: Kevnay | Q1: Neo | R1: Nico | AK1: Joueur | AL1: Points
A2: Bonus | B2: Vainqueur Major | AK2: =ELEAGUE!O1 -> ventur | AL2: =ELEAGUE!O82 -> 101
B3: Vainqueur FFF | AK3: =ELEAGUE!L1 -> peRf | AL3: =ELEAGUE!L82 -> 95
A4: Jour 1 | B4: gambit - north | C4: gambit | D4: =IF(ELEAGUE!D5=ELEAGUE!$C5,3,0) -> 0 | E4: =IF(ELEAGUE!E5=ELEAGUE!$C5,3,0) -> 0 | F4: =IF(ELEAGUE!F5=ELEAGUE!$C5,3,0) -> 3 | G4: =IF(ELEAGUE!G5=ELEAGUE!$C5,3,0) -> 0 | H4: =IF(ELEAGUE!H5=ELEAGUE!$C5,3,0) -> 3 | I4: =IF(ELEAGUE!I5=ELEAGUE!$C5,3,0) -> 3 | J4: =IF(ELEAGUE!J5=ELEAGUE!$C5,3,0) -> 3 | K4: =IF(ELEAGUE!K5=ELEAGUE!$C5,3,0) -> 0 | L4: =IF(ELEAGUE!L5=ELEAGUE!$C5,3,0) -> 0 | M4: =IF(ELEAGUE!M5=ELEAGUE!$C5,3,0) -> 0 | N4: =IF(ELEAGUE!N5=ELEAGUE!$C5,3,0) -> 0 | O4: =IF(ELEAGUE!O5=ELEAGUE!$C5,3,0) -> 3 | P4: =IF(ELEAGUE!P5=ELEAGUE!$C5,3,0) -> 0 | Q4: =IF(ELEAGUE!Q5=ELEAGUE!$C5,3,0) -> 0 | R4: =IF(ELEAGUE!R5=ELEAGUE!$C5,3,0) -> 0 | AK4: =ELEAGUE!P1 -> Kevnay | AL4: =ELEAGUE!P82 -> 92
B5: fnatic - g2 | C5: g2 | D5: =IF(ELEAGUE!D6=ELEAGUE!$C6,3,0) -> 0 | E5: =IF(ELEAGUE!E6=ELEAGUE!$C6,3,0) -> 3 | F5: =IF(ELEAGUE!F6=ELEAGUE!$C6,3,0) -> 3 | G5: =IF(ELEAGUE!G6=ELEAGUE!$C6,3,0) -> 3 | H5: =IF(ELEAGUE!H6=ELEAGUE!$C6,3,0) -> 3 | I5: =IF(ELEAGUE!I6=ELEAGUE!$C6,3,0) -> 3 | J5: =IF(ELEAGUE!J6=ELEAGUE!$C6,3,0) -> 0 | K5: =IF(ELEAGUE!K6=ELEAGUE!$C6,3,0) -> 3 | L5: =IF(ELEAGUE!L6=ELEAGUE!$C6,3,0) -> 0 | M5: =IF(ELEAGUE!M6=ELEAGUE!$C6,3,0) -> 3 | N5: =IF(ELEAGUE!N6=ELEAGUE!$C6,3,0) -> 0 | O5: =IF(ELEAGUE!O6=ELEAGUE!$C6,3,0) -> 0 | P5: =IF(ELEAGUE!P6=ELEAGUE!$C6,3,0) -> 3 | Q5: =IF(ELEAGUE!Q6=ELEAGUE!$C6,3,0) -> 0 | R5: =IF(ELEAGUE!R6=ELEAGUE!$C6,3,0) -> 0 | AK5: =ELEAGUE!N1 -> douzer | AL5: =ELEAGUE!N82 -> 80
B6: sk - hr | C6: sk | D6: =IF(ELEAGUE!D7=ELEAGUE!$C7,3,0) -> 3 | E6: =IF(ELEAGUE!E7=ELEAGUE!$C7,3,0) -> 0 | F6: =IF(ELEAGUE!F7=ELEAGUE!$C7,3,0) -> 0 | G6: =IF(ELEAGUE!G7=ELEAGUE!$C7,3,0) -> 3 | H6: =IF(ELEAGUE!H7=ELEAGUE!$C7,3,0) -> 3 | I6: =IF(ELEAGUE!I7=ELEAGUE!$C7,3,0) -> 3 | J6: =IF(ELEAGUE!J7=ELEAGUE!$C7,3,0) -> 3 | K6: =IF(ELEAGUE!K7=ELEAGUE!$C7,3,0) -> 3 | L6: =IF(ELEAGUE!L7=ELEAGUE!$C7,3,0) -> 3 | M6: =IF(ELEAGUE!M7=ELEAGUE!$C7,3,0) -> 3 | N6: =IF(ELEAGUE!N7=ELEAGUE!$C7,3,0) -> 3 | O6: =IF(ELEAGUE!O7=ELEAGUE!$C7,3,0) -> 3 | P6: =IF(ELEAGUE!P7=ELEAGUE!$C7,3,0) -> 3 | Q6: =IF(ELEAGUE!Q7=ELEAGUE!$C7,3,0) -> 3 | R6: =IF(ELEAGUE!R7=ELEAGUE!$C7,3,0) -> 0 | AK6: =ELEAGUE!D1 -> Jazz | AL6: =ELEAGUE!D82 -> 76
B7: vp - optic | C7: vp | D7: =IF(ELEAGUE!D8=ELEAGUE!$C8,3,0) -> 0 | E7: =IF(ELEAGUE!E8=ELEAGUE!$C8,3,0) -> 3 | F7: =IF(ELEAGUE!F8=ELEAGUE!$C8,3,0) -> 3 | G7: =IF(ELEAGUE!G8=ELEAGUE!$C8,3,0) -> 0 | H7: =IF(ELEAGUE!H8=ELEAGUE!$C8,3,0) -> 3 | I7: =IF(ELEAGUE!I8=ELEAGUE!$C8,3,0) -> 3 | J7: =IF(ELEAGUE!J8=ELEAGUE!$C8,3,0) -> 0 | K7: =IF(ELEAGUE!K8=ELEAGUE!$C8,3,0) -> 3 | L7: =IF(ELEAGUE!L8=ELEAGUE!$C8,3,0) -> 3 | M7: =IF(ELEAGUE!M8=ELEAGUE!$C8,3,0) -> 3 | N7: =IF(ELEAGUE!N8=ELEAGUE!$C8,3,0) -> 3 | O7: =IF(ELEAGUE!O8=ELEAGUE!$C8,3,0) -> 0 | P7: =IF(ELEAGUE!P8=ELEAGUE!$C8,3,0) -> 3 | Q7: =IF(ELEAGUE!Q8=ELEAGUE!$C8,3,0) -> 3 | R7: =IF(ELEAGUE!R8=ELEAGUE!$C8,3,0) -> 0 | AK7: =ELEAGUE!K1 -> budo | AL7: =ELEAGUE!K82 -> 76
B8: navi - mouz | C8: navi | D8: =IF(ELEAGUE!D9=ELEAGUE!$C9,3,0) -> 3 | E8: =IF(ELEAGUE!E9=ELEAGUE!$C9,3,0) -> 0 | F8: =IF(ELEAGUE!F9=ELEAGUE!$C9,3,0) -> 0 | G8: =IF(ELEAGUE!G9=ELEAGUE!$C9,3,0) -> 3 | H8: =IF(ELEAGUE!H9=ELEAGUE!$C9,3,0) -> 3 | I8: =IF(ELEAGUE!I9=ELEAGUE!$C9,3,0) -> 3 | J8: =IF(ELEAGUE!J9=ELEAGUE!$C9,3,0) -> 3 | K8: =IF(ELEAGUE!K9=ELEAGUE!$C9,3,0) -> 3 | L8: =IF(ELEAGUE!L9=ELEAGUE!$C9,3,0) -> 3 | M8: =IF(ELEAGUE!M9=ELEAGUE!$C9,3,0) -> 3 | N8: =IF(ELEAGUE!N9=ELEAGUE!$C9,3,0) -> 3 | O8: =IF(ELEAGUE!O9=ELEAGUE!$C9,3,0) -> 3 | P8: =IF(ELEAGUE!P9=ELEAGUE!$C9,3,0) -> 3 | Q8: =IF(ELEAGUE!Q9=ELEAGUE!$C9,3,0) -> 3 | R8: =IF(ELEAGUE!R9=ELEAGUE!$C9,3,0) -> 0 | AK8: =ELEAGUE!H1 -> Lema | AL8: =ELEAGUE!H82 -> 72
B9: liquid - nv | C9: nv | D9: =IF(ELEAGUE!D10=ELEAGUE!$C10,3,0) -> 3 | E9: =IF(ELEAGUE!E10=ELEAGUE!$C10,3,0) -> 3 | F9: =IF(ELEAGUE!F10=ELEAGUE!$C10,3,0) -> 3 | G9: =IF(ELEAGUE!G10=ELEAGUE!$C10,3,0) -> 0 | H9: =IF(ELEAGUE!H10=ELEAGUE!$C10,3,0) -> 3 | I9: =IF(ELEAGUE!I10=ELEAGUE!$C10,3,0) -> 0 | J9: =IF(ELEAGUE!J10=ELEAGUE!$C10,3,0) -> 3 | K9: =IF(ELEAGUE!K10=ELEAGUE!$C10,3,0) -> 0 | L9: =IF(ELEAGUE!L10=ELEAGUE!$C10,3,0) -> 3 | M9: =IF(ELEAGUE!M10=ELEAGUE!$C10,3,0) -> 3 | N9: =IF(ELEAGUE!N10=ELEAGUE!$C10,3,0) -> 3 | O9: =IF(ELEAGUE!O10=ELEAGUE!$C10,3,0) -> 3 | P9: =IF(ELEAGUE!P10=ELEAGUE!$C10,3,0) -> 3 | Q9: =IF(ELEAGUE!Q10=ELEAGUE!$C10,3,0) -> 3 | R9: =IF(ELEAGUE!R10=ELEAGUE!$C10,3,0) -> 0 | AK9: =ELEAGUE!I1 -> Cpassimal | AL9: =ELEAGUE!I82 -> 71
B10: astralis - godsent | C10: godsent | D10: =IF(ELEAGUE!D11=ELEAGUE!$C11,3,0) -> 0 | E10: =IF(ELEAGUE!E11=ELEAGUE!$C11,3,0) -> 0 | F10: =IF(ELEAGUE!F11=ELEAGUE!$C11,3,0) -> 0 | G10: =IF(ELEAGUE!G11=ELEAGUE!$C11,3,0) -> 3 | H10: =IF(ELEAGUE!H11=ELEAGUE!$C11,3,0) -> 0 | I10: =IF(ELEAGUE!I11=ELEAGUE!$C11,3,0) -> 0 | J10: =IF(ELEAGUE!J11=ELEAGUE!$C11,3,0) -> 0 | K10: =IF(ELEAGUE!K11=ELEAGUE!$C11,3,0) -> 0 | L10: =IF(ELEAGUE!L11=ELEAGUE!$C11,3,0) -> 0 | M10: =IF(ELEAGUE!M11=ELEAGUE!$C11,3,0) -> 0 | N10: =IF(ELEAGUE!N11=ELEAGUE!$C11,3,0) -> 0 | O10: =IF(ELEAGUE!O11=ELEAGUE!$C11,3,0) -> 0 | P10: =IF(ELEAGUE!P11=ELEAGUE!$C11,3,0) -> 0 | Q10: =IF(ELEAGUE!Q11=ELEAGUE!$C11,3,0) -> 0 | R10: =IF(ELEAGUE!R11=ELEAGUE!$C11,3,0) -> 0 | AK10: =ELEAGUE!F1 -> Epicier | AL10: =ELEAGUE!F82 -> 67
B11: f3 - faze | C11: faze | D11: =IF(ELEAGUE!D12=ELEAGUE!$C12,3,0) -> 3 | E11: =IF(ELEAGUE!E12=ELEAGUE!$C12,3,0) -> 3 | F11: =IF(ELEAGUE!F12=ELEAGUE!$C12,3,0) -> 0 | G11: =IF(ELEAGUE!G12=ELEAGUE!$C12,3,0) -> 3 | H11: =IF(ELEAGUE!H12=ELEAGUE!$C12,3,0) -> 3 | I11: =IF(ELEAGUE!I12=ELEAGUE!$C12,3,0) -> 3 | J11: =IF(ELEAGUE!J12=ELEAGUE!$C12,3,0) -> 3 | K11: =IF(ELEAGUE!K12=ELEAGUE!$C12,3,0) -> 3 | L11: =IF(ELEAGUE!L12=ELEAGUE!$C12,3,0) -> 3 | M11: =IF(ELEAGUE!M12=ELEAGUE!$C12,3,0) -> 3 | N11: =IF(ELEAGUE!N12=ELEAGUE!$C12,3,0) -> 3 | O11: =IF(ELEAGUE!O12=ELEAGUE!$C12,3,0) -> 3 | P11: =IF(ELEAGUE!P12=ELEAGUE!$C12,3,0) -> 3 | Q11: =IF(ELEAGUE!Q12=ELEAGUE!$C12,3,0) -> 3 | R11: =IF(ELEAGUE!R12=ELEAGUE!$C12,3,0) -> 0 | AK11: =ELEAGUE!Q1 -> Neo | AL11: =ELEAGUE!Q82 -> 65
A12: bonus du jour | B12: - | C12: - | D12: =IF(ELEAGUE!D13=ELEAGUE!$C13,3,0) -> 0 | E12: =IF(ELEAGUE!E13=ELEAGUE!$C13,3,0) -> 0 | F12: =IF(ELEAGUE!F13=ELEAGUE!$C13,3,0) -> 0 | G12: =IF(ELEAGUE!G13=ELEAGUE!$C13,3,0) -> 0 | H12: =IF(ELEAGUE!H13=ELEAGUE!$C13,3,0) -> 0 | I12: =IF(ELEAGUE!I13=ELEAGUE!$C13,3,0) -> 0 | J12: =IF(ELEAGUE!J13=ELEAGUE!$C13,3,0) -> 0 | K12: =IF(ELEAGUE!K13=ELEAGUE!$C13,3,0) -> 0 | L12: =IF(ELEAGUE!L13=ELEAGUE!$C13,3,0) -> 0 | M12: =IF(ELEAGUE!M13=ELEAGUE!$C13,3,0) -> 0 | N12: =IF(ELEAGUE!N13=ELEAGUE!$C13,3,0) -> 0 | O12: =IF(ELEAGUE!O13=ELEAGUE!$C13,3,0) -> 0 | P12: =IF(ELEAGUE!P13=ELEAGUE!$C13,3,0) -> 0 | Q12: =IF(ELEAGUE!Q13=ELEAGUE!$C13,3,0) -> 0 | R12: =IF(ELEAGUE!R13=ELEAGUE!$C13,3,0) -> 0 | AK12: =ELEAGUE!E1 -> doyL | AL12: =ELEAGUE!E82 -> 50
B13: Sous total | D13: =SUM(D4:D12) -> 12 | E13: =SUM(E4:E12) -> 12 | F13: 12 | G13: 15 | H13: 21 | I13: 18 | J13: 15 | K13: 15 | L13: 15 | M13: 18 | N13: 15 | O13: 15 | P13: 18 | Q13: 15 | R13: 0 | AK13: =ELEAGUE!G1 -> darks | AL13: =ELEAGUE!G82 -> 42
A14: Jour 2 | D14: =IF(ELEAGUE!D15=ELEAGUE!$C15,3,0) -> 3 | E14: =IF(ELEAGUE!E15=ELEAGUE!$C15,3,0) -> 3 | F14: =IF(ELEAGUE!F15=ELEAGUE!$C15,3,0) -> 3 | G14: =IF(ELEAGUE!G15=ELEAGUE!$C15,3,0) -> 3 | H14: =IF(ELEAGUE!H15=ELEAGUE!$C15,3,0) -> 3 | I14: =IF(ELEAGUE!I15=ELEAGUE!$C15,3,0) -> 3 | J14: =IF(ELEAGUE!J15=ELEAGUE!$C15,3,0) -> 0 | K14: =IF(ELEAGUE!K15=ELEAGUE!$C15,3,0) -> 3 | L14: =IF(ELEAGUE!L15=ELEAGUE!$C15,3,0) -> 3 | M14: =IF(ELEAGUE!M15=ELEAGUE!$C15,3,0) -> 0 | N14: =IF(ELEAGUE!N15=ELEAGUE!$C15,3,0) -> 3 | O14: =IF(ELEAGUE!O15=ELEAGUE!$C15,3,0) -> 3 | P14: =IF(ELEAGUE!P15=ELEAGUE!$C15,3,0) -> 3 | Q14: =IF(ELEAGUE!Q15=ELEAGUE!$C15,3,0) -> 3 | R14: =IF(ELEAGUE!R15=ELEAGUE!$C15,3,0) -> 0 | AK14: =ELEAGUE!M1 -> shogoki | AL14: =ELEAGUE!M82 -> 23
D15: =IF(ELEAGUE!D16=ELEAGUE!$C16,3,0) -> 3 | E15: =IF(ELEAGUE!E16=ELEAGUE!$C16,3,0) -> 0 | F15: =IF(ELEAGUE!F16=ELEAGUE!$C16,3,0) -> 3 | G15: =IF(ELEAGUE!G16=ELEAGUE!$C16,3,0) -> 3 | H15: =IF(ELEAGUE!H16=ELEAGUE!$C16,3,0) -> 3 | I15: =IF(ELEAGUE!I16=ELEAGUE!$C16,3,0) -> 3 | J15: =IF(ELEAGUE!J16=ELEAGUE!$C16,3,0) -> 0 | K15: =IF(ELEAGUE!K16=ELEAGUE!$C16,3,0) -> 3 | L15: =IF(ELEAGUE!L16=ELEAGUE!$C16,3,0) -> 3 | M15: =IF(ELEAGUE!M16=ELEAGUE!$C16,3,0) -> 0 | N15: =IF(ELEAGUE!N16=ELEAGUE!$C16,3,0) -> 3 | O15: =IF(ELEAGUE!O16=ELEAGUE!$C16,3,0) -> 3 | P15: =IF(ELEAGUE!P16=ELEAGUE!$C16,3,0) -> 3 | Q15: =IF(ELEAGUE!Q16=ELEAGUE!$C16,3,0) -> 3 | R15: =IF(ELEAGUE!R16=ELEAGUE!$C16,3,0) -> 0 | AK15: =ELEAGUE!J1 -> edia | AL15: =ELEAGUE!J82 -> 15
D16: =IF(ELEAGUE!D17=ELEAGUE!$C17,3,0) -> 0 | E16: =IF(ELEAGUE!E17=ELEAGUE!$C17,3,0) -> 0 | F16: =IF(ELEAGUE!F17=ELEAGUE!$C17,3,0) -> 3 | G16: =IF(ELEAGUE!G17=ELEAGUE!$C17,3,0) -> 3 | H16: =IF(ELEAGUE!H17=ELEAGUE!$C17,3,0) -> 3 | I16: =IF(ELEAGUE!I17=ELEAGUE!$C17,3,0) -> 3 | J16: =IF(ELEAGUE!J17=ELEAGUE!$C17,3,0) -> 0 | K16: =IF(ELEAGUE!K17=ELEAGUE!$C17,3,0) -> 3 | L16: =IF(ELEAGUE!L17=ELEAGUE!$C17,3,0) -> 3 | M16: =IF(ELEAGUE!M17=ELEAGUE!$C17,3,0) -> 0 | N16: =IF(ELEAGUE!N17=ELEAGUE!$C17,3,0) -> 3 | O16: =IF(ELEAGUE!O17=ELEAGUE!$C17,3,0) -> 0 | P16: =IF(ELEAGUE!P17=ELEAGUE!$C17,3,0) -> 3 | Q16: =IF(ELEAGUE!Q17=ELEAGUE!$C17,3,0) -> 3 | R16: =IF(ELEAGUE!R17=ELEAGUE!$C17,3,0) -> 0
D17: =IF(ELEAGUE!D18=ELEAGUE!$C18,3,0) -> 3 | E17: =IF(ELEAGUE!E18=ELEAGUE!$C18,3,0) -> 3 | F17: =IF(ELEAGUE!F18=ELEAGUE!$C18,3,0) -> 0 | G17: =IF(ELEAGUE!G18=ELEAGUE!$C18,3,0) -> 3 | H17: =IF(ELEAGUE!H18=ELEAGUE!$C18,3,0) -> 3 | I17: =IF(ELEAGUE!I18=ELEAGUE!$C18,3,0) -> 3 | J17: =IF(ELEAGUE!J18=ELEAGUE!$C18,3,0) -> 0 | K17: =IF(ELEAGUE!K18=ELEAGUE!$C18,3,0) -> 3 | L17: =IF(ELEAGUE!L18=ELEAGUE!$C18,3,0) -> 3 | M17: =IF(ELEAGUE!M18=ELEAGUE!$C18,3,0) -> 0 | N17: =IF(ELEAGUE!N18=ELEAGUE!$C18,3,0) -> 0 | O17: =IF(ELEAGUE!O18=ELEAGUE!$C18,3,0) -> 3 | P17: =IF(ELEAGUE!P18=ELEAGUE!$C18,3,0) -> 3 | Q17: =IF(ELEAGUE!Q18=ELEAGUE!$C18,3,0) -> 0 | R17: =IF(ELEAGUE!R18=ELEAGUE!$C18,3,0) -> 0
D18: =IF(ELEAGUE!D19=ELEAGUE!$C19,3,0) -> 3 | E18: =IF(ELEAGUE!E19=ELEAGUE!$C19,3,0) -> 3 | F18: =IF(ELEAGUE!F19=ELEAGUE!$C19,3,0) -> 3 | G18: =IF(ELEAGUE!G19=ELEAGUE!$C19,3,0) -> 3 | H18: =IF(ELEAGUE!H19=ELEAGUE!$C19,3,0) -> 3 | I18: =IF(ELEAGUE!I19=ELEAGUE!$C19,3,0) -> 3 | J18: =IF(ELEAGUE!J19=ELEAGUE!$C19,3,0) -> 0 | K18: =IF(ELEAGUE!K19=ELEAGUE!$C19,3,0) -> 3 | L18: =IF(ELEAGUE!L19=ELEAGUE!$C19,3,0) -> 3 | M18: =IF(ELEAGUE!M19=ELEAGUE!$C19,3,0) -> 0 | N18: =IF(ELEAGUE!N19=ELEAGUE!$C19,3,0) -> 3 | O18: =IF(ELEAGUE!O19=ELEAGUE!$C19,3,0) -> 3 | P18: =IF(ELEAGUE!P19=ELEAGUE!$C19,3,0) -> 3 | Q18: =IF(ELEAGUE!Q19=ELEAGUE!$C19,3,0) -> 3 | R18: =IF(ELEAGUE!R19=ELEAGUE!$C19,3,0) -> 0
D19: =IF(ELEAGUE!D20=ELEAGUE!$C20,3,0) -> 0 | E19: =IF(ELEAGUE!E20=ELEAGUE!$C20,3,0) -> 3 | F19: =IF(ELEAGUE!F20=ELEAGUE!$C20,3,0) -> 3 | G19: =IF(ELEAGUE!G20=ELEAGUE!$C20,3,0) -> 3 | H19: =IF(ELEAGUE!H20=ELEAGUE!$C20,3,0) -> 3 | I19: =IF(ELEAGUE!I20=ELEAGUE!$C20,3,0) -> 3 | J19: =IF(ELEAGUE!J20=ELEAGUE!$C20,3,0) -> 0 | K19: =IF(ELEAGUE!K20=ELEAGUE!$C20,3,0) -> 3 | L19: =IF(ELEAGUE!L20=ELEAGUE!$C20,3,0) -> 3 | M19: =IF(ELEAGUE!M20=ELEAGUE!$C20,3,0) -> 0 | N19: =IF(ELEAGUE!N20=ELEAGUE!$C20,3,0) -> 0 | O19: =IF(ELEAGUE!O20=ELEAGUE!$C20,3,0) -> 3 | P19: =IF(ELEAGUE!P20=ELEAGUE!$C20,3,0) -> 3 | Q19: =IF(ELEAGUE!Q20=ELEAGUE!$C20,3,0) -> 3 | R19: =IF(ELEAGUE!R20=ELEAGUE!$C20,3,0) -> 0
D20: =IF(ELEAGUE!D21=ELEAGUE!$C21,3,0) -> 0 | E20: =IF(ELEAGUE!E21=ELEAGUE!$C21,3,0) -> 0 | F20: =IF(ELEAGUE!F21=ELEAGUE!$C21,3,0) -> 0 | G20: =IF(ELEAGUE!G21=ELEAGUE!$C21,3,0) -> 3 | H20: =IF(ELEAGUE!H21=ELEAGUE!$C21,3,0) -> 3 | I20: =IF(ELEAGUE!I21=ELEAGUE!$C21,3,0) -> 0 | J20: =IF(ELEAGUE!J21=ELEAGUE!$C21,3,0) -> 0 | K20: =IF(ELEAGUE!K21=ELEAGUE!$C21,3,0) -> 0 | L20: =IF(ELEAGUE!L21=ELEAGUE!$C21,3,0) -> 0 | M20: =IF(ELEAGUE!M21=ELEAGUE!$C21,3,0) -> 0 | N20: =IF(ELEAGUE!N21=ELEAGUE!$C21,3,0) -> 0 | O20: =IF(ELEAGUE!O21=ELEAGUE!$C21,3,0) -> 0 | P20: =IF(ELEAGUE!P21=ELEAGUE!$C21,3,0) -> 0 | Q20: =IF(ELEAGUE!Q21=ELEAGUE!$C21,3,0) -> 3 | R20: =IF(ELEAGUE!R21=ELEAGUE!$C21,3,0) -> 0
D21: =IF(ELEAGUE!D22=ELEAGUE!$C22,3,0) -> 3 | E21: =IF(ELEAGUE!E22=ELEAGUE!$C22,3,0) -> 0 | F21: =IF(ELEAGUE!F22=ELEAGUE!$C22,3,0) -> 0 | G21: =IF(ELEAGUE!G22=ELEAGUE!$C22,3,0) -> 0 | H21: =IF(ELEAGUE!H22=ELEAGUE!$C22,3,0) -> 0 | I21: =IF(ELEAGUE!I22=ELEAGUE!$C22,3,0) -> 3 | J21: =IF(ELEAGUE!J22=ELEAGUE!$C22,3,0) -> 0 | K21: =IF(ELEAGUE!K22=ELEAGUE!$C22,3,0) -> 3 | L21: =IF(ELEAGUE!L22=ELEAGUE!$C22,3,0) -> 0 | M21: =IF(ELEAGUE!M22=ELEAGUE!$C22,3,0) -> 0 | N21: =IF(ELEAGUE!N22=ELEAGUE!$C22,3,0) -> 3 | O21: =IF(ELEAGUE!O22=ELEAGUE!$C22,3,0) -> 3 | P21: =IF(ELEAGUE!P22=ELEAGUE!$C22,3,0) -> 3 | Q21: =IF(ELEAGUE!Q22=ELEAGUE!$C22,3,0) -> 3 | R21: =IF(ELEAGUE!R22=ELEAGUE!$C22,3,0) -> 0
A22: bonus du jour | D22: =IF(ELEAGUE!D23=ELEAGUE!$C23,3,0) -> 3 | E22: =IF(ELEAGUE!E23=ELEAGUE!$C23,3,0) -> 0 | F22: =IF(ELEAGUE!F23=ELEAGUE!$C23,3,0) -> 0 | G22: =IF(ELEAGUE!G23=ELEAGUE!$C23,3,0) -> 0 | H22: =IF(ELEAGUE!H23=ELEAGUE!$C23,3,0) -> 0 | I22: =IF(ELEAGUE!I23=ELEAGUE!$C23,3,0) -> 0 | J22: =IF(ELEAGUE!J23=ELEAGUE!$C23,3,0) -> 0 | K22: =IF(ELEAGUE!K23=ELEAGUE!$C23,3,0) -> 0 | L22: =IF(ELEAGUE!L23=ELEAGUE!$C23,3,0) -> 0 | M22: =IF(ELEAGUE!M23=ELEAGUE!$C23,3,0) -> 0 | N22: =IF(ELEAGUE!N23=ELEAGUE!$C23,3,0) -> 0 | O22: =IF(ELEAGUE!O23=ELEAGUE!$C23,3,0) -> 0 | P22: =IF(ELEAGUE!P23=ELEAGUE!$C23,3,0) -> 0 | Q22: =IF(ELEAGUE!Q23=ELEAGUE!$C23,3,0) -> 0 | R22: =IF(ELEAGUE!R23=ELEAGUE!$C23,3,0) -> 0
B23: Sous total | D23: =SUM(D14:D22) -> 18 | E23: =SUM(E14:E22) -> 12 | F23: =SUM(F14:F22) -> 15 | G23: =SUM(G14:G22) -> 21 | H23: =SUM(H14:H22) -> 21 | I23: =SUM(I14:I22) -> 21 | J23: =SUM(J14:J22) -> 0 | K23: =SUM(K14:K22) -> 21 | L23: =SUM(L14:L22) -> 18 | M23: =SUM(M14:M22) -> 0 | N23: =SUM(N14:N22) -> 15 | O23: =SUM(O14:O22) -> 18 | P23: =SUM(P14:P22) -> 21 | Q23: =SUM(Q14:Q22) -> 21 | R23: =SUM(R14:R22) -> 0
A24: Jour 3 | D24: =IF(ELEAGUE!D25=ELEAGUE!$C25,3,0) -> 3 | E24: =IF(ELEAGUE!E25=ELEAGUE!$C25,3,0) -> 0 | F24: =IF(ELEAGUE!F25=ELEAGUE!$C25,3,0) -> 3 | G24: =IF(ELEAGUE!G25=ELEAGUE!$C25,3,0) -> 0 | H24: =IF(ELEAGUE!H25=ELEAGUE!$C25,3,0) -> 0 | I24: =IF(ELEAGUE!I25=ELEAGUE!$C25,3,0) -> 3 | J24: =IF(ELEAGUE!J25=ELEAGUE!$C25,3,0) -> 0 | K24: =IF(ELEAGUE!K25=ELEAGUE!$C25,3,0) -> 3 | L24: =IF(ELEAGUE!L25=ELEAGUE!$C25,3,0) -> 3 | M24: =IF(ELEAGUE!M25=ELEAGUE!$C25,3,0) -> 0 | N24: =IF(ELEAGUE!N25=ELEAGUE!$C25,3,0) -> 3 | O24: =IF(ELEAGUE!O25=ELEAGUE!$C25,3,0) -> 0 | P24: =IF(ELEAGUE!P25=ELEAGUE!$C25,3,0) -> 3 | Q24: =IF(ELEAGUE!Q25=ELEAGUE!$C25,3,0) -> 0 | R24: =IF(ELEAGUE!R25=ELEAGUE!$C25,3,0) -> 0
D25: =IF(ELEAGUE!D26=ELEAGUE!$C26,3,0) -> 3 | E25: =IF(ELEAGUE!E26=ELEAGUE!$C26,3,0) -> 3 | F25: =IF(ELEAGUE!F26=ELEAGUE!$C26,3,0) -> 0 | G25: =IF(ELEAGUE!G26=ELEAGUE!$C26,3,0) -> 0 | H25: =IF(ELEAGUE!H26=ELEAGUE!$C26,3,0) -> 0 | I25: =IF(ELEAGUE!I26=ELEAGUE!$C26,3,0) -> 0 | J25: =IF(ELEAGUE!J26=ELEAGUE!$C26,3,0) -> 0 | K25: =IF(ELEAGUE!K26=ELEAGUE!$C26,3,0) -> 0 | L25: =IF(ELEAGUE!L26=ELEAGUE!$C26,3,0) -> 0 | M25: =IF(ELEAGUE!M26=ELEAGUE!$C26,3,0) -> 0 | N25: =IF(ELEAGUE!N26=ELEAGUE!$C26,3,0) -> 3 | O25: =IF(ELEAGUE!O26=ELEAGUE!$C26,3,0) -> 0 | P25: =IF(ELEAGUE!P26=ELEAGUE!$C26,3,0) -> 0 | Q25: =IF(ELEAGUE!Q26=ELEAGUE!$C26,3,0) -> 0 | R25: =IF(ELEAGUE!R26=ELEAGUE!$C26,3,0) -> 0
D26: =IF(ELEAGUE!D27=ELEAGUE!$C27,3,0) -> 3 | E26: =IF(ELEAGUE!E27=ELEAGUE!$C27,3,0) -> 0 | F26: =IF(ELEAGUE!F27=ELEAGUE!$C27,3,0) -> 3 | G26: =IF(ELEAGUE!G27=ELEAGUE!$C27,3,0) -> 0 | H26: =IF(ELEAGUE!H27=ELEAGUE!$C27,3,0) -> 3 | I26: =IF(ELEAGUE!I27=ELEAGUE!$C27,3,0) -> 3 | J26: =IF(ELEAGUE!J27=ELEAGUE!$C27,3,0) -> 0 | K26: =IF(ELEAGUE!K27=ELEAGUE!$C27,3,0) -> 3 | L26: =IF(ELEAGUE!L27=ELEAGUE!$C27,3,0) -> 3 | M26: =IF(ELEAGUE!M27=ELEAGUE!$C27,3,0) -> 0 | N26: =IF(ELEAGUE!N27=ELEAGUE!$C27,3,0) -> 3 | O26: =IF(ELEAGUE!O27=ELEAGUE!$C27,3,0) -> 3 | P26: =IF(ELEAGUE!P27=ELEAGUE!$C27,3,0) -> 3 | Q26: =IF(ELEAGUE!Q27=ELEAGUE!$C27,3,0) -> 3 | R26: =IF(ELEAGUE!R27=ELEAGUE!$C27,3,0) -> 0
D27: =IF(ELEAGUE!D28=ELEAGUE!$C28,3,0) -> 3 | E27: =IF(ELEAGUE!E28=ELEAGUE!$C28,3,0) -> 3 | F27: =IF(ELEAGUE!F28=ELEAGUE!$C28,3,0) -> 3 | G27: =IF(ELEAGUE!G28=ELEAGUE!$C28,3,0) -> 3 | H27: =IF(ELEAGUE!H28=ELEAGUE!$C28,3,0) -> 0 | I27: =IF(ELEAGUE!I28=ELEAGUE!$C28,3,0) -> 3 | J27: =IF(ELEAGUE!J28=ELEAGUE!$C28,3,0) -> 0 | K27: =IF(ELEAGUE!K28=ELEAGUE!$C28,3,0) -> 3 | L27: =IF(ELEAGUE!L28=ELEAGUE!$C28,3,0) -> 3 | M27: =IF(ELEAGUE!M28=ELEAGUE!$C28,3,0) -> 0 | N27: =IF(ELEAGUE!N28=ELEAGUE!$C28,3,0) -> 3 | O27: =IF(ELEAGUE!O28=ELEAGUE!$C28,3,0) -> 3 | P27: =IF(ELEAGUE!P28=ELEAGUE!$C28,3,0) -> 3 | Q27: =IF(ELEAGUE!Q28=ELEAGUE!$C28,3,0) -> 0 | R27: =IF(ELEAGUE!R28=ELEAGUE!$C28,3,0) -> 0
D28: =IF(ELEAGUE!D29=ELEAGUE!$C29,3,0) -> 3 | E28: =IF(ELEAGUE!E29=ELEAGUE!$C29,3,0) -> 3 | F28: =IF(ELEAGUE!F29=ELEAGUE!$C29,3,0) -> 0 | G28: =IF(ELEAGUE!G29=ELEAGUE!$C29,3,0) -> 0 | H28: =IF(ELEAGUE!H29=ELEAGUE!$C29,3,0) -> 0 | I28: =IF(ELEAGUE!I29=ELEAGUE!$C29,3,0) -> 0 | J28: =IF(ELEAGUE!J29=ELEAGUE!$C29,3,0) -> 0 | K28: =IF(ELEAGUE!K29=ELEAGUE!$C29,3,0) -> 0 | L28: =IF(ELEAGUE!L29=ELEAGUE!$C29,3,0) -> 3 | M28: =IF(ELEAGUE!M29=ELEAGUE!$C29,3,0) -> 0 | N28: =IF(ELEAGUE!N29=ELEAGUE!$C29,3,0) -> 3 | O28: =IF(ELEAGUE!O29=ELEAGUE!$C29,3,0) -> 3 | P28: =IF(ELEAGUE!P29=ELEAGUE!$C29,3,0) -> 0 | Q28: =IF(ELEAGUE!Q29=ELEAGUE!$C29,3,0) -> 3 | R28: =IF(ELEAGUE!R29=ELEAGUE!$C29,3,0) -> 0
D29: =IF(ELEAGUE!D30=ELEAGUE!$C30,3,0) -> 0 | E29: =IF(ELEAGUE!E30=ELEAGUE!$C30,3,0) -> 3 | F29: =IF(ELEAGUE!F30=ELEAGUE!$C30,3,0) -> 0 | G29: =IF(ELEAGUE!G30=ELEAGUE!$C30,3,0) -> 3 | H29: =IF(ELEAGUE!H30=ELEAGUE!$C30,3,0) -> 3 | I29: =IF(ELEAGUE!I30=ELEAGUE!$C30,3,0) -> 3 | J29: =IF(ELEAGUE!J30=ELEAGUE!$C30,3,0) -> 0 | K29: =IF(ELEAGUE!K30=ELEAGUE!$C30,3,0) -> 0 | L29: =IF(ELEAGUE!L30=ELEAGUE!$C30,3,0) -> 3 | M29: =IF(ELEAGUE!M30=ELEAGUE!$C30,3,0) -> 0 | N29: =IF(ELEAGUE!N30=ELEAGUE!$C30,3,0) -> 0 | O29: =IF(ELEAGUE!O30=ELEAGUE!$C30,3,0) -> 3 | P29: =IF(ELEAGUE!P30=ELEAGUE!$C30,3,0) -> 3 | Q29: =IF(ELEAGUE!Q30=ELEAGUE!$C30,3,0) -> 0 | R29: =IF(ELEAGUE!R30=ELEAGUE!$C30,3,0) -> 0
D30: =IF(ELEAGUE!D31=ELEAGUE!$C31,3,0) -> 0 | E30: =IF(ELEAGUE!E31=ELEAGUE!$C31,3,0) -> 0 | F30: =IF(ELEAGUE!F31=ELEAGUE!$C31,3,0) -> 0 | G30: =IF(ELEAGUE!G31=ELEAGUE!$C31,3,0) -> 0 | H30: =IF(ELEAGUE!H31=ELEAGUE!$C31,3,0) -> 0 | I30: =IF(ELEAGUE!I31=ELEAGUE!$C31,3,0) -> 0 | J30: =IF(ELEAGUE!J31=ELEAGUE!$C31,3,0) -> 0 | K30: =IF(ELEAGUE!K31=ELEAGUE!$C31,3,0) -> 0 | L30: =IF(ELEAGUE!L31=ELEAGUE!$C31,3,0) -> 0 | M30: =IF(ELEAGUE!M31=ELEAGUE!$C31,3,0) -> 0 | N30: =IF(ELEAGUE!N31=ELEAGUE!$C31,3,0) -> 0 | O30: =IF(ELEAGUE!O31=ELEAGUE!$C31,3,0) -> 0 | P30: =IF(ELEAGUE!P31=ELEAGUE!$C31,3,0) -> 0 | Q30: =IF(ELEAGUE!Q31=ELEAGUE!$C31,3,0) -> 0 | R30: =IF(ELEAGUE!R31=ELEAGUE!$C31,3,0) -> 0
D31: =IF(ELEAGUE!D32=ELEAGUE!$C32,3,0) -> 0 | E31: =IF(ELEAGUE!E32=ELEAGUE!$C32,3,0) -> 0 | F31: =IF(ELEAGUE!F32=ELEAGUE!$C32,3,0) -> 0 | G31: =IF(ELEAGUE!G32=ELEAGUE!$C32,3,0) -> 0 | H31: =IF(ELEAGUE!H32=ELEAGUE!$C32,3,0) -> 0 | I31: =IF(ELEAGUE!I32=ELEAGUE!$C32,3,0) -> 0 | J31: =IF(ELEAGUE!J32=ELEAGUE!$C32,3,0) -> 0 | K31: =IF(ELEAGUE!K32=ELEAGUE!$C32,3,0) -> 0 | L31: =IF(ELEAGUE!L32=ELEAGUE!$C32,3,0) -> 0 | M31: =IF(ELEAGUE!M32=ELEAGUE!$C32,3,0) -> 0 | N31: =IF(ELEAGUE!N32=ELEAGUE!$C32,3,0) -> 0 | O31: =IF(ELEAGUE!O32=ELEAGUE!$C32,3,0) -> 0 | P31: =IF(ELEAGUE!P32=ELEAGUE!$C32,3,0) -> 0 | Q31: =IF(ELEAGUE!Q32=ELEAGUE!$C32,3,0) -> 0 | R31: =IF(ELEAGUE!R32=ELEAGUE!$C32,3,0) -> 0
A32: bonus du jour | D32: =IF(ELEAGUE!D33=ELEAGUE!$C33,3,0) -> 0 | E32: =IF(ELEAGUE!E33=ELEAGUE!$C33,3,0) -> 0 | F32: =IF(ELEAGUE!F33=ELEAGUE!$C33,3,0) -> 0 | G32: =IF(ELEAGUE!G33=ELEAGUE!$C33,3,0) -> 0 | H32: =IF(ELEAGUE!H33=ELEAGUE!$C33,3,0) -> 0 | I32: =IF(ELEAGUE!I33=ELEAGUE!$C33,3,0) -> 0 | J32: =IF(ELEAGUE!J33=ELEAGUE!$C33,3,0) -> 0 | K32: =IF(ELEAGUE!K33=ELEAGUE!$C33,3,0) -> 0 | L32: =IF(ELEAGUE!L33=ELEAGUE!$C33,3,0) -> 0 | M32: =IF(ELEAGUE!M33=ELEAGUE!$C33,3,0) -> 0 | N32: =IF(ELEAGUE!N33=ELEAGUE!$C33,3,0) -> 0 | O32: =IF(ELEAGUE!O33=ELEAGUE!$C33,3,0) -> 0 | P32: =IF(ELEAGUE!P33=ELEAGUE!$C33,3,0) -> 0 | Q32: =IF(ELEAGUE!Q33=ELEAGUE!$C33,3,0) -> 0 | R32: =IF(ELEAGUE!R33=ELEAGUE!$C33,3,0) -> 0
B33: Sous total | D33: =SUM(D24:D32) -> 15 | E33: =SUM(E24:E32) -> 12 | F33: =SUM(F24:F32) -> 9 | G33: =SUM(G24:G32) -> 6 | H33: =SUM(H24:H32) -> 6 | I33: =SUM(I24:I32) -> 12 | J33: =SUM(J24:J32) -> 0 | K33: =SUM(K24:K32) -> 9 | L33: =SUM(L24:L32) -> 15 | M33: =SUM(M24:M32) -> 0 | N33: =SUM(N24:N32) -> 15 | O33: =SUM(O24:O32) -> 12 | P33: =SUM(P24:P32) -> 12 | Q33: =SUM(Q24:Q32) -> 6 | R33: =SUM(R24:R32) -> 0
A34: Jour 4 | D34: =IF(ELEAGUE!D35=ELEAGUE!$C35,3,0) -> 0 | E34: =IF(ELEAGUE!E35=ELEAGUE!$C35,3,0) -> 3 | F34: =IF(ELEAGUE!F35=ELEAGUE!$C35,3,0) -> 0 | G34: =IF(ELEAGUE!G35=ELEAGUE!$C35,3,0) -> 0 | H34: =IF(ELEAGUE!H35=ELEAGUE!$C35,3,0) -> 0 | I34: =IF(ELEAGUE!I35=ELEAGUE!$C35,3,0) -> 0 | J34: =IF(ELEAGUE!J35=ELEAGUE!$C35,3,0) -> 0 | K34: =IF(ELEAGUE!K35=ELEAGUE!$C35,3,0) -> 0 | L34: =IF(ELEAGUE!L35=ELEAGUE!$C35,3,0) -> 0 | M34: =IF(ELEAGUE!M35=ELEAGUE!$C35,3,0) -> 0 | N34: =IF(ELEAGUE!N35=ELEAGUE!$C35,3,0) -> 3 | O34: =IF(ELEAGUE!O35=ELEAGUE!$C35,3,0) -> 3 | P34: =IF(ELEAGUE!P35=ELEAGUE!$C35,3,0) -> 0 | Q34: =IF(ELEAGUE!Q35=ELEAGUE!$C35,3,0) -> 0 | R34: =IF(ELEAGUE!R35=ELEAGUE!$C35,3,0) -> 0
D35: =IF(ELEAGUE!D36=ELEAGUE!$C36,3,0) -> 0 | E35: =IF(ELEAGUE!E36=ELEAGUE!$C36,3,0) -> 0 | F35: =IF(ELEAGUE!F36=ELEAGUE!$C36,3,0) -> 0 | G35: =IF(ELEAGUE!G36=ELEAGUE!$C36,3,0) -> 0 | H35: =IF(ELEAGUE!H36=ELEAGUE!$C36,3,0) -> 0 | I35: =IF(ELEAGUE!I36=ELEAGUE!$C36,3,0) -> 0 | J35: =IF(ELEAGUE!J36=ELEAGUE!$C36,3,0) -> 0 | K35: =IF(ELEAGUE!K36=ELEAGUE!$C36,3,0) -> 0 | L35: =IF(ELEAGUE!L36=ELEAGUE!$C36,3,0) -> 0 | M35: =IF(ELEAGUE!M36=ELEAGUE!$C36,3,0) -> 0 | N35: =IF(ELEAGUE!N36=ELEAGUE!$C36,3,0) -> 3 | O35: =IF(ELEAGUE!O36=ELEAGUE!$C36,3,0) -> 3 | P35: =IF(ELEAGUE!P36=ELEAGUE!$C36,3,0) -> 3 | Q35: =IF(ELEAGUE!Q36=ELEAGUE!$C36,3,0) -> 0 | R35: =IF(ELEAGUE!R36=ELEAGUE!$C36,3,0) -> 0
D36: =IF(ELEAGUE!D37=ELEAGUE!$C37,3,0) -> 3 | E36: =IF(ELEAGUE!E37=ELEAGUE!$C37,3,0) -> 0 | F36: =IF(ELEAGUE!F37=ELEAGUE!$C37,3,0) -> 3 | G36: =IF(ELEAGUE!G37=ELEAGUE!$C37,3,0) -> 0 | H36: =IF(ELEAGUE!H37=ELEAGUE!$C37,3,0) -> 0 | I36: =IF(ELEAGUE!I37=ELEAGUE!$C37,3,0) -> 3 | J36: =IF(ELEAGUE!J37=ELEAGUE!$C37,3,0) -> 0 | K36: =IF(ELEAGUE!K37=ELEAGUE!$C37,3,0) -> 3 | L36: =IF(ELEAGUE!L37=ELEAGUE!$C37,3,0) -> 3 | M36: =IF(ELEAGUE!M37=ELEAGUE!$C37,3,0) -> 0 | N36: =IF(ELEAGUE!N37=ELEAGUE!$C37,3,0) -> 0 | O36: =IF(ELEAGUE!O37=ELEAGUE!$C37,3,0) -> 3 | P36: =IF(ELEAGUE!P37=ELEAGUE!$C37,3,0) -> 3 | Q36: =IF(ELEAGUE!Q37=ELEAGUE!$C37,3,0) -> 3 | R36: =IF(ELEAGUE!R37=ELEAGUE!$C37,3,0) -> 0
D37: =IF(ELEAGUE!D38=ELEAGUE!$C38,3,0) -> 0 | E37: =IF(ELEAGUE!E38=ELEAGUE!$C38,3,0) -> 3 | F37: =IF(ELEAGUE!F38=ELEAGUE!$C38,3,0) -> 3 | G37: =IF(ELEAGUE!G38=ELEAGUE!$C38,3,0) -> 0 | H37: =IF(ELEAGUE!H38=ELEAGUE!$C38,3,0) -> 3 | I37: =IF(ELEAGUE!I38=ELEAGUE!$C38,3,0) -> 0 | J37: =IF(ELEAGUE!J38=ELEAGUE!$C38,3,0) -> 0 | K37: =IF(ELEAGUE!K38=ELEAGUE!$C38,3,0) -> 0 | L37: =IF(ELEAGUE!L38=ELEAGUE!$C38,3,0) -> 0 | M37: =IF(ELEAGUE!M38=ELEAGUE!$C38,3,0) -> 0 | N37: =IF(ELEAGUE!N38=ELEAGUE!$C38,3,0) -> 0 | O37: =IF(ELEAGUE!O38=ELEAGUE!$C38,3,0) -> 0 | P37: =IF(ELEAGUE!P38=ELEAGUE!$C38,3,0) -> 3 | Q37: =IF(ELEAGUE!Q38=ELEAGUE!$C38,3,0) -> 0 | R37: =IF(ELEAGUE!R38=ELEAGUE!$C38,3,0) -> 0
D38: =IF(ELEAGUE!D39=ELEAGUE!$C39,3,0) -> 0 | E38: =IF(ELEAGUE!E39=ELEAGUE!$C39,3,0) -> 3 | F38: =IF(ELEAGUE!F39=ELEAGUE!$C39,3,0) -> 3 | G38: =IF(ELEAGUE!G39=ELEAGUE!$C39,3,0) -> 0 | H38: =IF(ELEAGUE!H39=ELEAGUE!$C39,3,0) -> 0 | I38: =IF(ELEAGUE!I39=ELEAGUE!$C39,3,0) -> 0 | J38: =IF(ELEAGUE!J39=ELEAGUE!$C39,3,0) -> 0 | K38: =IF(ELEAGUE!K39=ELEAGUE!$C39,3,0) -> 0 | L38: =IF(ELEAGUE!L39=ELEAGUE!$C39,3,0) -> 0 | M38: =IF(ELEAGUE!M39=ELEAGUE!$C39,3,0) -> 0 | N38: =IF(ELEAGUE!N39=ELEAGUE!$C39,3,0) -> 3 | O38: =IF(ELEAGUE!O39=ELEAGUE!$C39,3,0) -> 0 | P38: =IF(ELEAGUE!P39=ELEAGUE!$C39,3,0) -> 3 | Q38: =IF(ELEAGUE!Q39=ELEAGUE!$C39,3,0) -> 0 | R38: =IF(ELEAGUE!R39=ELEAGUE!$C39,3,0) -> 0
D39: =IF(ELEAGUE!D40=ELEAGUE!$C40,3,0) -> 3 | E39: =IF(ELEAGUE!E40=ELEAGUE!$C40,3,0) -> 0 | F39: =IF(ELEAGUE!F40=ELEAGUE!$C40,3,0) -> 3 | G39: =IF(ELEAGUE!G40=ELEAGUE!$C40,3,0) -> 0 | H39: =IF(ELEAGUE!H40=ELEAGUE!$C40,3,0) -> 0 | I39: =IF(ELEAGUE!I40=ELEAGUE!$C40,3,0) -> 3 | J39: =IF(ELEAGUE!J40=ELEAGUE!$C40,3,0) -> 0 | K39: =IF(ELEAGUE!K40=ELEAGUE!$C40,3,0) -> 3 | L39: =IF(ELEAGUE!L40=ELEAGUE!$C40,3,0) -> 3 | M39: =IF(ELEAGUE!M40=ELEAGUE!$C40,3,0) -> 0 | N39: =IF(ELEAGUE!N40=ELEAGUE!$C40,3,0) -> 3 | O39: =IF(ELEAGUE!O40=ELEAGUE!$C40,3,0) -> 3 | P39: =IF(ELEAGUE!P40=ELEAGUE!$C40,3,0) -> 3 | Q39: =IF(ELEAGUE!Q40=ELEAGUE!$C40,3,0) -> 3 | R39: =IF(ELEAGUE!R40=ELEAGUE!$C40,3,0) -> 0
D40: =IF(ELEAGUE!D41=ELEAGUE!$C41,3,0) -> 0 | E40: =IF(ELEAGUE!E41=ELEAGUE!$C41,3,0) -> 0 | F40: =IF(ELEAGUE!F41=ELEAGUE!$C41,3,0) -> 0 | G40: =IF(ELEAGUE!G41=ELEAGUE!$C41,3,0) -> 0 | H40: =IF(ELEAGUE!H41=ELEAGUE!$C41,3,0) -> 0 | I40: =IF(ELEAGUE!I41=ELEAGUE!$C41,3,0) -> 0 | J40: =IF(ELEAGUE!J41=ELEAGUE!$C41,3,0) -> 0 | K40: =IF(ELEAGUE!K41=ELEAGUE!$C41,3,0) -> 0 | L40: =IF(ELEAGUE!L41=ELEAGUE!$C41,3,0) -> 0 | M40: =IF(ELEAGUE!M41=ELEAGUE!$C41,3,0) -> 0 | N40: =IF(ELEAGUE!N41=ELEAGUE!$C41,3,0) -> 0 | O40: =IF(ELEAGUE!O41=ELEAGUE!$C41,3,0) -> 0 | P40: =IF(ELEAGUE!P41=ELEAGUE!$C41,3,0) -> 0 | Q40: =IF(ELEAGUE!Q41=ELEAGUE!$C41,3,0) -> 0 | R40: =IF(ELEAGUE!R41=ELEAGUE!$C41,3,0) -> 0
D41: =IF(ELEAGUE!D42=ELEAGUE!$C42,3,0) -> 0 | E41: =IF(ELEAGUE!E42=ELEAGUE!$C42,3,0) -> 0 | F41: =IF(ELEAGUE!F42=ELEAGUE!$C42,3,0) -> 0 | G41: =IF(ELEAGUE!G42=ELEAGUE!$C42,3,0) -> 0 | H41: =IF(ELEAGUE!H42=ELEAGUE!$C42,3,0) -> 0 | I41: =IF(ELEAGUE!I42=ELEAGUE!$C42,3,0) -> 0 | J41: =IF(ELEAGUE!J42=ELEAGUE!$C42,3,0) -> 0 | K41: =IF(ELEAGUE!K42=ELEAGUE!$C42,3,0) -> 0 | L41: =IF(ELEAGUE!L42=ELEAGUE!$C42,3,0) -> 0 | M41: =IF(ELEAGUE!M42=ELEAGUE!$C42,3,0) -> 0 | N41: =IF(ELEAGUE!N42=ELEAGUE!$C42,3,0) -> 0 | O41: =IF(ELEAGUE!O42=ELEAGUE!$C42,3,0) -> 0 | P41: =IF(ELEAGUE!P42=ELEAGUE!$C42,3,0) -> 0 | Q41: =IF(ELEAGUE!Q42=ELEAGUE!$C42,3,0) -> 0 | R41: =IF(ELEAGUE!R42=ELEAGUE!$C42,3,0) -> 0
A42: bonus du jour | D42: =IF(ELEAGUE!D43=ELEAGUE!$C43,2,0) -> 0 | E42: =IF(ELEAGUE!E43=ELEAGUE!$C43,2,0) -> 0 | F42: =IF(ELEAGUE!F43=ELEAGUE!$C43,2,0) -> 2 | G42: =IF(ELEAGUE!G43=ELEAGUE!$C43,2,0) -> 0 | H42: =IF(ELEAGUE!H43=ELEAGUE!$C43,2,0) -> 0 | I42: =IF(ELEAGUE!I43=ELEAGUE!$C43,2,0) -> 0 | J42: =IF(ELEAGUE!J43=ELEAGUE!$C43,2,0) -> 0 | K42: =IF(ELEAGUE!K43=ELEAGUE!$C43,2,0) -> 0 | L42: =IF(ELEAGUE!L43=ELEAGUE!$C43,2,0) -> 0 | M42: =IF(ELEAGUE!M43=ELEAGUE!$C43,2,0) -> 0 | N42: =IF(ELEAGUE!N43=ELEAGUE!$C43,2,0) -> 2 | O42: =IF(ELEAGUE!O43=ELEAGUE!$C43,2,0) -> 0 | P42: =IF(ELEAGUE!P43=ELEAGUE!$C43,2,0) -> 0 | Q42: =IF(ELEAGUE!Q43=ELEAGUE!$C43,2,0) -> 0 | R42: =IF(ELEAGUE!R43=ELEAGUE!$C43,2,0) -> 0
B43: Sous total | D43: =SUM(D34:D42) -> 6 | E43: =SUM(E34:E42) -> 9 | F43: =SUM(F34:F42) -> 14 | G43: =SUM(G34:G42) -> 0 | H43: =SUM(H34:H42) -> 3 | I43: =SUM(I34:I42) -> 6 | J43: =SUM(J34:J42) -> 0 | K43: =SUM(K34:K42) -> 6 | L43: =SUM(L34:L42) -> 6 | M43: =SUM(M34:M42) -> 0 | N43: =SUM(N34:N42) -> 14 | O43: =SUM(O34:O42) -> 12 | P43: =SUM(P34:P42) -> 15 | Q43: =SUM(Q34:Q42) -> 6 | R43: =SUM(R34:R42) -> 0
C44: Quarts | D44: =IF(ELEAGUE!$C57=ELEAGUE!D57,6,IF(OR(LEFT(ELEAGUE!$C57,1)=LEFT(ELEAGUE!D57,1),RIGHT(ELEAGUE!$C57,1)=RIGHT(ELEAGUE!D57,1)),4,0)) -> 0 | E44: =IF(ELEAGUE!$C57=ELEAGUE!E57,6,IF(OR(LEFT(ELEAGUE!$C57,1)=LEFT(ELEAGUE!E57,1),RIGHT(ELEAGUE!$C57,1)=RIGHT(ELEAGUE!E57,1)),4,0)) -> 0 | F44: =IF(ELEAGUE!$C57=ELEAGUE!F57,6,IF(OR(LEFT(ELEAGUE!$C57,1)=LEFT(ELEAGUE!F57,1),RIGHT(ELEAGUE!$C57,1)=RIGHT(ELEAGUE!F57,1)),4,0)) -> 0 | G44: =IF(ELEAGUE!$C57=ELEAGUE!G57,6,IF(OR(LEFT(ELEAGUE!$C57,1)=LEFT(ELEAGUE!G57,1),RIGHT(ELEAGUE!$C57,1)=RIGHT(ELEAGUE!G57,1)),4,0)) -> 0 | H44: =IF(ELEAGUE!$C57=ELEAGUE!H57,6,IF(OR(LEFT(ELEAGUE!$C57,1)=LEFT(ELEAGUE!H57,1),RIGHT(ELEAGUE!$C57,1)=RIGHT(ELEAGUE!H57,1)),4,0)) -> 0 | I44: =IF(ELEAGUE!$C57=ELEAGUE!I57,6,IF(OR(LEFT(ELEAGUE!$C57,1)=LEFT(ELEAGUE!I57,1),RIGHT(ELEAGUE!$C57,1)=RIGHT(ELEAGUE!I57,1)),4,0)) -> 0 | J44: =IF(ELEAGUE!$C57=ELEAGUE!J57,6,IF(OR(LEFT(ELEAGUE!$C57,1)=LEFT(ELEAGUE!J57,1),RIGHT(ELEAGUE!$C57,1)=RIGHT(ELEAGUE!J57,1)),4,0)) -> 0 | K44: =IF(ELEAGUE!$C57=ELEAGUE!K57,6,IF(OR(LEFT(ELEAGUE!$C57,1)=LEFT(ELEAGUE!K57,1),RIGHT(ELEAGUE!$C57,1)=RIGHT(ELEAGUE!K57,1)),4,0)) -> 0 | L44: =IF(ELEAGUE!$C57=ELEAGUE!L57,6,IF(OR(LEFT(ELEAGUE!$C57,1)=LEFT(ELEAGUE!L57,1),RIGHT(ELEAGUE!$C57,1)=RIGHT(ELEAGUE!L57,1)),4,0)) -> 0 | M44: =IF(ELEAGUE!$C57=ELEAGUE!M57,6,IF(OR(LEFT(ELEAGUE!$C57,1)=LEFT(ELEAGUE!M57,1),RIGHT(ELEAGUE!$C57,1)=RIGHT(ELEAGUE!M57,1)),4,0)) -> 0 | N44: =IF(ELEAGUE!$C57=ELEAGUE!N57,6,IF(OR(LEFT(ELEAGUE!$C57,1)=LEFT(ELEAGUE!N57,1),RIGHT(ELEAGUE!$C57,1)=RIGHT(ELEAGUE!N57,1)),4,0)) -> 0 | O44: =IF(ELEAGUE!$C57=ELEAGUE!O57,6,IF(OR(LEFT(ELEAGUE!$C57,1)=LEFT(ELEAGUE!O57,1),RIGHT(ELEAGUE!$C57,1)=RIGHT(ELEAGUE!O57,1)),4,0)) -> 6 | P44: =IF(ELEAGUE!$C57=ELEAGUE!P57,6,IF(OR(LEFT(ELEAGUE!$C57,1)=LEFT(ELEAGUE!P57,1),RIGHT(ELEAGUE!$C57,1)=RIGHT(ELEAGUE!P57,1)),4,0)) -> 0 | Q44: =IF(ELEAGUE!$C57=ELEAGUE!Q57,6,IF(OR(LEFT(ELEAGUE!$C57,1)=LEFT(ELEAGUE!Q57,1),RIGHT(ELEAGUE!$C57,1)=RIGHT(ELEAGUE!Q57,1)),4,0)) -> 0 | R44: =IF(ELEAGUE!$C57=ELEAGUE!R57,6,IF(OR(LEFT(ELEAGUE!$C57,1)=LEFT(ELEAGUE!R57,1),RIGHT(ELEAGUE!$C57,1)=RIGHT(ELEAGUE!R57,1)),4,0)) -> 0
D45: =IF(ELEAGUE!$C58=ELEAGUE!D58,6,IF(OR(LEFT(ELEAGUE!$C58,1)=LEFT(ELEAGUE!D58,1),RIGHT(ELEAGUE!$C58,1)=RIGHT(ELEAGUE!D58,1)),4,0)) -> 4 | E45: =IF(ELEAGUE!$C58=ELEAGUE!E58,6,IF(OR(LEFT(ELEAGUE!$C58,1)=LEFT(ELEAGUE!E58,1),RIGHT(ELEAGUE!$C58,1)=RIGHT(ELEAGUE!E58,1)),4,0)) -> 0 | F45: =IF(ELEAGUE!$C58=ELEAGUE!F58,6,IF(OR(LEFT(ELEAGUE!$C58,1)=LEFT(ELEAGUE!F58,1),RIGHT(ELEAGUE!$C58,1)=RIGHT(ELEAGUE!F58,1)),4,0)) -> 0 | G45: =IF(ELEAGUE!$C58=ELEAGUE!G58,6,IF(OR(LEFT(ELEAGUE!$C58,1)=LEFT(ELEAGUE!G58,1),RIGHT(ELEAGUE!$C58,1)=RIGHT(ELEAGUE!G58,1)),4,0)) -> 0 | H45: =IF(ELEAGUE!$C58=ELEAGUE!H58,6,IF(OR(LEFT(ELEAGUE!$C58,1)=LEFT(ELEAGUE!H58,1),RIGHT(ELEAGUE!$C58,1)=RIGHT(ELEAGUE!H58,1)),4,0)) -> 0 | I45: =IF(ELEAGUE!$C58=ELEAGUE!I58,6,IF(OR(LEFT(ELEAGUE!$C58,1)=LEFT(ELEAGUE!I58,1),RIGHT(ELEAGUE!$C58,1)=RIGHT(ELEAGUE!I58,1)),4,0)) -> 0 | J45: =IF(ELEAGUE!$C58=ELEAGUE!J58,6,IF(OR(LEFT(ELEAGUE!$C58,1)=LEFT(ELEAGUE!J58,1),RIGHT(ELEAGUE!$C58,1)=RIGHT(ELEAGUE!J58,1)),4,0)) -> 0 | K45: =IF(ELEAGUE!$C58=ELEAGUE!K58,6,IF(OR(LEFT(ELEAGUE!$C58,1)=LEFT(ELEAGUE!K58,1),RIGHT(ELEAGUE!$C58,1)=RIGHT(ELEAGUE!K58,1)),4,0)) -> 0 | L45: =IF(ELEAGUE!$C58=ELEAGUE!L58,6,IF(OR(LEFT(ELEAGUE!$C58,1)=LEFT(ELEAGUE!L58,1),RIGHT(ELEAGUE!$C58,1)=RIGHT(ELEAGUE!L58,1)),4,0)) -> 0 | M45: =IF(ELEAGUE!$C58=ELEAGUE!M58,6,IF(OR(LEFT(ELEAGUE!$C58,1)=LEFT(ELEAGUE!M58,1),RIGHT(ELEAGUE!$C58,1)=RIGHT(ELEAGUE!M58,1)),4,0)) -> 0 | N45: =IF(ELEAGUE!$C58=ELEAGUE!N58,6,IF(OR(LEFT(ELEAGUE!$C58,1)=LEFT(ELEAGUE!N58,1),RIGHT(ELEAGUE!$C58,1)=RIGHT(ELEAGUE!N58,1)),4,0)) -> 0 | O45: =IF(ELEAGUE!$C58=ELEAGUE!O58,6,IF(OR(LEFT(ELEAGUE!$C58,1)=LEFT(ELEAGUE!O58,1),RIGHT(ELEAGUE!$C58,1)=RIGHT(ELEAGUE!O58,1)),4,0)) -> 6 | P45: =IF(ELEAGUE!$C58=ELEAGUE!P58,6,IF(OR(LEFT(ELEAGUE!$C58,1)=LEFT(ELEAGUE!P58,1),RIGHT(ELEAGUE!$C58,1)=RIGHT(ELEAGUE!P58,1)),4,0)) -> 0 | Q45: =IF(ELEAGUE!$C58=ELEAGUE!Q58,6,IF(OR(LEFT(ELEAGUE!$C58,1)=LEFT(ELEAGUE!Q58,1),RIGHT(ELEAGUE!$C58,1)=RIGHT(ELEAGUE!Q58,1)),4,0)) -> 0 | R45: =IF(ELEAGUE!$C58=ELEAGUE!R58,6,IF(OR(LEFT(ELEAGUE!$C58,1)=LEFT(ELEAGUE!R58,1),RIGHT(ELEAGUE!$C58,1)=RIGHT(ELEAGUE!R58,1)),4,0)) -> 0
D46: =IF(ELEAGUE!$C59=ELEAGUE!D59,6,IF(OR(LEFT(ELEAGUE!$C59,1)=LEFT(ELEAGUE!D59,1),RIGHT(ELEAGUE!$C59,1)=RIGHT(ELEAGUE!D59,1)),4,0)) -> 4 | E46: =IF(ELEAGUE!$C59=ELEAGUE!E59,6,IF(OR(LEFT(ELEAGUE!$C59,1)=LEFT(ELEAGUE!E59,1),RIGHT(ELEAGUE!$C59,1)=RIGHT(ELEAGUE!E59,1)),4,0)) -> 0 | F46: =IF(ELEAGUE!$C59=ELEAGUE!F59,6,IF(OR(LEFT(ELEAGUE!$C59,1)=LEFT(ELEAGUE!F59,1),RIGHT(ELEAGUE!$C59,1)=RIGHT(ELEAGUE!F59,1)),4,0)) -> 4 | G46: =IF(ELEAGUE!$C59=ELEAGUE!G59,6,IF(OR(LEFT(ELEAGUE!$C59,1)=LEFT(ELEAGUE!G59,1),RIGHT(ELEAGUE!$C59,1)=RIGHT(ELEAGUE!G59,1)),4,0)) -> 0 | H46: =IF(ELEAGUE!$C59=ELEAGUE!H59,6,IF(OR(LEFT(ELEAGUE!$C59,1)=LEFT(ELEAGUE!H59,1),RIGHT(ELEAGUE!$C59,1)=RIGHT(ELEAGUE!H59,1)),4,0)) -> 6 | I46: =IF(ELEAGUE!$C59=ELEAGUE!I59,6,IF(OR(LEFT(ELEAGUE!$C59,1)=LEFT(ELEAGUE!I59,1),RIGHT(ELEAGUE!$C59,1)=RIGHT(ELEAGUE!I59,1)),4,0)) -> 4 | J46: =IF(ELEAGUE!$C59=ELEAGUE!J59,6,IF(OR(LEFT(ELEAGUE!$C59,1)=LEFT(ELEAGUE!J59,1),RIGHT(ELEAGUE!$C59,1)=RIGHT(ELEAGUE!J59,1)),4,0)) -> 0 | K46: =IF(ELEAGUE!$C59=ELEAGUE!K59,6,IF(OR(LEFT(ELEAGUE!$C59,1)=LEFT(ELEAGUE!K59,1),RIGHT(ELEAGUE!$C59,1)=RIGHT(ELEAGUE!K59,1)),4,0)) -> 6 | L46: =IF(ELEAGUE!$C59=ELEAGUE!L59,6,IF(OR(LEFT(ELEAGUE!$C59,1)=LEFT(ELEAGUE!L59,1),RIGHT(ELEAGUE!$C59,1)=RIGHT(ELEAGUE!L59,1)),4,0)) -> 4 | M46: =IF(ELEAGUE!$C59=ELEAGUE!M59,6,IF(OR(LEFT(ELEAGUE!$C59,1)=LEFT(ELEAGUE!M59,1),RIGHT(ELEAGUE!$C59,1)=RIGHT(ELEAGUE!M59,1)),4,0)) -> 0 | N46: =IF(ELEAGUE!$C59=ELEAGUE!N59,6,IF(OR(LEFT(ELEAGUE!$C59,1)=LEFT(ELEAGUE!N59,1),RIGHT(ELEAGUE!$C59,1)=RIGHT(ELEAGUE!N59,1)),4,0)) -> 6 | O46: =IF(ELEAGUE!$C59=ELEAGUE!O59,6,IF(OR(LEFT(ELEAGUE!$C59,1)=LEFT(ELEAGUE!O59,1),RIGHT(ELEAGUE!$C59,1)=RIGHT(ELEAGUE!O59,1)),4,0)) -> 6 | P46: =IF(ELEAGUE!$C59=ELEAGUE!P59,6,IF(OR(LEFT(ELEAGUE!$C59,1)=LEFT(ELEAGUE!P59,1),RIGHT(ELEAGUE!$C59,1)=RIGHT(ELEAGUE!P59,1)),4,0)) -> 6 | Q46: =IF(ELEAGUE!$C59=ELEAGUE!Q59,6,IF(OR(LEFT(ELEAGUE!$C59,1)=LEFT(ELEAGUE!Q59,1),RIGHT(ELEAGUE!$C59,1)=RIGHT(ELEAGUE!Q59,1)),4,0)) -> 6 | R46: =IF(ELEAGUE!$C59=ELEAGUE!R59,6,IF(OR(LEFT(ELEAGUE!$C59,1)=LEFT(ELEAGUE!R59,1),RIGHT(ELEAGUE!$C59,1)=RIGHT(ELEAGUE!R59,1)),4,0)) -> 0
D47: =IF(ELEAGUE!$C60=ELEAGUE!D60,6,IF(OR(LEFT(ELEAGUE!$C60,1)=LEFT(ELEAGUE!D60,1),RIGHT(ELEAGUE!$C60,1)=RIGHT(ELEAGUE!D60,1)),4,0)) -> 0 | E47: =IF(ELEAGUE!$C60=ELEAGUE!E60,6,IF(OR(LEFT(ELEAGUE!$C60,1)=LEFT(ELEAGUE!E60,1),RIGHT(ELEAGUE!$C60,1)=RIGHT(ELEAGUE!E60,1)),4,0)) -> 0 | F47: =IF(ELEAGUE!$C60=ELEAGUE!F60,6,IF(OR(LEFT(ELEAGUE!$C60,1)=LEFT(ELEAGUE!F60,1),RIGHT(ELEAGUE!$C60,1)=RIGHT(ELEAGUE!F60,1)),4,0)) -> 4 | G47: =IF(ELEAGUE!$C60=ELEAGUE!G60,6,IF(OR(LEFT(ELEAGUE!$C60,1)=LEFT(ELEAGUE!G60,1),RIGHT(ELEAGUE!$C60,1)=RIGHT(ELEAGUE!G60,1)),4,0)) -> 0 | H47: =IF(ELEAGUE!$C60=ELEAGUE!H60,6,IF(OR(LEFT(ELEAGUE!$C60,1)=LEFT(ELEAGUE!H60,1),RIGHT(ELEAGUE!$C60,1)=RIGHT(ELEAGUE!H60,1)),4,0)) -> 0 | I47: =IF(ELEAGUE!$C60=ELEAGUE!I60,6,IF(OR(LEFT(ELEAGUE!$C60,1)=LEFT(ELEAGUE!I60,1),RIGHT(ELEAGUE!$C60,1)=RIGHT(ELEAGUE!I60,1)),4,0)) -> 0 | J47: =IF(ELEAGUE!$C60=ELEAGUE!J60,6,IF(OR(LEFT(ELEAGUE!$C60,1)=LEFT(ELEAGUE!J60,1),RIGHT(ELEAGUE!$C60,1)=RIGHT(ELEAGUE!J60,1)),4,0)) -> 0 | K47: =IF(ELEAGUE!$C60=ELEAGUE!K60,6,IF(OR(LEFT(ELEAGUE!$C60,1)=LEFT(ELEAGUE!K60,1),RIGHT(ELEAGUE!$C60,1)=RIGHT(ELEAGUE!K60,1)),4,0)) -> 6 | L47: =IF(ELEAGUE!$C60=ELEAGUE!L60,6,IF(OR(LEFT(ELEAGUE!$C60,1)=LEFT(ELEAGUE!L60,1),RIGHT(ELEAGUE!$C60,1)=RIGHT(ELEAGUE!L60,1)),4,0)) -> 0 | M47: =IF(ELEAGUE!$C60=ELEAGUE!M60,6,IF(OR(LEFT(ELEAGUE!$C60,1)=LEFT(ELEAGUE!M60,1),RIGHT(ELEAGUE!$C60,1)=RIGHT(ELEAGUE!M60,1)),4,0)) -> 0 | N47: =IF(ELEAGUE!$C60=ELEAGUE!N60,6,IF(OR(LEFT(ELEAGUE!$C60,1)=LEFT(ELEAGUE!N60,1),RIGHT(ELEAGUE!$C60,1)=RIGHT(ELEAGUE!N60,1)),4,0)) -> 6 | O47: =IF(ELEAGUE!$C60=ELEAGUE!O60,6,IF(OR(LEFT(ELEAGUE!$C60,1)=LEFT(ELEAGUE!O60,1),RIGHT(ELEAGUE!$C60,1)=RIGHT(ELEAGUE!O60,1)),4,0)) -> 0 | P47: =IF(ELEAGUE!$C60=ELEAGUE!P60,6,IF(OR(LEFT(ELEAGUE!$C60,1)=LEFT(ELEAGUE!P60,1),RIGHT(ELEAGUE!$C60,1)=RIGHT(ELEAGUE!P60,1)),4,0)) -> 4 | Q47: =IF(ELEAGUE!$C60=ELEAGUE!Q60,6,IF(OR(LEFT(ELEAGUE!$C60,1)=LEFT(ELEAGUE!Q60,1),RIGHT(ELEAGUE!$C60,1)=RIGHT(ELEAGUE!Q60,1)),4,0)) -> 6 | R47: =IF(ELEAGUE!$C60=ELEAGUE!R60,6,IF(OR(LEFT(ELEAGUE!$C60,1)=LEFT(ELEAGUE!R60,1),RIGHT(ELEAGUE!$C60,1)=RIGHT(ELEAGUE!R60,1)),4,0)) -> 0
C48: Demies | D48: =IF(ELEAGUE!$C65=ELEAGUE!D65,7,IF(OR(LEFT(ELEAGUE!$C65,1)=LEFT(ELEAGUE!D65,1),RIGHT(ELEAGUE!$C65,1)=RIGHT(ELEAGUE!D65,1)),5,0)) -> 0 | E48: =IF(ELEAGUE!$C65=ELEAGUE!E65,7,IF(OR(LEFT(ELEAGUE!$C65,1)=LEFT(ELEAGUE!E65,1),RIGHT(ELEAGUE!$C65,1)=RIGHT(ELEAGUE!E65,1)),5,0)) -> 7 | F48: =IF(ELEAGUE!$C65=ELEAGUE!F65,7,IF(OR(LEFT(ELEAGUE!$C65,1)=LEFT(ELEAGUE!F65,1),RIGHT(ELEAGUE!$C65,1)=RIGHT(ELEAGUE!F65,1)),5,0)) -> 0 | G48: =IF(ELEAGUE!$C65=ELEAGUE!G65,7,IF(OR(LEFT(ELEAGUE!$C65,1)=LEFT(ELEAGUE!G65,1),RIGHT(ELEAGUE!$C65,1)=RIGHT(ELEAGUE!G65,1)),5,0)) -> 7 | H48: =IF(ELEAGUE!$C65=ELEAGUE!H65,7,IF(OR(LEFT(ELEAGUE!$C65,1)=LEFT(ELEAGUE!H65,1),RIGHT(ELEAGUE!$C65,1)=RIGHT(ELEAGUE!H65,1)),5,0)) -> 0 | I48: =IF(ELEAGUE!$C65=ELEAGUE!I65,7,IF(OR(LEFT(ELEAGUE!$C65,1)=LEFT(ELEAGUE!I65,1),RIGHT(ELEAGUE!$C65,1)=RIGHT(ELEAGUE!I65,1)),5,0)) -> 0 | J48: =IF(ELEAGUE!$C65=ELEAGUE!J65,7,IF(OR(LEFT(ELEAGUE!$C65,1)=LEFT(ELEAGUE!J65,1),RIGHT(ELEAGUE!$C65,1)=RIGHT(ELEAGUE!J65,1)),5,0)) -> 7 | K48: =IF(ELEAGUE!$C65=ELEAGUE!K65,7,IF(OR(LEFT(ELEAGUE!$C65,1)=LEFT(ELEAGUE!K65,1),RIGHT(ELEAGUE!$C65,1)=RIGHT(ELEAGUE!K65,1)),5,0)) -> 0 | L48: =IF(ELEAGUE!$C65=ELEAGUE!L65,7,IF(OR(LEFT(ELEAGUE!$C65,1)=LEFT(ELEAGUE!L65,1),RIGHT(ELEAGUE!$C65,1)=RIGHT(ELEAGUE!L65,1)),5,0)) -> 0 | M48: =IF(ELEAGUE!$C65=ELEAGUE!M65,7,IF(OR(LEFT(ELEAGUE!$C65,1)=LEFT(ELEAGUE!M65,1),RIGHT(ELEAGUE!$C65,1)=RIGHT(ELEAGUE!M65,1)),5,0)) -> 7 | N48: =IF(ELEAGUE!$C65=ELEAGUE!N65,7,IF(OR(LEFT(ELEAGUE!$C65,1)=LEFT(ELEAGUE!N65,1),RIGHT(ELEAGUE!$C65,1)=RIGHT(ELEAGUE!N65,1)),5,0)) -> 0 | O48: =IF(ELEAGUE!$C65=ELEAGUE!O65,7,IF(OR(LEFT(ELEAGUE!$C65,1)=LEFT(ELEAGUE!O65,1),RIGHT(ELEAGUE!$C65,1)=RIGHT(ELEAGUE!O65,1)),5,0)) -> 0 | P48: =IF(ELEAGUE!$C65=ELEAGUE!P65,7,IF(OR(LEFT(ELEAGUE!$C65,1)=LEFT(ELEAGUE!P65,1),RIGHT(ELEAGUE!$C65,1)=RIGHT(ELEAGUE!P65,1)),5,0)) -> 0 | Q48: =IF(ELEAGUE!$C65=ELEAGUE!Q65,7,IF(OR(LEFT(ELEAGUE!$C65,1)=LEFT(ELEAGUE!Q65,1),RIGHT(ELEAGUE!$C65,1)=RIGHT(ELEAGUE!Q65,1)),5,0)) -> 0 | R48: =IF(ELEAGUE!$C65=ELEAGUE!R65,7,IF(OR(LEFT(ELEAGUE!$C65,1)=LEFT(ELEAGUE!R65,1),RIGHT(ELEAGUE!$C65,1)=RIGHT(ELEAGUE!R65,1)),5,0)) -> 7
D49: =IF(ELEAGUE!$C81=ELEAGUE!D81,7,IF(OR(LEFT(ELEAGUE!$C81,1)=LEFT(ELEAGUE!D81,1),RIGHT(ELEAGUE!$C81,1)=RIGHT(ELEAGUE!D81,1)),5,0)) -> 7 | E49: =IF(ELEAGUE!$C81=ELEAGUE!E81,7,IF(OR(LEFT(ELEAGUE!$C81,1)=LEFT(ELEAGUE!E81,1),RIGHT(ELEAGUE!$C81,1)=RIGHT(ELEAGUE!E81,1)),5,0)) -> 7 | F49: =IF(ELEAGUE!$C81=ELEAGUE!F81,7,IF(OR(LEFT(ELEAGUE!$C81,1)=LEFT(ELEAGUE!F81,1),RIGHT(ELEAGUE!$C81,1)=RIGHT(ELEAGUE!F81,1)),5,0)) -> 7 | G49: =IF(ELEAGUE!$C81=ELEAGUE!G81,7,IF(OR(LEFT(ELEAGUE!$C81,1)=LEFT(ELEAGUE!G81,1),RIGHT(ELEAGUE!$C81,1)=RIGHT(ELEAGUE!G81,1)),5,0)) -> 7 | H49: =IF(ELEAGUE!$C81=ELEAGUE!H81,7,IF(OR(LEFT(ELEAGUE!$C81,1)=LEFT(ELEAGUE!H81,1),RIGHT(ELEAGUE!$C81,1)=RIGHT(ELEAGUE!H81,1)),5,0)) -> 7 | I49: =IF(ELEAGUE!$C81=ELEAGUE!I81,7,IF(OR(LEFT(ELEAGUE!$C81,1)=LEFT(ELEAGUE!I81,1),RIGHT(ELEAGUE!$C81,1)=RIGHT(ELEAGUE!I81,1)),5,0)) -> 7 | J49: =IF(ELEAGUE!$C81=ELEAGUE!J81,7,IF(OR(LEFT(ELEAGUE!$C81,1)=LEFT(ELEAGUE!J81,1),RIGHT(ELEAGUE!$C81,1)=RIGHT(ELEAGUE!J81,1)),5,0)) -> 7 | K49: =IF(ELEAGUE!$C81=ELEAGUE!K81,7,IF(OR(LEFT(ELEAGUE!$C81,1)=LEFT(ELEAGUE!K81,1),RIGHT(ELEAGUE!$C81,1)=RIGHT(ELEAGUE!K81,1)),5,0)) -> 7 | L49: =IF(ELEAGUE!$C81=ELEAGUE!L81,7,IF(OR(LEFT(ELEAGUE!$C81,1)=LEFT(ELEAGUE!L81,1),RIGHT(ELEAGUE!$C81,1)=RIGHT(ELEAGUE!L81,1)),5,0)) -> 7 | M49: =IF(ELEAGUE!$C81=ELEAGUE!M81,7,IF(OR(LEFT(ELEAGUE!$C81,1)=LEFT(ELEAGUE!M81,1),RIGHT(ELEAGUE!$C81,1)=RIGHT(ELEAGUE!M81,1)),5,0)) -> 7 | N49: =IF(ELEAGUE!$C81=ELEAGUE!N81,7,IF(OR(LEFT(ELEAGUE!$C81,1)=LEFT(ELEAGUE!N81,1),RIGHT(ELEAGUE!$C81,1)=RIGHT(ELEAGUE!N81,1)),5,0)) -> 7 | O49: =IF(ELEAGUE!$C81=ELEAGUE!O81,7,IF(OR(LEFT(ELEAGUE!$C81,1)=LEFT(ELEAGUE!O81,1),RIGHT(ELEAGUE!$C81,1)=RIGHT(ELEAGUE!O81,1)),5,0)) -> 7 | P49: =IF(ELEAGUE!$C81=ELEAGUE!P81,7,IF(OR(LEFT(ELEAGUE!$C81,1)=LEFT(ELEAGUE!P81,1),RIGHT(ELEAGUE!$C81,1)=RIGHT(ELEAGUE!P81,1)),5,0)) -> 7 | Q49: =IF(ELEAGUE!$C81=ELEAGUE!Q81,7,IF(OR(LEFT(ELEAGUE!$C81,1)=LEFT(ELEAGUE!Q81,1),RIGHT(ELEAGUE!$C81,1)=RIGHT(ELEAGUE!Q81,1)),5,0)) -> 7 | R49: =IF(ELEAGUE!$C81=ELEAGUE!R81,7,IF(OR(LEFT(ELEAGUE!$C81,1)=LEFT(ELEAGUE!R81,1),RIGHT(ELEAGUE!$C81,1)=RIGHT(ELEAGUE!R81,1)),5,0)) -> 7
C50: Finale | D50: =IF(ELEAGUE!$C82=ELEAGUE!D82,9,IF(OR(LEFT(ELEAGUE!$C82,1)=LEFT(ELEAGUE!D82,1),RIGHT(ELEAGUE!$C82,1)=RIGHT(ELEAGUE!D82,1)),6,0)) -> 0 | E50: =IF(ELEAGUE!$C82=ELEAGUE!E82,9,IF(OR(LEFT(ELEAGUE!$C82,1)=LEFT(ELEAGUE!E82,1),RIGHT(ELEAGUE!$C82,1)=RIGHT(ELEAGUE!E82,1)),6,0)) -> 0 | F50: =IF(ELEAGUE!$C82=ELEAGUE!F82,9,IF(OR(LEFT(ELEAGUE!$C82,1)=LEFT(ELEAGUE!F82,1),RIGHT(ELEAGUE!$C82,1)=RIGHT(ELEAGUE!F82,1)),6,0)) -> 0 | G50: =IF(ELEAGUE!$C82=ELEAGUE!G82,9,IF(OR(LEFT(ELEAGUE!$C82,1)=LEFT(ELEAGUE!G82,1),RIGHT(ELEAGUE!$C82,1)=RIGHT(ELEAGUE!G82,1)),6,0)) -> 0 | H50: =IF(ELEAGUE!$C82=ELEAGUE!H82,9,IF(OR(LEFT(ELEAGUE!$C82,1)=LEFT(ELEAGUE!H82,1),RIGHT(ELEAGUE!$C82,1)=RIGHT(ELEAGUE!H82,1)),6,0)) -> 0 | I50: =IF(ELEAGUE!$C82=ELEAGUE!I82,9,IF(OR(LEFT(ELEAGUE!$C82,1)=LEFT(ELEAGUE!I82,1),RIGHT(ELEAGUE!$C82,1)=RIGHT(ELEAGUE!I82,1)),6,0)) -> 0 | J50: =IF(ELEAGUE!$C82=ELEAGUE!J82,9,IF(OR(LEFT(ELEAGUE!$C82,1)=LEFT(ELEAGUE!J82,1),RIGHT(ELEAGUE!$C82,1)=RIGHT(ELEAGUE!J82,1)),6,0)) -> 0 | K50: =IF(ELEAGUE!$C82=ELEAGUE!K82,9,IF(OR(LEFT(ELEAGUE!$C82,1)=LEFT(ELEAGUE!K82,1),RIGHT(ELEAGUE!$C82,1)=RIGHT(ELEAGUE!K82,1)),6,0)) -> 0 | L50: =IF(ELEAGUE!$C82=ELEAGUE!L82,9,IF(OR(LEFT(ELEAGUE!$C82,1)=LEFT(ELEAGUE!L82,1),RIGHT(ELEAGUE!$C82,1)=RIGHT(ELEAGUE!L82,1)),6,0)) -> 0 | M50: =IF(ELEAGUE!$C82=ELEAGUE!M82,9,IF(OR(LEFT(ELEAGUE!$C82,1)=LEFT(ELEAGUE!M82,1),RIGHT(ELEAGUE!$C82,1)=RIGHT(ELEAGUE!M82,1)),6,0)) -> 0 | N50: =IF(ELEAGUE!$C82=ELEAGUE!N82,9,IF(OR(LEFT(ELEAGUE!$C82,1)=LEFT(ELEAGUE!N82,1),RIGHT(ELEAGUE!$C82,1)=RIGHT(ELEAGUE!N82,1)),6,0)) -> 0 | O50: =IF(ELEAGUE!$C82=ELEAGUE!O82,9,IF(OR(LEFT(ELEAGUE!$C82,1)=LEFT(ELEAGUE!O82,1),RIGHT(ELEAGUE!$C82,1)=RIGHT(ELEAGUE!O82,1)),6,0)) -> 0 | P50: =IF(ELEAGUE!$C82=ELEAGUE!P82,9,IF(OR(LEFT(ELEAGUE!$C82,1)=LEFT(ELEAGUE!P82,1),RIGHT(ELEAGUE!$C82,1)=RIGHT(ELEAGUE!P82,1)),6,0)) -> 0 | Q50: =IF(ELEAGUE!$C82=ELEAGUE!Q82,9,IF(OR(LEFT(ELEAGUE!$C82,1)=LEFT(ELEAGUE!Q82,1),RIGHT(ELEAGUE!$C82,1)=RIGHT(ELEAGUE!Q82,1)),6,0)) -> 0 | R50: =IF(ELEAGUE!$C82=ELEAGUE!R82,9,IF(OR(LEFT(ELEAGUE!$C82,1)=LEFT(ELEAGUE!R82,1),RIGHT(ELEAGUE!$C82,1)=RIGHT(ELEAGUE!R82,1)),6,0)) -> 9
B56: Total groupes | D56: =D13+D23+D33+D43+D53 -> 51 | E56: =E13+E23+E33+E43+E53 -> 45 | F56: 50 | G56: 42 | H56: 51 | I56: 57 | J56: 15 | K56: 51 | L56: 54 | M56: 18 | N56: 59 | O56: 57 | P56: 66 | Q56: 48 | R56: 0
